{"text_format":"1","workbook":"xlsx","n_sheets":6,"sheets":["data","datastudents","datasave","repstudent","datesearch","repclass"],"not_rendered":{"charts":0,"images":0,"macros":1,"external_links":0,"defined_names":2,"comments":0,"pivot_tables":0},"unopened":[],"bounds":{"document_bytes":16777216,"sheet_cells":100000,"rows_first":2000,"rows_last":500,"rows_between":2000,"halvings":0,"cell_chars":16384,"cell_head_chars":4096},"cells_cut":0,"cells_raw":0,"read":"whole","date_system":"1900"}

{"sheet":"data","index":0,"n_rows":658,"n_cols":14,"rows_kept":658,"cut":false,"hidden":false,"merged":[]}
["اسم المنطقة "]
["اسم المدرسة",null,null,null,null,null,null,null,null,null,null,null,null,{"$f":"IFERROR(INDEX(H5:H1250,MATCH(0,IF(ISBLANK(H5:H1250),1,COUNTIF($N$1:N1,H5:H1250)),0)),\"\")","v":""}]
[null,null,null,null,null,null,null,null,null,null,null,null,null,{"$f":"IFERROR(INDEX(H6:H1251,MATCH(0,IF(ISBLANK(H6:H1251),1,COUNTIF($N$1:N2,H6:H1251)),0)),\"\")","v":""}]
[null,null,null,"رقم الطالب","اسم الطالب","الصف والشعبة","القسم","class",null,null,null,null,null,{"$f":"IFERROR(INDEX(H7:H1252,MATCH(0,IF(ISBLANK(H7:H1252),1,COUNTIF($N$1:N3,H7:H1252)),0)),\"\")","v":""}]
[null,null,null,null,null,null,null,null,null,{"$f":"G5 & \" - \" & F5","v":" - "},null,null,null,{"$f":"IFERROR(INDEX(H8:H1253,MATCH(0,IF(ISBLANK(H8:H1253),1,COUNTIF($N$1:N4,H8:H1253)),0)),\"\")","v":""}]
[null,null,null,null,null,null,null,null,null,null,null,null,null,{"$f":"IFERROR(INDEX(H9:H1254,MATCH(0,IF(ISBLANK(H9:H1254),1,COUNTIF($N$1:N5,H9:H1254)),0)),\"\")","v":""}]
[null,null,null,null,null,null,null,null,null,null,null,null,null,{"$f":"IFERROR(INDEX(H10:H1255,MATCH(0,IF(ISBLANK(H10:H1255),1,COUNTIF($N$1:N6,H10:H1255)),0)),\"\")","v":""}]
[null,null,null,null,null,null,null,null,null,null,null,null,null,{"$f":"IFERROR(INDEX(H11:H1256,MATCH(0,IF(ISBLANK(H11:H1256),1,COUNTIF($N$1:N7,H11:H1256)),0)),\"\")","v":""}]
[null,null,null,null,null,null,null,null,null,null,null,null,null,{"$f":"IFERROR(INDEX(H12:H1257,MATCH(0,IF(ISBLANK(H12:H1257),1,COUNTIF($N$1:N8,H12:H1257)),0)),\"\")","v":""}]
[null,null,null,null,null,null,null,null,null,null,null,null,null,{"$f":"IFERROR(INDEX(H13:H1258,MATCH(0,IF(ISBLANK(H13:H1258),1,COUNTIF($N$1:N9,H13:H1258)),0)),\"\")","v":""}]
[null,null,null,null,null,null,null,null,null,null,null,null,null,{"$f":"IFERROR(INDEX(H14:H1259,MATCH(0,IF(ISBLANK(H14:H1259),1,COUNTIF($N$1:N10,H14:H1259)),0)),\"\")","v":""}]
[null,null,null,null,null,null,null,null,null,null,null,null,null,{"$f":"IFERROR(INDEX(H15:H1260,MATCH(0,IF(ISBLANK(H15:H1260),1,COUNTIF($N$1:N11,H15:H1260)),0)),\"\")","v":""}]
[null,null,null,null,null,null,null,null,null,null,null,null,null,{"$f":"IFERROR(INDEX(H16:H1261,MATCH(0,IF(ISBLANK(H16:H1261),1,COUNTIF($N$1:N12,H16:H1261)),0)),\"\")","v":""}]
[null,null,null,null,null,null,null,null,null,null,null,null,null,{"$f":"IFERROR(INDEX(H17:H1262,MATCH(0,IF(ISBLANK(H17:H1262),1,COUNTIF($N$1:N13,H17:H1262)),0)),\"\")","v":""}]
[null,null,null,null,null,null,null,null,null,null,null,null,null,{"$f":"IFERROR(INDEX(H18:H1263,MATCH(0,IF(ISBLANK(H18:H1263),1,COUNTIF($N$1:N14,H18:H1263)),0)),\"\")","v":""}]
[null,null,null,null,null,null,null,null,null,null,null,null,null,{"$f":"IFERROR(INDEX(H19:H1264,MATCH(0,IF(ISBLANK(H19:H1264),1,COUNTIF($N$1:N15,H19:H1264)),0)),\"\")","v":""}]
[null,null,null,null,null,null,null,null,null,null,null,null,null,{"$f":"IFERROR(INDEX(H20:H1265,MATCH(0,IF(ISBLANK(H20:H1265),1,COUNTIF($N$1:N16,H20:H1265)),0)),\"\")","v":""}]
[null,null,null,null,null,null,null,null,null,null,null,null,null,{"$f":"IFERROR(INDEX(H21:H1266,MATCH(0,IF(ISBLANK(H21:H1266),1,COUNTIF($N$1:N17,H21:H1266)),0)),\"\")","v":""}]
[null,null,null,null,null,null,null,null,null,null,null,null,null,{"$f":"IFERROR(INDEX(H22:H1267,MATCH(0,IF(ISBLANK(H22:H1267),1,COUNTIF($N$1:N18,H22:H1267)),0)),\"\")","v":""}]
[null,null,null,null,null,null,null,null,null,null,null,null,null,{"$f":"IFERROR(INDEX(H23:H1268,MATCH(0,IF(ISBLANK(H23:H1268),1,COUNTIF($N$1:N19,H23:H1268)),0)),\"\")","v":""}]
[null,null,null,null,null,null,null,null,null,null,null,null,null,{"$f":"IFERROR(INDEX(H24:H1269,MATCH(0,IF(ISBLANK(H24:H1269),1,COUNTIF($N$1:N20,H24:H1269)),0)),\"\")","v":""}]
[null,null,null,null,null,null,null,null,null,null,null,null,null,{"$f":"IFERROR(INDEX(H25:H1270,MATCH(0,IF(ISBLANK(H25:H1270),1,COUNTIF($N$1:N21,H25:H1270)),0)),\"\")","v":""}]
[null,null,null,null,null,null,null,null,null,null,null,null,null,{"$f":"IFERROR(INDEX(H26:H1271,MATCH(0,IF(ISBLANK(H26:H1271),1,COUNTIF($N$1:N22,H26:H1271)),0)),\"\")","v":""}]
[null,null,null,null,null,null,null,null,null,null,null,null,null,{"$f":"IFERROR(INDEX(H27:H1272,MATCH(0,IF(ISBLANK(H27:H1272),1,COUNTIF($N$1:N23,H27:H1272)),0)),\"\")","v":""}]
[null,null,null,null,null,null,null,null,null,null,null,null,null,{"$f":"IFERROR(INDEX(H28:H1273,MATCH(0,IF(ISBLANK(H28:H1273),1,COUNTIF($N$1:N24,H28:H1273)),0)),\"\")","v":""}]
[null,null,null,null,null,null,null,null,null,null,null,null,null,{"$f":"IFERROR(INDEX(H29:H1274,MATCH(0,IF(ISBLANK(H29:H1274),1,COUNTIF($N$1:N25,H29:H1274)),0)),\"\")","v":""}]
[null,null,null,null,null,null,null,null,null,null,null,null,null,{"$f":"IFERROR(INDEX(H30:H1275,MATCH(0,IF(ISBLANK(H30:H1275),1,COUNTIF($N$1:N26,H30:H1275)),0)),\"\")","v":""}]
[null,null,null,null,null,null,null,null,null,null,null,null,null,{"$f":"IFERROR(INDEX(H31:H1276,MATCH(0,IF(ISBLANK(H31:H1276),1,COUNTIF($N$1:N27,H31:H1276)),0)),\"\")","v":""}]
[null,null,null,null,null,null,null,null,null,null,null,null,null,{"$f":"IFERROR(INDEX(H32:H1277,MATCH(0,IF(ISBLANK(H32:H1277),1,COUNTIF($N$1:N28,H32:H1277)),0)),\"\")","v":""}]
[null,null,null,null,null,null,null,null,null,null,null,null,null,{"$f":"IFERROR(INDEX(H33:H1278,MATCH(0,IF(ISBLANK(H33:H1278),1,COUNTIF($N$1:N29,H33:H1278)),0)),\"\")","v":""}]
[null,null,null,null,null,null,null,null,null,null,null,null,null,{"$f":"IFERROR(INDEX(H34:H1279,MATCH(0,IF(ISBLANK(H34:H1279),1,COUNTIF($N$1:N30,H34:H1279)),0)),\"\")","v":""}]
[null,null,null,null,null,null,null,null,null,null,null,null,null,{"$f":"IFERROR(INDEX(H35:H1280,MATCH(0,IF(ISBLANK(H35:H1280),1,COUNTIF($N$1:N31,H35:H1280)),0)),\"\")","v":""}]
[null,null,null,null,null,null,null,null,null,null,null,null,null,{"$f":"IFERROR(INDEX(H36:H1281,MATCH(0,IF(ISBLANK(H36:H1281),1,COUNTIF($N$1:N32,H36:H1281)),0)),\"\")","v":""}]
[null,null,null,null,null,null,null,null,null,null,null,null,null,{"$f":"IFERROR(INDEX(H37:H1282,MATCH(0,IF(ISBLANK(H37:H1282),1,COUNTIF($N$1:N33,H37:H1282)),0)),\"\")","v":""}]
[null,null,null,null,null,null,null,null,null,null,null,null,null,{"$f":"IFERROR(INDEX(H38:H1283,MATCH(0,IF(ISBLANK(H38:H1283),1,COUNTIF($N$1:N34,H38:H1283)),0)),\"\")","v":""}]
[null,null,null,null,null,null,null,null,null,null,null,null,null,{"$f":"IFERROR(INDEX(H39:H1284,MATCH(0,IF(ISBLANK(H39:H1284),1,COUNTIF($N$1:N35,H39:H1284)),0)),\"\")","v":""}]
[null,null,null,null,null,null,null,null,null,null,null,null,null,{"$f":"IFERROR(INDEX(H40:H1285,MATCH(0,IF(ISBLANK(H40:H1285),1,COUNTIF($N$1:N36,H40:H1285)),0)),\"\")","v":""}]
[null,null,null,null,null,null,null,null,null,null,null,null,null,{"$f":"IFERROR(INDEX(H41:H1286,MATCH(0,IF(ISBLANK(H41:H1286),1,COUNTIF($N$1:N37,H41:H1286)),0)),\"\")","v":""}]
[null,null,null,null,null,null,null,null,null,null,null,null,null,{"$f":"IFERROR(INDEX(H42:H1287,MATCH(0,IF(ISBLANK(H42:H1287),1,COUNTIF($N$1:N38,H42:H1287)),0)),\"\")","v":""}]
[null,null,null,null,null,null,null,null,null,null,null,null,null,{"$f":"IFERROR(INDEX(H43:H1288,MATCH(0,IF(ISBLANK(H43:H1288),1,COUNTIF($N$1:N39,H43:H1288)),0)),\"\")","v":""}]
[null,null,null,null,null,null,null,null,null,null,null,null,null,{"$f":"IFERROR(INDEX(H44:H1289,MATCH(0,IF(ISBLANK(H44:H1289),1,COUNTIF($N$1:N40,H44:H1289)),0)),\"\")","v":""}]
[null,null,null,null,null,null,null,null,null,null,null,null,null,{"$f":"IFERROR(INDEX(H45:H1290,MATCH(0,IF(ISBLANK(H45:H1290),1,COUNTIF($N$1:N41,H45:H1290)),0)),\"\")","v":""}]
[null,null,null,null,null,null,null,null,null,null,null,null,null,{"$f":"IFERROR(INDEX(H46:H1291,MATCH(0,IF(ISBLANK(H46:H1291),1,COUNTIF($N$1:N42,H46:H1291)),0)),\"\")","v":""}]
[null,null,null,null,null,null,null,null,null,null,null,null,null,{"$f":"IFERROR(INDEX(H47:H1292,MATCH(0,IF(ISBLANK(H47:H1292),1,COUNTIF($N$1:N43,H47:H1292)),0)),\"\")","v":""}]
[null,null,null,null,null,null,null,null,null,null,null,null,null,{"$f":"IFERROR(INDEX(H48:H1293,MATCH(0,IF(ISBLANK(H48:H1293),1,COUNTIF($N$1:N44,H48:H1293)),0)),\"\")","v":""}]
[null,null,null,null,null,null,null,null,null,null,null,null,null,{"$f":"IFERROR(INDEX(H49:H1294,MATCH(0,IF(ISBLANK(H49:H1294),1,COUNTIF($N$1:N45,H49:H1294)),0)),\"\")","v":""}]
[null,null,null,null,null,null,null,null,null,null,null,null,null,{"$f":"IFERROR(INDEX(H50:H1295,MATCH(0,IF(ISBLANK(H50:H1295),1,COUNTIF($N$1:N46,H50:H1295)),0)),\"\")","v":""}]
[null,null,null,null,null,null,null,null,null,null,null,null,null,{"$f":"IFERROR(INDEX(H51:H1296,MATCH(0,IF(ISBLANK(H51:H1296),1,COUNTIF($N$1:N47,H51:H1296)),0)),\"\")","v":""}]
[null,null,null,null,null,null,null,null,null,null,null,null,null,{"$f":"IFERROR(INDEX(H52:H1297,MATCH(0,IF(ISBLANK(H52:H1297),1,COUNTIF($N$1:N48,H52:H1297)),0)),\"\")","v":""}]
[null,null,null,null,null,null,null,null,null,null,null,null,null,{"$f":"IFERROR(INDEX(H53:H1298,MATCH(0,IF(ISBLANK(H53:H1298),1,COUNTIF($N$1:N49,H53:H1298)),0)),\"\")","v":""}]
[null,null,null,null,null,null,null,null,null,null,null,null,null,{"$f":"IFERROR(INDEX(H54:H1299,MATCH(0,IF(ISBLANK(H54:H1299),1,COUNTIF($N$1:N50,H54:H1299)),0)),\"\")","v":""}]
[null,null,null,null,null,null,null,null,null,null,null,null,null,{"$f":"IFERROR(INDEX(H55:H1300,MATCH(0,IF(ISBLANK(H55:H1300),1,COUNTIF($N$1:N51,H55:H1300)),0)),\"\")","v":""}]
[null,null,null,null,null,null,null,null,null,null,null,null,null,{"$f":"IFERROR(INDEX(H56:H1301,MATCH(0,IF(ISBLANK(H56:H1301),1,COUNTIF($N$1:N52,H56:H1301)),0)),\"\")","v":""}]
[null,null,null,null,null,null,null,null,null,null,null,null,null,{"$f":"IFERROR(INDEX(H57:H1302,MATCH(0,IF(ISBLANK(H57:H1302),1,COUNTIF($N$1:N53,H57:H1302)),0)),\"\")","v":""}]
[null,null,null,null,null,null,null,null,null,null,null,null,null,{"$f":"IFERROR(INDEX(H58:H1303,MATCH(0,IF(ISBLANK(H58:H1303),1,COUNTIF($N$1:N54,H58:H1303)),0)),\"\")","v":""}]
[null,null,null,null,null,null,null,null,null,null,null,null,null,{"$f":"IFERROR(INDEX(H59:H1304,MATCH(0,IF(ISBLANK(H59:H1304),1,COUNTIF($N$1:N55,H59:H1304)),0)),\"\")","v":""}]
[null,null,null,null,null,null,null,null,null,null,null,null,null,{"$f":"IFERROR(INDEX(H60:H1305,MATCH(0,IF(ISBLANK(H60:H1305),1,COUNTIF($N$1:N56,H60:H1305)),0)),\"\")","v":""}]
[null,null,null,null,null,null,null,null,null,null,null,null,null,{"$f":"IFERROR(INDEX(H61:H1306,MATCH(0,IF(ISBLANK(H61:H1306),1,COUNTIF($N$1:N57,H61:H1306)),0)),\"\")","v":""}]
[null,null,null,null,null,null,null,null,null,null,null,null,null,{"$f":"IFERROR(INDEX(H62:H1307,MATCH(0,IF(ISBLANK(H62:H1307),1,COUNTIF($N$1:N58,H62:H1307)),0)),\"\")","v":""}]
[null,null,null,null,null,null,null,null,null,null,null,null,null,{"$f":"IFERROR(INDEX(H63:H1308,MATCH(0,IF(ISBLANK(H63:H1308),1,COUNTIF($N$1:N59,H63:H1308)),0)),\"\")","v":""}]
[null,null,null,null,null,null,null,null,null,null,null,null,null,{"$f":"IFERROR(INDEX(H64:H1309,MATCH(0,IF(ISBLANK(H64:H1309),1,COUNTIF($N$1:N60,H64:H1309)),0)),\"\")","v":""}]
[null,null,null,null,null,null,null,null,null,null,null,null,null,{"$f":"IFERROR(INDEX(H65:H1310,MATCH(0,IF(ISBLANK(H65:H1310),1,COUNTIF($N$1:N61,H65:H1310)),0)),\"\")","v":""}]
[null,null,null,null,null,null,null,null,null,null,null,null,null,{"$f":"IFERROR(INDEX(H66:H1311,MATCH(0,IF(ISBLANK(H66:H1311),1,COUNTIF($N$1:N62,H66:H1311)),0)),\"\")","v":""}]
[null,null,null,null,null,null,null,null,null,null,null,null,null,{"$f":"IFERROR(INDEX(H67:H1312,MATCH(0,IF(ISBLANK(H67:H1312),1,COUNTIF($N$1:N63,H67:H1312)),0)),\"\")","v":""}]
[null,null,null,null,null,null,null,null,null,null,null,null,null,{"$f":"IFERROR(INDEX(H68:H1313,MATCH(0,IF(ISBLANK(H68:H1313),1,COUNTIF($N$1:N64,H68:H1313)),0)),\"\")","v":""}]
[null,null,null,null,null,null,null,null,null,null,null,null,null,{"$f":"IFERROR(INDEX(H69:H1314,MATCH(0,IF(ISBLANK(H69:H1314),1,COUNTIF($N$1:N65,H69:H1314)),0)),\"\")","v":""}]
[null,null,null,null,null,null,null,null,null,null,null,null,null,{"$f":"IFERROR(INDEX(H70:H1315,MATCH(0,IF(ISBLANK(H70:H1315),1,COUNTIF($N$1:N66,H70:H1315)),0)),\"\")","v":""}]
[null,null,null,null,null,null,null,null,null,null,null,null,null,{"$f":"IFERROR(INDEX(H71:H1316,MATCH(0,IF(ISBLANK(H71:H1316),1,COUNTIF($N$1:N67,H71:H1316)),0)),\"\")","v":""}]
[null,null,null,null,null,null,null,null,null,null,null,null,null,{"$f":"IFERROR(INDEX(H72:H1317,MATCH(0,IF(ISBLANK(H72:H1317),1,COUNTIF($N$1:N68,H72:H1317)),0)),\"\")","v":""}]
[null,null,null,null,null,null,null,null,null,null,null,null,null,{"$f":"IFERROR(INDEX(H73:H1318,MATCH(0,IF(ISBLANK(H73:H1318),1,COUNTIF($N$1:N69,H73:H1318)),0)),\"\")","v":""}]
[null,null,null,null,null,null,null,null,null,null,null,null,null,{"$f":"IFERROR(INDEX(H74:H1319,MATCH(0,IF(ISBLANK(H74:H1319),1,COUNTIF($N$1:N70,H74:H1319)),0)),\"\")","v":""}]
[null,null,null,null,null,null,null,null,null,null,null,null,null,{"$f":"IFERROR(INDEX(H75:H1320,MATCH(0,IF(ISBLANK(H75:H1320),1,COUNTIF($N$1:N71,H75:H1320)),0)),\"\")","v":""}]
[null,null,null,null,null,null,null,null,null,null,null,null,null,{"$f":"IFERROR(INDEX(H76:H1321,MATCH(0,IF(ISBLANK(H76:H1321),1,COUNTIF($N$1:N72,H76:H1321)),0)),\"\")","v":""}]
[null,null,null,null,null,null,null,null,null,null,null,null,null,{"$f":"IFERROR(INDEX(H77:H1322,MATCH(0,IF(ISBLANK(H77:H1322),1,COUNTIF($N$1:N73,H77:H1322)),0)),\"\")","v":""}]
[null,null,null,null,null,null,null,null,null,null,null,null,null,{"$f":"IFERROR(INDEX(H78:H1323,MATCH(0,IF(ISBLANK(H78:H1323),1,COUNTIF($N$1:N74,H78:H1323)),0)),\"\")","v":""}]
[null,null,null,null,null,null,null,null,null,null,null,null,null,{"$f":"IFERROR(INDEX(H79:H1324,MATCH(0,IF(ISBLANK(H79:H1324),1,COUNTIF($N$1:N75,H79:H1324)),0)),\"\")","v":""}]
[null,null,null,null,null,null,null,null,null,null,null,null,null,{"$f":"IFERROR(INDEX(H80:H1325,MATCH(0,IF(ISBLANK(H80:H1325),1,COUNTIF($N$1:N76,H80:H1325)),0)),\"\")","v":""}]
[null,null,null,null,null,null,null,null,null,null,null,null,null,{"$f":"IFERROR(INDEX(H81:H1326,MATCH(0,IF(ISBLANK(H81:H1326),1,COUNTIF($N$1:N77,H81:H1326)),0)),\"\")","v":""}]
[null,null,null,null,null,null,null,null,null,null,null,null,null,{"$f":"IFERROR(INDEX(H82:H1327,MATCH(0,IF(ISBLANK(H82:H1327),1,COUNTIF($N$1:N78,H82:H1327)),0)),\"\")","v":""}]
[null,null,null,null,null,null,null,null,null,null,null,null,null,{"$f":"IFERROR(INDEX(H83:H1328,MATCH(0,IF(ISBLANK(H83:H1328),1,COUNTIF($N$1:N79,H83:H1328)),0)),\"\")","v":""}]
[null,null,null,null,null,null,null,null,null,null,null,null,null,{"$f":"IFERROR(INDEX(H84:H1329,MATCH(0,IF(ISBLANK(H84:H1329),1,COUNTIF($N$1:N80,H84:H1329)),0)),\"\")","v":""}]
[null,null,null,null,null,null,null,null,null,null,null,null,null,{"$f":"IFERROR(INDEX(H85:H1330,MATCH(0,IF(ISBLANK(H85:H1330),1,COUNTIF($N$1:N81,H85:H1330)),0)),\"\")","v":""}]
[null,null,null,null,null,null,null,null,null,null,null,null,null,{"$f":"IFERROR(INDEX(H86:H1331,MATCH(0,IF(ISBLANK(H86:H1331),1,COUNTIF($N$1:N82,H86:H1331)),0)),\"\")","v":""}]
[null,null,null,null,null,null,null,null,null,null,null,null,null,{"$f":"IFERROR(INDEX(H87:H1332,MATCH(0,IF(ISBLANK(H87:H1332),1,COUNTIF($N$1:N83,H87:H1332)),0)),\"\")","v":""}]
[null,null,null,null,null,null,null,null,null,null,null,null,null,{"$f":"IFERROR(INDEX(H88:H1333,MATCH(0,IF(ISBLANK(H88:H1333),1,COUNTIF($N$1:N84,H88:H1333)),0)),\"\")","v":""}]
[null,null,null,null,null,null,null,null,null,null,null,null,null,{"$f":"IFERROR(INDEX(H89:H1334,MATCH(0,IF(ISBLANK(H89:H1334),1,COUNTIF($N$1:N85,H89:H1334)),0)),\"\")","v":""}]
[null,null,null,null,null,null,null,null,null,null,null,null,null,{"$f":"IFERROR(INDEX(H90:H1335,MATCH(0,IF(ISBLANK(H90:H1335),1,COUNTIF($N$1:N86,H90:H1335)),0)),\"\")","v":""}]
[null,null,null,null,null,null,null,null,null,null,null,null,null,{"$f":"IFERROR(INDEX(H91:H1336,MATCH(0,IF(ISBLANK(H91:H1336),1,COUNTIF($N$1:N87,H91:H1336)),0)),\"\")","v":""}]
[null,null,null,null,null,null,null,null,null,null,null,null,null,{"$f":"IFERROR(INDEX(H92:H1337,MATCH(0,IF(ISBLANK(H92:H1337),1,COUNTIF($N$1:N88,H92:H1337)),0)),\"\")","v":""}]
[null,null,null,null,null,null,null,null,null,null,null,null,null,{"$f":"IFERROR(INDEX(H93:H1338,MATCH(0,IF(ISBLANK(H93:H1338),1,COUNTIF($N$1:N89,H93:H1338)),0)),\"\")","v":""}]
[null,null,null,null,null,null,null,null,null,null,null,null,null,{"$f":"IFERROR(INDEX(H94:H1339,MATCH(0,IF(ISBLANK(H94:H1339),1,COUNTIF($N$1:N90,H94:H1339)),0)),\"\")","v":""}]
[null,null,null,null,null,null,null,null,null,null,null,null,null,{"$f":"IFERROR(INDEX(H95:H1340,MATCH(0,IF(ISBLANK(H95:H1340),1,COUNTIF($N$1:N91,H95:H1340)),0)),\"\")","v":""}]
[null,null,null,null,null,null,null,null,null,null,null,null,null,{"$f":"IFERROR(INDEX(H96:H1341,MATCH(0,IF(ISBLANK(H96:H1341),1,COUNTIF($N$1:N92,H96:H1341)),0)),\"\")","v":""}]
[null,null,null,null,null,null,null,null,null,null,null,null,null,{"$f":"IFERROR(INDEX(H97:H1342,MATCH(0,IF(ISBLANK(H97:H1342),1,COUNTIF($N$1:N93,H97:H1342)),0)),\"\")","v":""}]
[null,null,null,null,null,null,null,null,null,null,null,null,null,{"$f":"IFERROR(INDEX(H98:H1343,MATCH(0,IF(ISBLANK(H98:H1343),1,COUNTIF($N$1:N94,H98:H1343)),0)),\"\")","v":""}]
[null,null,null,null,null,null,null,null,null,null,null,null,null,{"$f":"IFERROR(INDEX(H99:H1344,MATCH(0,IF(ISBLANK(H99:H1344),1,COUNTIF($N$1:N95,H99:H1344)),0)),\"\")","v":""}]
[null,null,null,null,null,null,null,null,null,null,null,null,null,{"$f":"IFERROR(INDEX(H100:H1345,MATCH(0,IF(ISBLANK(H100:H1345),1,COUNTIF($N$1:N96,H100:H1345)),0)),\"\")","v":""}]
[null,null,null,null,null,null,null,null,null,null,null,null,null,{"$f":"IFERROR(INDEX(H101:H1346,MATCH(0,IF(ISBLANK(H101:H1346),1,COUNTIF($N$1:N97,H101:H1346)),0)),\"\")","v":""}]
[null,null,null,null,null,null,null,null,null,null,null,null,null,{"$f":"IFERROR(INDEX(H102:H1347,MATCH(0,IF(ISBLANK(H102:H1347),1,COUNTIF($N$1:N98,H102:H1347)),0)),\"\")","v":""}]
[null,null,null,null,null,null,null,null,null,null,null,null,null,{"$f":"IFERROR(INDEX(H103:H1348,MATCH(0,IF(ISBLANK(H103:H1348),1,COUNTIF($N$1:N99,H103:H1348)),0)),\"\")","v":""}]
[null,null,null,null,null,null,null,null,null,null,null,null,null,{"$f":"IFERROR(INDEX(H104:H1349,MATCH(0,IF(ISBLANK(H104:H1349),1,COUNTIF($N$1:N100,H104:H1349)),0)),\"\")","v":""}]
[null,null,null,null,null,null,null,null,null,null,null,null,null,{"$f":"IFERROR(INDEX(H105:H1350,MATCH(0,IF(ISBLANK(H105:H1350),1,COUNTIF($N$1:N101,H105:H1350)),0)),\"\")","v":""}]
[null,null,null,null,null,null,null,null,null,null,null,null,null,{"$f":"IFERROR(INDEX(H106:H1351,MATCH(0,IF(ISBLANK(H106:H1351),1,COUNTIF($N$1:N102,H106:H1351)),0)),\"\")","v":""}]
[null,null,null,null,null,null,null,null,null,null,null,null,null,{"$f":"IFERROR(INDEX(H107:H1352,MATCH(0,IF(ISBLANK(H107:H1352),1,COUNTIF($N$1:N103,H107:H1352)),0)),\"\")","v":""}]
[null,null,null,null,null,null,null,null,null,null,null,null,null,{"$f":"IFERROR(INDEX(H108:H1353,MATCH(0,IF(ISBLANK(H108:H1353),1,COUNTIF($N$1:N104,H108:H1353)),0)),\"\")","v":""}]
[null,null,null,null,null,null,null,null,null,null,null,null,null,{"$f":"IFERROR(INDEX(H109:H1354,MATCH(0,IF(ISBLANK(H109:H1354),1,COUNTIF($N$1:N105,H109:H1354)),0)),\"\")","v":""}]
[null,null,null,null,null,null,null,null,null,null,null,null,null,{"$f":"IFERROR(INDEX(H110:H1355,MATCH(0,IF(ISBLANK(H110:H1355),1,COUNTIF($N$1:N106,H110:H1355)),0)),\"\")","v":""}]
[null,null,null,null,null,null,null,null,null,null,null,null,null,{"$f":"IFERROR(INDEX(H111:H1356,MATCH(0,IF(ISBLANK(H111:H1356),1,COUNTIF($N$1:N107,H111:H1356)),0)),\"\")","v":""}]
[null,null,null,null,null,null,null,null,null,null,null,null,null,{"$f":"IFERROR(INDEX(H112:H1357,MATCH(0,IF(ISBLANK(H112:H1357),1,COUNTIF($N$1:N108,H112:H1357)),0)),\"\")","v":""}]
[null,null,null,null,null,null,null,null,null,null,null,null,null,{"$f":"IFERROR(INDEX(H113:H1358,MATCH(0,IF(ISBLANK(H113:H1358),1,COUNTIF($N$1:N109,H113:H1358)),0)),\"\")","v":""}]
[null,null,null,null,null,null,null,null,null,null,null,null,null,{"$f":"IFERROR(INDEX(H114:H1359,MATCH(0,IF(ISBLANK(H114:H1359),1,COUNTIF($N$1:N110,H114:H1359)),0)),\"\")","v":""}]
[null,null,null,null,null,null,null,null,null,null,null,null,null,{"$f":"IFERROR(INDEX(H115:H1360,MATCH(0,IF(ISBLANK(H115:H1360),1,COUNTIF($N$1:N111,H115:H1360)),0)),\"\")","v":""}]
[null,null,null,null,null,null,null,null,null,null,null,null,null,{"$f":"IFERROR(INDEX(H116:H1361,MATCH(0,IF(ISBLANK(H116:H1361),1,COUNTIF($N$1:N112,H116:H1361)),0)),\"\")","v":""}]
[null,null,null,null,null,null,null,null,null,null,null,null,null,{"$f":"IFERROR(INDEX(H117:H1362,MATCH(0,IF(ISBLANK(H117:H1362),1,COUNTIF($N$1:N113,H117:H1362)),0)),\"\")","v":""}]
[null,null,null,null,null,null,null,null,null,null,null,null,null,{"$f":"IFERROR(INDEX(H118:H1363,MATCH(0,IF(ISBLANK(H118:H1363),1,COUNTIF($N$1:N114,H118:H1363)),0)),\"\")","v":""}]
[null,null,null,null,null,null,null,null,null,null,null,null,null,{"$f":"IFERROR(INDEX(H119:H1364,MATCH(0,IF(ISBLANK(H119:H1364),1,COUNTIF($N$1:N115,H119:H1364)),0)),\"\")","v":""}]
[null,null,null,null,null,null,null,null,null,null,null,null,null,{"$f":"IFERROR(INDEX(H120:H1365,MATCH(0,IF(ISBLANK(H120:H1365),1,COUNTIF($N$1:N116,H120:H1365)),0)),\"\")","v":""}]
[null,null,null,null,null,null,null,null,null,null,null,null,null,{"$f":"IFERROR(INDEX(H121:H1366,MATCH(0,IF(ISBLANK(H121:H1366),1,COUNTIF($N$1:N117,H121:H1366)),0)),\"\")","v":""}]
[null,null,null,null,null,null,null,null,null,null,null,null,null,{"$f":"IFERROR(INDEX(H122:H1367,MATCH(0,IF(ISBLANK(H122:H1367),1,COUNTIF($N$1:N118,H122:H1367)),0)),\"\")","v":""}]
[null,null,null,null,null,null,null,null,null,null,null,null,null,{"$f":"IFERROR(INDEX(H123:H1368,MATCH(0,IF(ISBLANK(H123:H1368),1,COUNTIF($N$1:N119,H123:H1368)),0)),\"\")","v":""}]
[null,null,null,null,null,null,null,null,null,null,null,null,null,{"$f":"IFERROR(INDEX(H124:H1369,MATCH(0,IF(ISBLANK(H124:H1369),1,COUNTIF($N$1:N120,H124:H1369)),0)),\"\")","v":""}]
[null,null,null,null,null,null,null,null,null,null,null,null,null,{"$f":"IFERROR(INDEX(H125:H1370,MATCH(0,IF(ISBLANK(H125:H1370),1,COUNTIF($N$1:N121,H125:H1370)),0)),\"\")","v":""}]
[null,null,null,null,null,null,null,null,null,null,null,null,null,{"$f":"IFERROR(INDEX(H126:H1371,MATCH(0,IF(ISBLANK(H126:H1371),1,COUNTIF($N$1:N122,H126:H1371)),0)),\"\")","v":""}]
[null,null,null,null,null,null,null,null,null,null,null,null,null,{"$f":"IFERROR(INDEX(H127:H1372,MATCH(0,IF(ISBLANK(H127:H1372),1,COUNTIF($N$1:N123,H127:H1372)),0)),\"\")","v":""}]
[null,null,null,null,null,null,null,null,null,null,null,null,null,{"$f":"IFERROR(INDEX(H128:H1373,MATCH(0,IF(ISBLANK(H128:H1373),1,COUNTIF($N$1:N124,H128:H1373)),0)),\"\")","v":""}]
[null,null,null,null,null,null,null,null,null,null,null,null,null,{"$f":"IFERROR(INDEX(H129:H1374,MATCH(0,IF(ISBLANK(H129:H1374),1,COUNTIF($N$1:N125,H129:H1374)),0)),\"\")","v":""}]
[null,null,null,null,null,null,null,null,null,null,null,null,null,{"$f":"IFERROR(INDEX(H130:H1375,MATCH(0,IF(ISBLANK(H130:H1375),1,COUNTIF($N$1:N126,H130:H1375)),0)),\"\")","v":""}]
[null,null,null,null,null,null,null,null,null,null,null,null,null,{"$f":"IFERROR(INDEX(H131:H1376,MATCH(0,IF(ISBLANK(H131:H1376),1,COUNTIF($N$1:N127,H131:H1376)),0)),\"\")","v":""}]
[null,null,null,null,null,null,null,null,null,null,null,null,null,{"$f":"IFERROR(INDEX(H132:H1377,MATCH(0,IF(ISBLANK(H132:H1377),1,COUNTIF($N$1:N128,H132:H1377)),0)),\"\")","v":""}]
[null,null,null,null,null,null,null,null,null,null,null,null,null,{"$f":"IFERROR(INDEX(H133:H1378,MATCH(0,IF(ISBLANK(H133:H1378),1,COUNTIF($N$1:N129,H133:H1378)),0)),\"\")","v":""}]
[null,null,null,null,null,null,null,null,null,null,null,null,null,{"$f":"IFERROR(INDEX(H134:H1379,MATCH(0,IF(ISBLANK(H134:H1379),1,COUNTIF($N$1:N130,H134:H1379)),0)),\"\")","v":""}]
[null,null,null,null,null,null,null,null,null,null,null,null,null,{"$f":"IFERROR(INDEX(H135:H1380,MATCH(0,IF(ISBLANK(H135:H1380),1,COUNTIF($N$1:N131,H135:H1380)),0)),\"\")","v":""}]
[null,null,null,null,null,null,null,null,null,null,null,null,null,{"$f":"IFERROR(INDEX(H136:H1381,MATCH(0,IF(ISBLANK(H136:H1381),1,COUNTIF($N$1:N132,H136:H1381)),0)),\"\")","v":""}]
[null,null,null,null,null,null,null,null,null,null,null,null,null,{"$f":"IFERROR(INDEX(H137:H1382,MATCH(0,IF(ISBLANK(H137:H1382),1,COUNTIF($N$1:N133,H137:H1382)),0)),\"\")","v":""}]
[null,null,null,null,null,null,null,null,null,null,null,null,null,{"$f":"IFERROR(INDEX(H138:H1383,MATCH(0,IF(ISBLANK(H138:H1383),1,COUNTIF($N$1:N134,H138:H1383)),0)),\"\")","v":""}]
[null,null,null,null,null,null,null,null,null,null,null,null,null,{"$f":"IFERROR(INDEX(H139:H1384,MATCH(0,IF(ISBLANK(H139:H1384),1,COUNTIF($N$1:N135,H139:H1384)),0)),\"\")","v":""}]
[null,null,null,null,null,null,null,null,null,null,null,null,null,{"$f":"IFERROR(INDEX(H140:H1385,MATCH(0,IF(ISBLANK(H140:H1385),1,COUNTIF($N$1:N136,H140:H1385)),0)),\"\")","v":""}]
[null,null,null,null,null,null,null,null,null,null,null,null,null,{"$f":"IFERROR(INDEX(H141:H1386,MATCH(0,IF(ISBLANK(H141:H1386),1,COUNTIF($N$1:N137,H141:H1386)),0)),\"\")","v":""}]
[null,null,null,null,null,null,null,null,null,null,null,null,null,{"$f":"IFERROR(INDEX(H142:H1387,MATCH(0,IF(ISBLANK(H142:H1387),1,COUNTIF($N$1:N138,H142:H1387)),0)),\"\")","v":""}]
[null,null,null,null,null,null,null,null,null,null,null,null,null,{"$f":"IFERROR(INDEX(H143:H1388,MATCH(0,IF(ISBLANK(H143:H1388),1,COUNTIF($N$1:N139,H143:H1388)),0)),\"\")","v":""}]
[null,null,null,null,null,null,null,null,null,null,null,null,null,{"$f":"IFERROR(INDEX(H144:H1389,MATCH(0,IF(ISBLANK(H144:H1389),1,COUNTIF($N$1:N140,H144:H1389)),0)),\"\")","v":""}]
[null,null,null,null,null,null,null,null,null,null,null,null,null,{"$f":"IFERROR(INDEX(H145:H1390,MATCH(0,IF(ISBLANK(H145:H1390),1,COUNTIF($N$1:N141,H145:H1390)),0)),\"\")","v":""}]
[null,null,null,null,null,null,null,null,null,null,null,null,null,{"$f":"IFERROR(INDEX(H146:H1391,MATCH(0,IF(ISBLANK(H146:H1391),1,COUNTIF($N$1:N142,H146:H1391)),0)),\"\")","v":""}]
[null,null,null,null,null,null,null,null,null,null,null,null,null,{"$f":"IFERROR(INDEX(H147:H1392,MATCH(0,IF(ISBLANK(H147:H1392),1,COUNTIF($N$1:N143,H147:H1392)),0)),\"\")","v":""}]
[null,null,null,null,null,null,null,null,null,null,null,null,null,{"$f":"IFERROR(INDEX(H148:H1393,MATCH(0,IF(ISBLANK(H148:H1393),1,COUNTIF($N$1:N144,H148:H1393)),0)),\"\")","v":""}]
[null,null,null,null,null,null,null,null,null,null,null,null,null,{"$f":"IFERROR(INDEX(H149:H1394,MATCH(0,IF(ISBLANK(H149:H1394),1,COUNTIF($N$1:N145,H149:H1394)),0)),\"\")","v":""}]
[null,null,null,null,null,null,null,null,null,null,null,null,null,{"$f":"IFERROR(INDEX(H150:H1395,MATCH(0,IF(ISBLANK(H150:H1395),1,COUNTIF($N$1:N146,H150:H1395)),0)),\"\")","v":""}]
[null,null,null,null,null,null,null,null,null,null,null,null,null,{"$f":"IFERROR(INDEX(H151:H1396,MATCH(0,IF(ISBLANK(H151:H1396),1,COUNTIF($N$1:N147,H151:H1396)),0)),\"\")","v":""}]
[null,null,null,null,null,null,null,null,null,null,null,null,null,{"$f":"IFERROR(INDEX(H152:H1397,MATCH(0,IF(ISBLANK(H152:H1397),1,COUNTIF($N$1:N148,H152:H1397)),0)),\"\")","v":""}]
[null,null,null,null,null,null,null,null,null,null,null,null,null,{"$f":"IFERROR(INDEX(H153:H1398,MATCH(0,IF(ISBLANK(H153:H1398),1,COUNTIF($N$1:N149,H153:H1398)),0)),\"\")","v":""}]
[null,null,null,null,null,null,null,null,null,null,null,null,null,{"$f":"IFERROR(INDEX(H154:H1399,MATCH(0,IF(ISBLANK(H154:H1399),1,COUNTIF($N$1:N150,H154:H1399)),0)),\"\")","v":""}]
[null,null,null,null,null,null,null,null,null,null,null,null,null,{"$f":"IFERROR(INDEX(H155:H1400,MATCH(0,IF(ISBLANK(H155:H1400),1,COUNTIF($N$1:N151,H155:H1400)),0)),\"\")","v":""}]
[null,null,null,null,null,null,null,null,null,null,null,null,null,{"$f":"IFERROR(INDEX(H156:H1401,MATCH(0,IF(ISBLANK(H156:H1401),1,COUNTIF($N$1:N152,H156:H1401)),0)),\"\")","v":""}]
[null,null,null,null,null,null,null,null,null,null,null,null,null,{"$f":"IFERROR(INDEX(H157:H1402,MATCH(0,IF(ISBLANK(H157:H1402),1,COUNTIF($N$1:N153,H157:H1402)),0)),\"\")","v":""}]
[null,null,null,null,null,null,null,null,null,null,null,null,null,{"$f":"IFERROR(INDEX(H158:H1403,MATCH(0,IF(ISBLANK(H158:H1403),1,COUNTIF($N$1:N154,H158:H1403)),0)),\"\")","v":""}]
[null,null,null,null,null,null,null,null,null,null,null,null,null,{"$f":"IFERROR(INDEX(H159:H1404,MATCH(0,IF(ISBLANK(H159:H1404),1,COUNTIF($N$1:N155,H159:H1404)),0)),\"\")","v":""}]
[null,null,null,null,null,null,null,null,null,null,null,null,null,{"$f":"IFERROR(INDEX(H160:H1405,MATCH(0,IF(ISBLANK(H160:H1405),1,COUNTIF($N$1:N156,H160:H1405)),0)),\"\")","v":""}]
[null,null,null,null,null,null,null,null,null,null,null,null,null,{"$f":"IFERROR(INDEX(H161:H1406,MATCH(0,IF(ISBLANK(H161:H1406),1,COUNTIF($N$1:N157,H161:H1406)),0)),\"\")","v":""}]
[null,null,null,null,null,null,null,null,null,null,null,null,null,{"$f":"IFERROR(INDEX(H162:H1407,MATCH(0,IF(ISBLANK(H162:H1407),1,COUNTIF($N$1:N158,H162:H1407)),0)),\"\")","v":""}]
[null,null,null,null,null,null,null,null,null,null,null,null,null,{"$f":"IFERROR(INDEX(H163:H1408,MATCH(0,IF(ISBLANK(H163:H1408),1,COUNTIF($N$1:N159,H163:H1408)),0)),\"\")","v":""}]
[null,null,null,null,null,null,null,null,null,null,null,null,null,{"$f":"IFERROR(INDEX(H164:H1409,MATCH(0,IF(ISBLANK(H164:H1409),1,COUNTIF($N$1:N160,H164:H1409)),0)),\"\")","v":""}]
[null,null,null,null,null,null,null,null,null,null,null,null,null,{"$f":"IFERROR(INDEX(H165:H1410,MATCH(0,IF(ISBLANK(H165:H1410),1,COUNTIF($N$1:N161,H165:H1410)),0)),\"\")","v":""}]
[null,null,null,null,null,null,null,null,null,null,null,null,null,{"$f":"IFERROR(INDEX(H166:H1411,MATCH(0,IF(ISBLANK(H166:H1411),1,COUNTIF($N$1:N162,H166:H1411)),0)),\"\")","v":""}]
[null,null,null,null,null,null,null,null,null,null,null,null,null,{"$f":"IFERROR(INDEX(H167:H1412,MATCH(0,IF(ISBLANK(H167:H1412),1,COUNTIF($N$1:N163,H167:H1412)),0)),\"\")","v":""}]
[null,null,null,null,null,null,null,null,null,null,null,null,null,{"$f":"IFERROR(INDEX(H168:H1413,MATCH(0,IF(ISBLANK(H168:H1413),1,COUNTIF($N$1:N164,H168:H1413)),0)),\"\")","v":""}]
[null,null,null,null,null,null,null,null,null,null,null,null,null,{"$f":"IFERROR(INDEX(H169:H1414,MATCH(0,IF(ISBLANK(H169:H1414),1,COUNTIF($N$1:N165,H169:H1414)),0)),\"\")","v":""}]
[null,null,null,null,null,null,null,null,null,null,null,null,null,{"$f":"IFERROR(INDEX(H170:H1415,MATCH(0,IF(ISBLANK(H170:H1415),1,COUNTIF($N$1:N166,H170:H1415)),0)),\"\")","v":""}]
[null,null,null,null,null,null,null,null,null,null,null,null,null,{"$f":"IFERROR(INDEX(H171:H1416,MATCH(0,IF(ISBLANK(H171:H1416),1,COUNTIF($N$1:N167,H171:H1416)),0)),\"\")","v":""}]
[null,null,null,null,null,null,null,null,null,null,null,null,null,{"$f":"IFERROR(INDEX(H172:H1417,MATCH(0,IF(ISBLANK(H172:H1417),1,COUNTIF($N$1:N168,H172:H1417)),0)),\"\")","v":""}]
[null,null,null,null,null,null,null,null,null,null,null,null,null,{"$f":"IFERROR(INDEX(H173:H1418,MATCH(0,IF(ISBLANK(H173:H1418),1,COUNTIF($N$1:N169,H173:H1418)),0)),\"\")","v":""}]
[null,null,null,null,null,null,null,null,null,null,null,null,null,{"$f":"IFERROR(INDEX(H174:H1419,MATCH(0,IF(ISBLANK(H174:H1419),1,COUNTIF($N$1:N170,H174:H1419)),0)),\"\")","v":""}]
[null,null,null,null,null,null,null,null,null,null,null,null,null,{"$f":"IFERROR(INDEX(H175:H1420,MATCH(0,IF(ISBLANK(H175:H1420),1,COUNTIF($N$1:N171,H175:H1420)),0)),\"\")","v":""}]
[null,null,null,null,null,null,null,null,null,null,null,null,null,{"$f":"IFERROR(INDEX(H176:H1421,MATCH(0,IF(ISBLANK(H176:H1421),1,COUNTIF($N$1:N172,H176:H1421)),0)),\"\")","v":""}]
[null,null,null,null,null,null,null,null,null,null,null,null,null,{"$f":"IFERROR(INDEX(H177:H1422,MATCH(0,IF(ISBLANK(H177:H1422),1,COUNTIF($N$1:N173,H177:H1422)),0)),\"\")","v":""}]
[null,null,null,null,null,null,null,null,null,null,null,null,null,{"$f":"IFERROR(INDEX(H178:H1423,MATCH(0,IF(ISBLANK(H178:H1423),1,COUNTIF($N$1:N174,H178:H1423)),0)),\"\")","v":""}]
[null,null,null,null,null,null,null,null,null,null,null,null,null,{"$f":"IFERROR(INDEX(H179:H1424,MATCH(0,IF(ISBLANK(H179:H1424),1,COUNTIF($N$1:N175,H179:H1424)),0)),\"\")","v":""}]
[null,null,null,null,null,null,null,null,null,null,null,null,null,{"$f":"IFERROR(INDEX(H180:H1425,MATCH(0,IF(ISBLANK(H180:H1425),1,COUNTIF($N$1:N176,H180:H1425)),0)),\"\")","v":""}]
[null,null,null,null,null,null,null,null,null,null,null,null,null,{"$f":"IFERROR(INDEX(H181:H1426,MATCH(0,IF(ISBLANK(H181:H1426),1,COUNTIF($N$1:N177,H181:H1426)),0)),\"\")","v":""}]
[null,null,null,null,null,null,null,null,null,null,null,null,null,{"$f":"IFERROR(INDEX(H182:H1427,MATCH(0,IF(ISBLANK(H182:H1427),1,COUNTIF($N$1:N178,H182:H1427)),0)),\"\")","v":""}]
[null,null,null,null,null,null,null,null,null,null,null,null,null,{"$f":"IFERROR(INDEX(H183:H1428,MATCH(0,IF(ISBLANK(H183:H1428),1,COUNTIF($N$1:N179,H183:H1428)),0)),\"\")","v":""}]
[null,null,null,null,null,null,null,null,null,null,null,null,null,{"$f":"IFERROR(INDEX(H184:H1429,MATCH(0,IF(ISBLANK(H184:H1429),1,COUNTIF($N$1:N180,H184:H1429)),0)),\"\")","v":""}]
[null,null,null,null,null,null,null,null,null,null,null,null,null,{"$f":"IFERROR(INDEX(H185:H1430,MATCH(0,IF(ISBLANK(H185:H1430),1,COUNTIF($N$1:N181,H185:H1430)),0)),\"\")","v":""}]
[null,null,null,null,null,null,null,null,null,null,null,null,null,{"$f":"IFERROR(INDEX(H186:H1431,MATCH(0,IF(ISBLANK(H186:H1431),1,COUNTIF($N$1:N182,H186:H1431)),0)),\"\")","v":""}]
[null,null,null,null,null,null,null,null,null,null,null,null,null,{"$f":"IFERROR(INDEX(H187:H1432,MATCH(0,IF(ISBLANK(H187:H1432),1,COUNTIF($N$1:N183,H187:H1432)),0)),\"\")","v":""}]
[null,null,null,null,null,null,null,null,null,null,null,null,null,{"$f":"IFERROR(INDEX(H188:H1433,MATCH(0,IF(ISBLANK(H188:H1433),1,COUNTIF($N$1:N184,H188:H1433)),0)),\"\")","v":""}]
[null,null,null,null,null,null,null,null,null,null,null,null,null,{"$f":"IFERROR(INDEX(H189:H1434,MATCH(0,IF(ISBLANK(H189:H1434),1,COUNTIF($N$1:N185,H189:H1434)),0)),\"\")","v":""}]
[null,null,null,null,null,null,null,null,null,null,null,null,null,{"$f":"IFERROR(INDEX(H190:H1435,MATCH(0,IF(ISBLANK(H190:H1435),1,COUNTIF($N$1:N186,H190:H1435)),0)),\"\")","v":""}]
[null,null,null,null,null,null,null,null,null,null,null,null,null,{"$f":"IFERROR(INDEX(H191:H1436,MATCH(0,IF(ISBLANK(H191:H1436),1,COUNTIF($N$1:N187,H191:H1436)),0)),\"\")","v":""}]
[null,null,null,null,null,null,null,null,null,null,null,null,null,{"$f":"IFERROR(INDEX(H192:H1437,MATCH(0,IF(ISBLANK(H192:H1437),1,COUNTIF($N$1:N188,H192:H1437)),0)),\"\")","v":""}]
[null,null,null,null,null,null,null,null,null,null,null,null,null,{"$f":"IFERROR(INDEX(H193:H1438,MATCH(0,IF(ISBLANK(H193:H1438),1,COUNTIF($N$1:N189,H193:H1438)),0)),\"\")","v":""}]
[null,null,null,null,null,null,null,null,null,null,null,null,null,{"$f":"IFERROR(INDEX(H194:H1439,MATCH(0,IF(ISBLANK(H194:H1439),1,COUNTIF($N$1:N190,H194:H1439)),0)),\"\")","v":""}]
[null,null,null,null,null,null,null,null,null,null,null,null,null,{"$f":"IFERROR(INDEX(H195:H1440,MATCH(0,IF(ISBLANK(H195:H1440),1,COUNTIF($N$1:N191,H195:H1440)),0)),\"\")","v":""}]
[null,null,null,null,null,null,null,null,null,null,null,null,null,{"$f":"IFERROR(INDEX(H196:H1441,MATCH(0,IF(ISBLANK(H196:H1441),1,COUNTIF($N$1:N192,H196:H1441)),0)),\"\")","v":""}]
[null,null,null,null,null,null,null,null,null,null,null,null,null,{"$f":"IFERROR(INDEX(H197:H1442,MATCH(0,IF(ISBLANK(H197:H1442),1,COUNTIF($N$1:N193,H197:H1442)),0)),\"\")","v":""}]
[null,null,null,null,null,null,null,null,null,null,null,null,null,{"$f":"IFERROR(INDEX(H198:H1443,MATCH(0,IF(ISBLANK(H198:H1443),1,COUNTIF($N$1:N194,H198:H1443)),0)),\"\")","v":""}]
[null,null,null,null,null,null,null,null,null,null,null,null,null,{"$f":"IFERROR(INDEX(H199:H1444,MATCH(0,IF(ISBLANK(H199:H1444),1,COUNTIF($N$1:N195,H199:H1444)),0)),\"\")","v":""}]
[null,null,null,null,null,null,null,null,null,null,null,null,null,{"$f":"IFERROR(INDEX(H200:H1445,MATCH(0,IF(ISBLANK(H200:H1445),1,COUNTIF($N$1:N196,H200:H1445)),0)),\"\")","v":""}]
[null,null,null,null,null,null,null,null,null,null,null,null,null,{"$f":"IFERROR(INDEX(H201:H1446,MATCH(0,IF(ISBLANK(H201:H1446),1,COUNTIF($N$1:N197,H201:H1446)),0)),\"\")","v":""}]
[null,null,null,null,null,null,null,null,null,null,null,null,null,{"$f":"IFERROR(INDEX(H202:H1447,MATCH(0,IF(ISBLANK(H202:H1447),1,COUNTIF($N$1:N198,H202:H1447)),0)),\"\")","v":""}]
[null,null,null,null,null,null,null,null,null,null,null,null,null,{"$f":"IFERROR(INDEX(H203:H1448,MATCH(0,IF(ISBLANK(H203:H1448),1,COUNTIF($N$1:N199,H203:H1448)),0)),\"\")","v":""}]
[null,null,null,null,null,null,null,null,null,null,null,null,null,{"$f":"IFERROR(INDEX(H204:H1449,MATCH(0,IF(ISBLANK(H204:H1449),1,COUNTIF($N$1:N200,H204:H1449)),0)),\"\")","v":""}]
[null,null,null,null,null,null,null,null,null,null,null,null,null,{"$f":"IFERROR(INDEX(H205:H1450,MATCH(0,IF(ISBLANK(H205:H1450),1,COUNTIF($N$1:N201,H205:H1450)),0)),\"\")","v":""}]
[null,null,null,null,null,null,null,null,null,null,null,null,null,{"$f":"IFERROR(INDEX(H206:H1451,MATCH(0,IF(ISBLANK(H206:H1451),1,COUNTIF($N$1:N202,H206:H1451)),0)),\"\")","v":""}]
[null,null,null,null,null,null,null,null,null,null,null,null,null,{"$f":"IFERROR(INDEX(H207:H1452,MATCH(0,IF(ISBLANK(H207:H1452),1,COUNTIF($N$1:N203,H207:H1452)),0)),\"\")","v":""}]
[null,null,null,null,null,null,null,null,null,null,null,null,null,{"$f":"IFERROR(INDEX(H208:H1453,MATCH(0,IF(ISBLANK(H208:H1453),1,COUNTIF($N$1:N204,H208:H1453)),0)),\"\")","v":""}]
[null,null,null,null,null,null,null,null,null,null,null,null,null,{"$f":"IFERROR(INDEX(H209:H1454,MATCH(0,IF(ISBLANK(H209:H1454),1,COUNTIF($N$1:N205,H209:H1454)),0)),\"\")","v":""}]
[null,null,null,null,null,null,null,null,null,null,null,null,null,{"$f":"IFERROR(INDEX(H210:H1455,MATCH(0,IF(ISBLANK(H210:H1455),1,COUNTIF($N$1:N206,H210:H1455)),0)),\"\")","v":""}]
[null,null,null,null,null,null,null,null,null,null,null,null,null,{"$f":"IFERROR(INDEX(H211:H1456,MATCH(0,IF(ISBLANK(H211:H1456),1,COUNTIF($N$1:N207,H211:H1456)),0)),\"\")","v":""}]
[null,null,null,null,null,null,null,null,null,null,null,null,null,{"$f":"IFERROR(INDEX(H212:H1457,MATCH(0,IF(ISBLANK(H212:H1457),1,COUNTIF($N$1:N208,H212:H1457)),0)),\"\")","v":""}]
[null,null,null,null,null,null,null,null,null,null,null,null,null,{"$f":"IFERROR(INDEX(H213:H1458,MATCH(0,IF(ISBLANK(H213:H1458),1,COUNTIF($N$1:N209,H213:H1458)),0)),\"\")","v":""}]
[null,null,null,null,null,null,null,null,null,null,null,null,null,{"$f":"IFERROR(INDEX(H214:H1459,MATCH(0,IF(ISBLANK(H214:H1459),1,COUNTIF($N$1:N210,H214:H1459)),0)),\"\")","v":""}]
[null,null,null,null,null,null,null,null,null,null,null,null,null,{"$f":"IFERROR(INDEX(H215:H1460,MATCH(0,IF(ISBLANK(H215:H1460),1,COUNTIF($N$1:N211,H215:H1460)),0)),\"\")","v":""}]
[null,null,null,null,null,null,null,null,null,null,null,null,null,{"$f":"IFERROR(INDEX(H216:H1461,MATCH(0,IF(ISBLANK(H216:H1461),1,COUNTIF($N$1:N212,H216:H1461)),0)),\"\")","v":""}]
[null,null,null,null,null,null,null,null,null,null,null,null,null,{"$f":"IFERROR(INDEX(H217:H1462,MATCH(0,IF(ISBLANK(H217:H1462),1,COUNTIF($N$1:N213,H217:H1462)),0)),\"\")","v":""}]
[null,null,null,null,null,null,null,null,null,null,null,null,null,{"$f":"IFERROR(INDEX(H218:H1463,MATCH(0,IF(ISBLANK(H218:H1463),1,COUNTIF($N$1:N214,H218:H1463)),0)),\"\")","v":""}]
[null,null,null,null,null,null,null,null,null,null,null,null,null,{"$f":"IFERROR(INDEX(H219:H1464,MATCH(0,IF(ISBLANK(H219:H1464),1,COUNTIF($N$1:N215,H219:H1464)),0)),\"\")","v":""}]
[null,null,null,null,null,null,null,null,null,null,null,null,null,{"$f":"IFERROR(INDEX(H220:H1465,MATCH(0,IF(ISBLANK(H220:H1465),1,COUNTIF($N$1:N216,H220:H1465)),0)),\"\")","v":""}]
[null,null,null,null,null,null,null,null,null,null,null,null,null,{"$f":"IFERROR(INDEX(H221:H1466,MATCH(0,IF(ISBLANK(H221:H1466),1,COUNTIF($N$1:N217,H221:H1466)),0)),\"\")","v":""}]
[null,null,null,null,null,null,null,null,null,null,null,null,null,{"$f":"IFERROR(INDEX(H222:H1467,MATCH(0,IF(ISBLANK(H222:H1467),1,COUNTIF($N$1:N218,H222:H1467)),0)),\"\")","v":""}]
[null,null,null,null,null,null,null,null,null,null,null,null,null,{"$f":"IFERROR(INDEX(H223:H1468,MATCH(0,IF(ISBLANK(H223:H1468),1,COUNTIF($N$1:N219,H223:H1468)),0)),\"\")","v":""}]
[null,null,null,null,null,null,null,null,null,null,null,null,null,{"$f":"IFERROR(INDEX(H224:H1469,MATCH(0,IF(ISBLANK(H224:H1469),1,COUNTIF($N$1:N220,H224:H1469)),0)),\"\")","v":""}]
[null,null,null,null,null,null,null,null,null,null,null,null,null,{"$f":"IFERROR(INDEX(H225:H1470,MATCH(0,IF(ISBLANK(H225:H1470),1,COUNTIF($N$1:N221,H225:H1470)),0)),\"\")","v":""}]
[null,null,null,null,null,null,null,null,null,null,null,null,null,{"$f":"IFERROR(INDEX(H226:H1471,MATCH(0,IF(ISBLANK(H226:H1471),1,COUNTIF($N$1:N222,H226:H1471)),0)),\"\")","v":""}]
[null,null,null,null,null,null,null,null,null,null,null,null,null,{"$f":"IFERROR(INDEX(H227:H1472,MATCH(0,IF(ISBLANK(H227:H1472),1,COUNTIF($N$1:N223,H227:H1472)),0)),\"\")","v":""}]
[null,null,null,null,null,null,null,null,null,null,null,null,null,{"$f":"IFERROR(INDEX(H228:H1473,MATCH(0,IF(ISBLANK(H228:H1473),1,COUNTIF($N$1:N224,H228:H1473)),0)),\"\")","v":""}]
[null,null,null,null,null,null,null,null,null,null,null,null,null,{"$f":"IFERROR(INDEX(H229:H1474,MATCH(0,IF(ISBLANK(H229:H1474),1,COUNTIF($N$1:N225,H229:H1474)),0)),\"\")","v":""}]
[null,null,null,null,null,null,null,null,null,null,null,null,null,{"$f":"IFERROR(INDEX(H230:H1475,MATCH(0,IF(ISBLANK(H230:H1475),1,COUNTIF($N$1:N226,H230:H1475)),0)),\"\")","v":""}]
[null,null,null,null,null,null,null,null,null,null,null,null,null,{"$f":"IFERROR(INDEX(H231:H1476,MATCH(0,IF(ISBLANK(H231:H1476),1,COUNTIF($N$1:N227,H231:H1476)),0)),\"\")","v":""}]
[null,null,null,null,null,null,null,null,null,null,null,null,null,{"$f":"IFERROR(INDEX(H232:H1477,MATCH(0,IF(ISBLANK(H232:H1477),1,COUNTIF($N$1:N228,H232:H1477)),0)),\"\")","v":""}]
[null,null,null,null,null,null,null,null,null,null,null,null,null,{"$f":"IFERROR(INDEX(H233:H1478,MATCH(0,IF(ISBLANK(H233:H1478),1,COUNTIF($N$1:N229,H233:H1478)),0)),\"\")","v":""}]
[null,null,null,null,null,null,null,null,null,null,null,null,null,{"$f":"IFERROR(INDEX(H234:H1479,MATCH(0,IF(ISBLANK(H234:H1479),1,COUNTIF($N$1:N230,H234:H1479)),0)),\"\")","v":""}]
[null,null,null,null,null,null,null,null,null,null,null,null,null,{"$f":"IFERROR(INDEX(H235:H1480,MATCH(0,IF(ISBLANK(H235:H1480),1,COUNTIF($N$1:N231,H235:H1480)),0)),\"\")","v":""}]
[null,null,null,null,null,null,null,null,null,null,null,null,null,{"$f":"IFERROR(INDEX(H236:H1481,MATCH(0,IF(ISBLANK(H236:H1481),1,COUNTIF($N$1:N232,H236:H1481)),0)),\"\")","v":""}]
[null,null,null,null,null,null,null,null,null,null,null,null,null,{"$f":"IFERROR(INDEX(H237:H1482,MATCH(0,IF(ISBLANK(H237:H1482),1,COUNTIF($N$1:N233,H237:H1482)),0)),\"\")","v":""}]
[null,null,null,null,null,null,null,null,null,null,null,null,null,{"$f":"IFERROR(INDEX(H238:H1483,MATCH(0,IF(ISBLANK(H238:H1483),1,COUNTIF($N$1:N234,H238:H1483)),0)),\"\")","v":""}]
[null,null,null,null,null,null,null,null,null,null,null,null,null,{"$f":"IFERROR(INDEX(H239:H1484,MATCH(0,IF(ISBLANK(H239:H1484),1,COUNTIF($N$1:N235,H239:H1484)),0)),\"\")","v":""}]
[null,null,null,null,null,null,null,null,null,null,null,null,null,{"$f":"IFERROR(INDEX(H240:H1485,MATCH(0,IF(ISBLANK(H240:H1485),1,COUNTIF($N$1:N236,H240:H1485)),0)),\"\")","v":""}]
[null,null,null,null,null,null,null,null,null,null,null,null,null,{"$f":"IFERROR(INDEX(H241:H1486,MATCH(0,IF(ISBLANK(H241:H1486),1,COUNTIF($N$1:N237,H241:H1486)),0)),\"\")","v":""}]
[null,null,null,null,null,null,null,null,null,null,null,null,null,{"$f":"IFERROR(INDEX(H242:H1487,MATCH(0,IF(ISBLANK(H242:H1487),1,COUNTIF($N$1:N238,H242:H1487)),0)),\"\")","v":""}]
[null,null,null,null,null,null,null,null,null,null,null,null,null,{"$f":"IFERROR(INDEX(H243:H1488,MATCH(0,IF(ISBLANK(H243:H1488),1,COUNTIF($N$1:N239,H243:H1488)),0)),\"\")","v":""}]
[null,null,null,null,null,null,null,null,null,null,null,null,null,{"$f":"IFERROR(INDEX(H244:H1489,MATCH(0,IF(ISBLANK(H244:H1489),1,COUNTIF($N$1:N240,H244:H1489)),0)),\"\")","v":""}]
[null,null,null,null,null,null,null,null,null,null,null,null,null,{"$f":"IFERROR(INDEX(H245:H1490,MATCH(0,IF(ISBLANK(H245:H1490),1,COUNTIF($N$1:N241,H245:H1490)),0)),\"\")","v":""}]
[null,null,null,null,null,null,null,null,null,null,null,null,null,{"$f":"IFERROR(INDEX(H246:H1491,MATCH(0,IF(ISBLANK(H246:H1491),1,COUNTIF($N$1:N242,H246:H1491)),0)),\"\")","v":""}]
[null,null,null,null,null,null,null,null,null,null,null,null,null,{"$f":"IFERROR(INDEX(H247:H1492,MATCH(0,IF(ISBLANK(H247:H1492),1,COUNTIF($N$1:N243,H247:H1492)),0)),\"\")","v":""}]
[null,null,null,null,null,null,null,null,null,null,null,null,null,{"$f":"IFERROR(INDEX(H248:H1493,MATCH(0,IF(ISBLANK(H248:H1493),1,COUNTIF($N$1:N244,H248:H1493)),0)),\"\")","v":""}]
[null,null,null,null,null,null,null,null,null,null,null,null,null,{"$f":"IFERROR(INDEX(H249:H1494,MATCH(0,IF(ISBLANK(H249:H1494),1,COUNTIF($N$1:N245,H249:H1494)),0)),\"\")","v":""}]
[null,null,null,null,null,null,null,null,null,null,null,null,null,{"$f":"IFERROR(INDEX(H250:H1495,MATCH(0,IF(ISBLANK(H250:H1495),1,COUNTIF($N$1:N246,H250:H1495)),0)),\"\")","v":""}]
[null,null,null,null,null,null,null,null,null,null,null,null,null,{"$f":"IFERROR(INDEX(H251:H1496,MATCH(0,IF(ISBLANK(H251:H1496),1,COUNTIF($N$1:N247,H251:H1496)),0)),\"\")","v":""}]
[null,null,null,null,null,null,null,null,null,null,null,null,null,{"$f":"IFERROR(INDEX(H252:H1497,MATCH(0,IF(ISBLANK(H252:H1497),1,COUNTIF($N$1:N248,H252:H1497)),0)),\"\")","v":""}]
[null,null,null,null,null,null,null,null,null,null,null,null,null,{"$f":"IFERROR(INDEX(H253:H1498,MATCH(0,IF(ISBLANK(H253:H1498),1,COUNTIF($N$1:N249,H253:H1498)),0)),\"\")","v":""}]
[null,null,null,null,null,null,null,null,null,null,null,null,null,{"$f":"IFERROR(INDEX(H254:H1499,MATCH(0,IF(ISBLANK(H254:H1499),1,COUNTIF($N$1:N250,H254:H1499)),0)),\"\")","v":""}]
[null,null,null,null,null,null,null,null,null,null,null,null,null,{"$f":"IFERROR(INDEX(H255:H1500,MATCH(0,IF(ISBLANK(H255:H1500),1,COUNTIF($N$1:N251,H255:H1500)),0)),\"\")","v":""}]
[null,null,null,null,null,null,null,null,null,null,null,null,null,{"$f":"IFERROR(INDEX(H256:H1501,MATCH(0,IF(ISBLANK(H256:H1501),1,COUNTIF($N$1:N252,H256:H1501)),0)),\"\")","v":""}]
[null,null,null,null,null,null,null,null,null,null,null,null,null,{"$f":"IFERROR(INDEX(H257:H1502,MATCH(0,IF(ISBLANK(H257:H1502),1,COUNTIF($N$1:N253,H257:H1502)),0)),\"\")","v":""}]
[null,null,null,null,null,null,null,null,null,null,null,null,null,{"$f":"IFERROR(INDEX(H258:H1503,MATCH(0,IF(ISBLANK(H258:H1503),1,COUNTIF($N$1:N254,H258:H1503)),0)),\"\")","v":""}]
[null,null,null,null,null,null,null,null,null,null,null,null,null,{"$f":"IFERROR(INDEX(H259:H1504,MATCH(0,IF(ISBLANK(H259:H1504),1,COUNTIF($N$1:N255,H259:H1504)),0)),\"\")","v":""}]
[null,null,null,null,null,null,null,null,null,null,null,null,null,{"$f":"IFERROR(INDEX(H260:H1505,MATCH(0,IF(ISBLANK(H260:H1505),1,COUNTIF($N$1:N256,H260:H1505)),0)),\"\")","v":""}]
[null,null,null,null,null,null,null,null,null,null,null,null,null,{"$f":"IFERROR(INDEX(H261:H1506,MATCH(0,IF(ISBLANK(H261:H1506),1,COUNTIF($N$1:N257,H261:H1506)),0)),\"\")","v":""}]
[null,null,null,null,null,null,null,null,null,null,null,null,null,{"$f":"IFERROR(INDEX(H262:H1507,MATCH(0,IF(ISBLANK(H262:H1507),1,COUNTIF($N$1:N258,H262:H1507)),0)),\"\")","v":""}]
[null,null,null,null,null,null,null,null,null,null,null,null,null,{"$f":"IFERROR(INDEX(H263:H1508,MATCH(0,IF(ISBLANK(H263:H1508),1,COUNTIF($N$1:N259,H263:H1508)),0)),\"\")","v":""}]
[null,null,null,null,null,null,null,null,null,null,null,null,null,{"$f":"IFERROR(INDEX(H264:H1509,MATCH(0,IF(ISBLANK(H264:H1509),1,COUNTIF($N$1:N260,H264:H1509)),0)),\"\")","v":""}]
[null,null,null,null,null,null,null,null,null,null,null,null,null,{"$f":"IFERROR(INDEX(H265:H1510,MATCH(0,IF(ISBLANK(H265:H1510),1,COUNTIF($N$1:N261,H265:H1510)),0)),\"\")","v":""}]
[null,null,null,null,null,null,null,null,null,null,null,null,null,{"$f":"IFERROR(INDEX(H266:H1511,MATCH(0,IF(ISBLANK(H266:H1511),1,COUNTIF($N$1:N262,H266:H1511)),0)),\"\")","v":""}]
[null,null,null,null,null,null,null,null,null,null,null,null,null,{"$f":"IFERROR(INDEX(H267:H1512,MATCH(0,IF(ISBLANK(H267:H1512),1,COUNTIF($N$1:N263,H267:H1512)),0)),\"\")","v":""}]
[null,null,null,null,null,null,null,null,null,null,null,null,null,{"$f":"IFERROR(INDEX(H268:H1513,MATCH(0,IF(ISBLANK(H268:H1513),1,COUNTIF($N$1:N264,H268:H1513)),0)),\"\")","v":""}]
[null,null,null,null,null,null,null,null,null,null,null,null,null,{"$f":"IFERROR(INDEX(H269:H1514,MATCH(0,IF(ISBLANK(H269:H1514),1,COUNTIF($N$1:N265,H269:H1514)),0)),\"\")","v":""}]
[null,null,null,null,null,null,null,null,null,null,null,null,null,{"$f":"IFERROR(INDEX(H270:H1515,MATCH(0,IF(ISBLANK(H270:H1515),1,COUNTIF($N$1:N266,H270:H1515)),0)),\"\")","v":""}]
[null,null,null,null,null,null,null,null,null,null,null,null,null,{"$f":"IFERROR(INDEX(H271:H1516,MATCH(0,IF(ISBLANK(H271:H1516),1,COUNTIF($N$1:N267,H271:H1516)),0)),\"\")","v":""}]
[null,null,null,null,null,null,null,null,null,null,null,null,null,{"$f":"IFERROR(INDEX(H272:H1517,MATCH(0,IF(ISBLANK(H272:H1517),1,COUNTIF($N$1:N268,H272:H1517)),0)),\"\")","v":""}]
[null,null,null,null,null,null,null,null,null,null,null,null,null,{"$f":"IFERROR(INDEX(H273:H1518,MATCH(0,IF(ISBLANK(H273:H1518),1,COUNTIF($N$1:N269,H273:H1518)),0)),\"\")","v":""}]
[null,null,null,null,null,null,null,null,null,null,null,null,null,{"$f":"IFERROR(INDEX(H274:H1519,MATCH(0,IF(ISBLANK(H274:H1519),1,COUNTIF($N$1:N270,H274:H1519)),0)),\"\")","v":""}]
[null,null,null,null,null,null,null,null,null,null,null,null,null,{"$f":"IFERROR(INDEX(H275:H1520,MATCH(0,IF(ISBLANK(H275:H1520),1,COUNTIF($N$1:N271,H275:H1520)),0)),\"\")","v":""}]
[null,null,null,null,null,null,null,null,null,null,null,null,null,{"$f":"IFERROR(INDEX(H276:H1521,MATCH(0,IF(ISBLANK(H276:H1521),1,COUNTIF($N$1:N272,H276:H1521)),0)),\"\")","v":""}]
[null,null,null,null,null,null,null,null,null,null,null,null,null,{"$f":"IFERROR(INDEX(H277:H1522,MATCH(0,IF(ISBLANK(H277:H1522),1,COUNTIF($N$1:N273,H277:H1522)),0)),\"\")","v":""}]
[null,null,null,null,null,null,null,null,null,null,null,null,null,{"$f":"IFERROR(INDEX(H278:H1523,MATCH(0,IF(ISBLANK(H278:H1523),1,COUNTIF($N$1:N274,H278:H1523)),0)),\"\")","v":""}]
[null,null,null,null,null,null,null,null,null,null,null,null,null,{"$f":"IFERROR(INDEX(H279:H1524,MATCH(0,IF(ISBLANK(H279:H1524),1,COUNTIF($N$1:N275,H279:H1524)),0)),\"\")","v":""}]
[null,null,null,null,null,null,null,null,null,null,null,null,null,{"$f":"IFERROR(INDEX(H280:H1525,MATCH(0,IF(ISBLANK(H280:H1525),1,COUNTIF($N$1:N276,H280:H1525)),0)),\"\")","v":""}]
[null,null,null,null,null,null,null,null,null,null,null,null,null,{"$f":"IFERROR(INDEX(H281:H1526,MATCH(0,IF(ISBLANK(H281:H1526),1,COUNTIF($N$1:N277,H281:H1526)),0)),\"\")","v":""}]
[null,null,null,null,null,null,null,null,null,null,null,null,null,{"$f":"IFERROR(INDEX(H282:H1527,MATCH(0,IF(ISBLANK(H282:H1527),1,COUNTIF($N$1:N278,H282:H1527)),0)),\"\")","v":""}]
[null,null,null,null,null,null,null,null,null,null,null,null,null,{"$f":"IFERROR(INDEX(H283:H1528,MATCH(0,IF(ISBLANK(H283:H1528),1,COUNTIF($N$1:N279,H283:H1528)),0)),\"\")","v":""}]
[null,null,null,null,null,null,null,null,null,null,null,null,null,{"$f":"IFERROR(INDEX(H284:H1529,MATCH(0,IF(ISBLANK(H284:H1529),1,COUNTIF($N$1:N280,H284:H1529)),0)),\"\")","v":""}]
[null,null,null,null,null,null,null,null,null,null,null,null,null,{"$f":"IFERROR(INDEX(H285:H1530,MATCH(0,IF(ISBLANK(H285:H1530),1,COUNTIF($N$1:N281,H285:H1530)),0)),\"\")","v":""}]
[null,null,null,null,null,null,null,null,null,null,null,null,null,{"$f":"IFERROR(INDEX(H286:H1531,MATCH(0,IF(ISBLANK(H286:H1531),1,COUNTIF($N$1:N282,H286:H1531)),0)),\"\")","v":""}]
[null,null,null,null,null,null,null,null,null,null,null,null,null,{"$f":"IFERROR(INDEX(H287:H1532,MATCH(0,IF(ISBLANK(H287:H1532),1,COUNTIF($N$1:N283,H287:H1532)),0)),\"\")","v":""}]
[null,null,null,null,null,null,null,null,null,null,null,null,null,{"$f":"IFERROR(INDEX(H288:H1533,MATCH(0,IF(ISBLANK(H288:H1533),1,COUNTIF($N$1:N284,H288:H1533)),0)),\"\")","v":""}]
[null,null,null,null,null,null,null,null,null,null,null,null,null,{"$f":"IFERROR(INDEX(H289:H1534,MATCH(0,IF(ISBLANK(H289:H1534),1,COUNTIF($N$1:N285,H289:H1534)),0)),\"\")","v":""}]
[null,null,null,null,null,null,null,null,null,null,null,null,null,{"$f":"IFERROR(INDEX(H290:H1535,MATCH(0,IF(ISBLANK(H290:H1535),1,COUNTIF($N$1:N286,H290:H1535)),0)),\"\")","v":""}]
[null,null,null,null,null,null,null,null,null,null,null,null,null,{"$f":"IFERROR(INDEX(H291:H1536,MATCH(0,IF(ISBLANK(H291:H1536),1,COUNTIF($N$1:N287,H291:H1536)),0)),\"\")","v":""}]
[null,null,null,null,null,null,null,null,null,null,null,null,null,{"$f":"IFERROR(INDEX(H292:H1537,MATCH(0,IF(ISBLANK(H292:H1537),1,COUNTIF($N$1:N288,H292:H1537)),0)),\"\")","v":""}]
[null,null,null,null,null,null,null,null,null,null,null,null,null,{"$f":"IFERROR(INDEX(H293:H1538,MATCH(0,IF(ISBLANK(H293:H1538),1,COUNTIF($N$1:N289,H293:H1538)),0)),\"\")","v":""}]
[null,null,null,null,null,null,null,null,null,null,null,null,null,{"$f":"IFERROR(INDEX(H294:H1539,MATCH(0,IF(ISBLANK(H294:H1539),1,COUNTIF($N$1:N290,H294:H1539)),0)),\"\")","v":""}]
[null,null,null,null,null,null,null,null,null,null,null,null,null,{"$f":"IFERROR(INDEX(H295:H1540,MATCH(0,IF(ISBLANK(H295:H1540),1,COUNTIF($N$1:N291,H295:H1540)),0)),\"\")","v":""}]
[null,null,null,null,null,null,null,null,null,null,null,null,null,{"$f":"IFERROR(INDEX(H296:H1541,MATCH(0,IF(ISBLANK(H296:H1541),1,COUNTIF($N$1:N292,H296:H1541)),0)),\"\")","v":""}]
[null,null,null,null,null,null,null,null,null,null,null,null,null,{"$f":"IFERROR(INDEX(H297:H1542,MATCH(0,IF(ISBLANK(H297:H1542),1,COUNTIF($N$1:N293,H297:H1542)),0)),\"\")","v":""}]
[null,null,null,null,null,null,null,null,null,null,null,null,null,{"$f":"IFERROR(INDEX(H298:H1543,MATCH(0,IF(ISBLANK(H298:H1543),1,COUNTIF($N$1:N294,H298:H1543)),0)),\"\")","v":""}]
[null,null,null,null,null,null,null,null,null,null,null,null,null,{"$f":"IFERROR(INDEX(H299:H1544,MATCH(0,IF(ISBLANK(H299:H1544),1,COUNTIF($N$1:N295,H299:H1544)),0)),\"\")","v":""}]
[null,null,null,null,null,null,null,null,null,null,null,null,null,{"$f":"IFERROR(INDEX(H300:H1545,MATCH(0,IF(ISBLANK(H300:H1545),1,COUNTIF($N$1:N296,H300:H1545)),0)),\"\")","v":""}]
[null,null,null,null,null,null,null,null,null,null,null,null,null,{"$f":"IFERROR(INDEX(H301:H1546,MATCH(0,IF(ISBLANK(H301:H1546),1,COUNTIF($N$1:N297,H301:H1546)),0)),\"\")","v":""}]
[null,null,null,null,null,null,null,null,null,null,null,null,null,{"$f":"IFERROR(INDEX(H302:H1547,MATCH(0,IF(ISBLANK(H302:H1547),1,COUNTIF($N$1:N298,H302:H1547)),0)),\"\")","v":""}]
[null,null,null,null,null,null,null,null,null,null,null,null,null,{"$f":"IFERROR(INDEX(H303:H1548,MATCH(0,IF(ISBLANK(H303:H1548),1,COUNTIF($N$1:N299,H303:H1548)),0)),\"\")","v":""}]
[null,null,null,null,null,null,null,null,null,null,null,null,null,{"$f":"IFERROR(INDEX(H304:H1549,MATCH(0,IF(ISBLANK(H304:H1549),1,COUNTIF($N$1:N300,H304:H1549)),0)),\"\")","v":""}]
[null,null,null,null,null,null,null,null,null,null,null,null,null,{"$f":"IFERROR(INDEX(H305:H1550,MATCH(0,IF(ISBLANK(H305:H1550),1,COUNTIF($N$1:N301,H305:H1550)),0)),\"\")","v":""}]
[null,null,null,null,null,null,null,null,null,null,null,null,null,{"$f":"IFERROR(INDEX(H306:H1551,MATCH(0,IF(ISBLANK(H306:H1551),1,COUNTIF($N$1:N302,H306:H1551)),0)),\"\")","v":""}]
[null,null,null,null,null,null,null,null,null,null,null,null,null,{"$f":"IFERROR(INDEX(H307:H1552,MATCH(0,IF(ISBLANK(H307:H1552),1,COUNTIF($N$1:N303,H307:H1552)),0)),\"\")","v":""}]
[null,null,null,null,null,null,null,null,null,null,null,null,null,{"$f":"IFERROR(INDEX(H308:H1553,MATCH(0,IF(ISBLANK(H308:H1553),1,COUNTIF($N$1:N304,H308:H1553)),0)),\"\")","v":""}]
[null,null,null,null,null,null,null,null,null,null,null,null,null,{"$f":"IFERROR(INDEX(H309:H1554,MATCH(0,IF(ISBLANK(H309:H1554),1,COUNTIF($N$1:N305,H309:H1554)),0)),\"\")","v":""}]
[null,null,null,null,null,null,null,null,null,null,null,null,null,{"$f":"IFERROR(INDEX(H310:H1555,MATCH(0,IF(ISBLANK(H310:H1555),1,COUNTIF($N$1:N306,H310:H1555)),0)),\"\")","v":""}]
[null,null,null,null,null,null,null,null,null,null,null,null,null,{"$f":"IFERROR(INDEX(H311:H1556,MATCH(0,IF(ISBLANK(H311:H1556),1,COUNTIF($N$1:N307,H311:H1556)),0)),\"\")","v":""}]
[null,null,null,null,null,null,null,null,null,null,null,null,null,{"$f":"IFERROR(INDEX(H312:H1557,MATCH(0,IF(ISBLANK(H312:H1557),1,COUNTIF($N$1:N308,H312:H1557)),0)),\"\")","v":""}]
[null,null,null,null,null,null,null,null,null,null,null,null,null,{"$f":"IFERROR(INDEX(H313:H1558,MATCH(0,IF(ISBLANK(H313:H1558),1,COUNTIF($N$1:N309,H313:H1558)),0)),\"\")","v":""}]
[null,null,null,null,null,null,null,null,null,null,null,null,null,{"$f":"IFERROR(INDEX(H314:H1559,MATCH(0,IF(ISBLANK(H314:H1559),1,COUNTIF($N$1:N310,H314:H1559)),0)),\"\")","v":""}]
[null,null,null,null,null,null,null,null,null,null,null,null,null,{"$f":"IFERROR(INDEX(H315:H1560,MATCH(0,IF(ISBLANK(H315:H1560),1,COUNTIF($N$1:N311,H315:H1560)),0)),\"\")","v":""}]
[null,null,null,null,null,null,null,null,null,null,null,null,null,{"$f":"IFERROR(INDEX(H316:H1561,MATCH(0,IF(ISBLANK(H316:H1561),1,COUNTIF($N$1:N312,H316:H1561)),0)),\"\")","v":""}]
[null,null,null,null,null,null,null,null,null,null,null,null,null,{"$f":"IFERROR(INDEX(H317:H1562,MATCH(0,IF(ISBLANK(H317:H1562),1,COUNTIF($N$1:N313,H317:H1562)),0)),\"\")","v":""}]
[null,null,null,null,null,null,null,null,null,null,null,null,null,{"$f":"IFERROR(INDEX(H318:H1563,MATCH(0,IF(ISBLANK(H318:H1563),1,COUNTIF($N$1:N314,H318:H1563)),0)),\"\")","v":""}]
[null,null,null,null,null,null,null,null,null,null,null,null,null,{"$f":"IFERROR(INDEX(H319:H1564,MATCH(0,IF(ISBLANK(H319:H1564),1,COUNTIF($N$1:N315,H319:H1564)),0)),\"\")","v":""}]
[null,null,null,null,null,null,null,null,null,null,null,null,null,{"$f":"IFERROR(INDEX(H320:H1565,MATCH(0,IF(ISBLANK(H320:H1565),1,COUNTIF($N$1:N316,H320:H1565)),0)),\"\")","v":""}]
[null,null,null,null,null,null,null,null,null,null,null,null,null,{"$f":"IFERROR(INDEX(H321:H1566,MATCH(0,IF(ISBLANK(H321:H1566),1,COUNTIF($N$1:N317,H321:H1566)),0)),\"\")","v":""}]
[null,null,null,null,null,null,null,null,null,null,null,null,null,{"$f":"IFERROR(INDEX(H322:H1567,MATCH(0,IF(ISBLANK(H322:H1567),1,COUNTIF($N$1:N318,H322:H1567)),0)),\"\")","v":""}]
[null,null,null,null,null,null,null,null,null,null,null,null,null,{"$f":"IFERROR(INDEX(H323:H1568,MATCH(0,IF(ISBLANK(H323:H1568),1,COUNTIF($N$1:N319,H323:H1568)),0)),\"\")","v":""}]
[null,null,null,null,null,null,null,null,null,null,null,null,null,{"$f":"IFERROR(INDEX(H324:H1569,MATCH(0,IF(ISBLANK(H324:H1569),1,COUNTIF($N$1:N320,H324:H1569)),0)),\"\")","v":""}]
[null,null,null,null,null,null,null,null,null,null,null,null,null,{"$f":"IFERROR(INDEX(H325:H1570,MATCH(0,IF(ISBLANK(H325:H1570),1,COUNTIF($N$1:N321,H325:H1570)),0)),\"\")","v":""}]
[null,null,null,null,null,null,null,null,null,null,null,null,null,{"$f":"IFERROR(INDEX(H326:H1571,MATCH(0,IF(ISBLANK(H326:H1571),1,COUNTIF($N$1:N322,H326:H1571)),0)),\"\")","v":""}]
[null,null,null,null,null,null,null,null,null,null,null,null,null,{"$f":"IFERROR(INDEX(H327:H1572,MATCH(0,IF(ISBLANK(H327:H1572),1,COUNTIF($N$1:N323,H327:H1572)),0)),\"\")","v":""}]
[null,null,null,null,null,null,null,null,null,null,null,null,null,{"$f":"IFERROR(INDEX(H328:H1573,MATCH(0,IF(ISBLANK(H328:H1573),1,COUNTIF($N$1:N324,H328:H1573)),0)),\"\")","v":""}]
[null,null,null,null,null,null,null,null,null,null,null,null,null,{"$f":"IFERROR(INDEX(H329:H1574,MATCH(0,IF(ISBLANK(H329:H1574),1,COUNTIF($N$1:N325,H329:H1574)),0)),\"\")","v":""}]
[null,null,null,null,null,null,null,null,null,null,null,null,null,{"$f":"IFERROR(INDEX(H330:H1575,MATCH(0,IF(ISBLANK(H330:H1575),1,COUNTIF($N$1:N326,H330:H1575)),0)),\"\")","v":""}]
[null,null,null,null,null,null,null,null,null,null,null,null,null,{"$f":"IFERROR(INDEX(H331:H1576,MATCH(0,IF(ISBLANK(H331:H1576),1,COUNTIF($N$1:N327,H331:H1576)),0)),\"\")","v":""}]
[null,null,null,null,null,null,null,null,null,null,null,null,null,{"$f":"IFERROR(INDEX(H332:H1577,MATCH(0,IF(ISBLANK(H332:H1577),1,COUNTIF($N$1:N328,H332:H1577)),0)),\"\")","v":""}]
[null,null,null,null,null,null,null,null,null,null,null,null,null,{"$f":"IFERROR(INDEX(H333:H1578,MATCH(0,IF(ISBLANK(H333:H1578),1,COUNTIF($N$1:N329,H333:H1578)),0)),\"\")","v":""}]
[null,null,null,null,null,null,null,null,null,null,null,null,null,{"$f":"IFERROR(INDEX(H334:H1579,MATCH(0,IF(ISBLANK(H334:H1579),1,COUNTIF($N$1:N330,H334:H1579)),0)),\"\")","v":""}]
[null,null,null,null,null,null,null,null,null,null,null,null,null,{"$f":"IFERROR(INDEX(H335:H1580,MATCH(0,IF(ISBLANK(H335:H1580),1,COUNTIF($N$1:N331,H335:H1580)),0)),\"\")","v":""}]
[null,null,null,null,null,null,null,null,null,null,null,null,null,{"$f":"IFERROR(INDEX(H336:H1581,MATCH(0,IF(ISBLANK(H336:H1581),1,COUNTIF($N$1:N332,H336:H1581)),0)),\"\")","v":""}]
[null,null,null,null,null,null,null,null,null,null,null,null,null,{"$f":"IFERROR(INDEX(H337:H1582,MATCH(0,IF(ISBLANK(H337:H1582),1,COUNTIF($N$1:N333,H337:H1582)),0)),\"\")","v":""}]
[null,null,null,null,null,null,null,null,null,null,null,null,null,{"$f":"IFERROR(INDEX(H338:H1583,MATCH(0,IF(ISBLANK(H338:H1583),1,COUNTIF($N$1:N334,H338:H1583)),0)),\"\")","v":""}]
[null,null,null,null,null,null,null,null,null,null,null,null,null,{"$f":"IFERROR(INDEX(H339:H1584,MATCH(0,IF(ISBLANK(H339:H1584),1,COUNTIF($N$1:N335,H339:H1584)),0)),\"\")","v":""}]
[null,null,null,null,null,null,null,null,null,null,null,null,null,{"$f":"IFERROR(INDEX(H340:H1585,MATCH(0,IF(ISBLANK(H340:H1585),1,COUNTIF($N$1:N336,H340:H1585)),0)),\"\")","v":""}]
[null,null,null,null,null,null,null,null,null,null,null,null,null,{"$f":"IFERROR(INDEX(H341:H1586,MATCH(0,IF(ISBLANK(H341:H1586),1,COUNTIF($N$1:N337,H341:H1586)),0)),\"\")","v":""}]
[null,null,null,null,null,null,null,null,null,null,null,null,null,{"$f":"IFERROR(INDEX(H342:H1587,MATCH(0,IF(ISBLANK(H342:H1587),1,COUNTIF($N$1:N338,H342:H1587)),0)),\"\")","v":""}]
[null,null,null,null,null,null,null,null,null,null,null,null,null,{"$f":"IFERROR(INDEX(H343:H1588,MATCH(0,IF(ISBLANK(H343:H1588),1,COUNTIF($N$1:N339,H343:H1588)),0)),\"\")","v":""}]
[null,null,null,null,null,null,null,null,null,null,null,null,null,{"$f":"IFERROR(INDEX(H344:H1589,MATCH(0,IF(ISBLANK(H344:H1589),1,COUNTIF($N$1:N340,H344:H1589)),0)),\"\")","v":""}]
[null,null,null,null,null,null,null,null,null,null,null,null,null,{"$f":"IFERROR(INDEX(H345:H1590,MATCH(0,IF(ISBLANK(H345:H1590),1,COUNTIF($N$1:N341,H345:H1590)),0)),\"\")","v":""}]
[null,null,null,null,null,null,null,null,null,null,null,null,null,{"$f":"IFERROR(INDEX(H346:H1591,MATCH(0,IF(ISBLANK(H346:H1591),1,COUNTIF($N$1:N342,H346:H1591)),0)),\"\")","v":""}]
[null,null,null,null,null,null,null,null,null,null,null,null,null,{"$f":"IFERROR(INDEX(H347:H1592,MATCH(0,IF(ISBLANK(H347:H1592),1,COUNTIF($N$1:N343,H347:H1592)),0)),\"\")","v":""}]
[null,null,null,null,null,null,null,null,null,null,null,null,null,{"$f":"IFERROR(INDEX(H348:H1593,MATCH(0,IF(ISBLANK(H348:H1593),1,COUNTIF($N$1:N344,H348:H1593)),0)),\"\")","v":""}]
[null,null,null,null,null,null,null,null,null,null,null,null,null,{"$f":"IFERROR(INDEX(H349:H1594,MATCH(0,IF(ISBLANK(H349:H1594),1,COUNTIF($N$1:N345,H349:H1594)),0)),\"\")","v":""}]
[null,null,null,null,null,null,null,null,null,null,null,null,null,{"$f":"IFERROR(INDEX(H350:H1595,MATCH(0,IF(ISBLANK(H350:H1595),1,COUNTIF($N$1:N346,H350:H1595)),0)),\"\")","v":""}]
[null,null,null,null,null,null,null,null,null,null,null,null,null,{"$f":"IFERROR(INDEX(H351:H1596,MATCH(0,IF(ISBLANK(H351:H1596),1,COUNTIF($N$1:N347,H351:H1596)),0)),\"\")","v":""}]
[null,null,null,null,null,null,null,null,null,null,null,null,null,{"$f":"IFERROR(INDEX(H352:H1597,MATCH(0,IF(ISBLANK(H352:H1597),1,COUNTIF($N$1:N348,H352:H1597)),0)),\"\")","v":""}]
[null,null,null,null,null,null,null,null,null,null,null,null,null,{"$f":"IFERROR(INDEX(H353:H1598,MATCH(0,IF(ISBLANK(H353:H1598),1,COUNTIF($N$1:N349,H353:H1598)),0)),\"\")","v":""}]
[null,null,null,null,null,null,null,null,null,null,null,null,null,{"$f":"IFERROR(INDEX(H354:H1599,MATCH(0,IF(ISBLANK(H354:H1599),1,COUNTIF($N$1:N350,H354:H1599)),0)),\"\")","v":""}]
[null,null,null,null,null,null,null,null,null,null,null,null,null,{"$f":"IFERROR(INDEX(H355:H1600,MATCH(0,IF(ISBLANK(H355:H1600),1,COUNTIF($N$1:N351,H355:H1600)),0)),\"\")","v":""}]
[null,null,null,null,null,null,null,null,null,null,null,null,null,{"$f":"IFERROR(INDEX(H356:H1601,MATCH(0,IF(ISBLANK(H356:H1601),1,COUNTIF($N$1:N352,H356:H1601)),0)),\"\")","v":""}]
[null,null,null,null,null,null,null,null,null,null,null,null,null,{"$f":"IFERROR(INDEX(H357:H1602,MATCH(0,IF(ISBLANK(H357:H1602),1,COUNTIF($N$1:N353,H357:H1602)),0)),\"\")","v":""}]
[null,null,null,null,null,null,null,null,null,null,null,null,null,{"$f":"IFERROR(INDEX(H358:H1603,MATCH(0,IF(ISBLANK(H358:H1603),1,COUNTIF($N$1:N354,H358:H1603)),0)),\"\")","v":""}]
[null,null,null,null,null,null,null,null,null,null,null,null,null,{"$f":"IFERROR(INDEX(H359:H1604,MATCH(0,IF(ISBLANK(H359:H1604),1,COUNTIF($N$1:N355,H359:H1604)),0)),\"\")","v":""}]
[null,null,null,null,null,null,null,null,null,null,null,null,null,{"$f":"IFERROR(INDEX(H360:H1605,MATCH(0,IF(ISBLANK(H360:H1605),1,COUNTIF($N$1:N356,H360:H1605)),0)),\"\")","v":""}]
[null,null,null,null,null,null,null,null,null,null,null,null,null,{"$f":"IFERROR(INDEX(H361:H1606,MATCH(0,IF(ISBLANK(H361:H1606),1,COUNTIF($N$1:N357,H361:H1606)),0)),\"\")","v":""}]
[null,null,null,null,null,null,null,null,null,null,null,null,null,{"$f":"IFERROR(INDEX(H362:H1607,MATCH(0,IF(ISBLANK(H362:H1607),1,COUNTIF($N$1:N358,H362:H1607)),0)),\"\")","v":""}]
[null,null,null,null,null,null,null,null,null,null,null,null,null,{"$f":"IFERROR(INDEX(H363:H1608,MATCH(0,IF(ISBLANK(H363:H1608),1,COUNTIF($N$1:N359,H363:H1608)),0)),\"\")","v":""}]
[null,null,null,null,null,null,null,null,null,null,null,null,null,{"$f":"IFERROR(INDEX(H364:H1609,MATCH(0,IF(ISBLANK(H364:H1609),1,COUNTIF($N$1:N360,H364:H1609)),0)),\"\")","v":""}]
[null,null,null,null,null,null,null,null,null,null,null,null,null,{"$f":"IFERROR(INDEX(H365:H1610,MATCH(0,IF(ISBLANK(H365:H1610),1,COUNTIF($N$1:N361,H365:H1610)),0)),\"\")","v":""}]
[null,null,null,null,null,null,null,null,null,null,null,null,null,{"$f":"IFERROR(INDEX(H366:H1611,MATCH(0,IF(ISBLANK(H366:H1611),1,COUNTIF($N$1:N362,H366:H1611)),0)),\"\")","v":""}]
[null,null,null,null,null,null,null,null,null,null,null,null,null,{"$f":"IFERROR(INDEX(H367:H1612,MATCH(0,IF(ISBLANK(H367:H1612),1,COUNTIF($N$1:N363,H367:H1612)),0)),\"\")","v":""}]
[null,null,null,null,null,null,null,null,null,null,null,null,null,{"$f":"IFERROR(INDEX(H368:H1613,MATCH(0,IF(ISBLANK(H368:H1613),1,COUNTIF($N$1:N364,H368:H1613)),0)),\"\")","v":""}]
[null,null,null,null,null,null,null,null,null,null,null,null,null,{"$f":"IFERROR(INDEX(H369:H1614,MATCH(0,IF(ISBLANK(H369:H1614),1,COUNTIF($N$1:N365,H369:H1614)),0)),\"\")","v":""}]
[null,null,null,null,null,null,null,null,null,null,null,null,null,{"$f":"IFERROR(INDEX(H370:H1615,MATCH(0,IF(ISBLANK(H370:H1615),1,COUNTIF($N$1:N366,H370:H1615)),0)),\"\")","v":""}]
[null,null,null,null,null,null,null,null,null,null,null,null,null,{"$f":"IFERROR(INDEX(H371:H1616,MATCH(0,IF(ISBLANK(H371:H1616),1,COUNTIF($N$1:N367,H371:H1616)),0)),\"\")","v":""}]
[null,null,null,null,null,null,null,null,null,null,null,null,null,{"$f":"IFERROR(INDEX(H372:H1617,MATCH(0,IF(ISBLANK(H372:H1617),1,COUNTIF($N$1:N368,H372:H1617)),0)),\"\")","v":""}]
[null,null,null,null,null,null,null,null,null,null,null,null,null,{"$f":"IFERROR(INDEX(H373:H1618,MATCH(0,IF(ISBLANK(H373:H1618),1,COUNTIF($N$1:N369,H373:H1618)),0)),\"\")","v":""}]
[null,null,null,null,null,null,null,null,null,null,null,null,null,{"$f":"IFERROR(INDEX(H374:H1619,MATCH(0,IF(ISBLANK(H374:H1619),1,COUNTIF($N$1:N370,H374:H1619)),0)),\"\")","v":""}]
[null,null,null,null,null,null,null,null,null,null,null,null,null,{"$f":"IFERROR(INDEX(H375:H1620,MATCH(0,IF(ISBLANK(H375:H1620),1,COUNTIF($N$1:N371,H375:H1620)),0)),\"\")","v":""}]
[null,null,null,null,null,null,null,null,null,null,null,null,null,{"$f":"IFERROR(INDEX(H376:H1621,MATCH(0,IF(ISBLANK(H376:H1621),1,COUNTIF($N$1:N372,H376:H1621)),0)),\"\")","v":""}]
[null,null,null,null,null,null,null,null,null,null,null,null,null,{"$f":"IFERROR(INDEX(H377:H1622,MATCH(0,IF(ISBLANK(H377:H1622),1,COUNTIF($N$1:N373,H377:H1622)),0)),\"\")","v":""}]
[null,null,null,null,null,null,null,null,null,null,null,null,null,{"$f":"IFERROR(INDEX(H378:H1623,MATCH(0,IF(ISBLANK(H378:H1623),1,COUNTIF($N$1:N374,H378:H1623)),0)),\"\")","v":""}]
[null,null,null,null,null,null,null,null,null,null,null,null,null,{"$f":"IFERROR(INDEX(H379:H1624,MATCH(0,IF(ISBLANK(H379:H1624),1,COUNTIF($N$1:N375,H379:H1624)),0)),\"\")","v":""}]
[null,null,null,null,null,null,null,null,null,null,null,null,null,{"$f":"IFERROR(INDEX(H380:H1625,MATCH(0,IF(ISBLANK(H380:H1625),1,COUNTIF($N$1:N376,H380:H1625)),0)),\"\")","v":""}]
[null,null,null,null,null,null,null,null,null,null,null,null,null,{"$f":"IFERROR(INDEX(H381:H1626,MATCH(0,IF(ISBLANK(H381:H1626),1,COUNTIF($N$1:N377,H381:H1626)),0)),\"\")","v":""}]
[null,null,null,null,null,null,null,null,null,null,null,null,null,{"$f":"IFERROR(INDEX(H382:H1627,MATCH(0,IF(ISBLANK(H382:H1627),1,COUNTIF($N$1:N378,H382:H1627)),0)),\"\")","v":""}]
[null,null,null,null,null,null,null,null,null,null,null,null,null,{"$f":"IFERROR(INDEX(H383:H1628,MATCH(0,IF(ISBLANK(H383:H1628),1,COUNTIF($N$1:N379,H383:H1628)),0)),\"\")","v":""}]
[null,null,null,null,null,null,null,null,null,null,null,null,null,{"$f":"IFERROR(INDEX(H384:H1629,MATCH(0,IF(ISBLANK(H384:H1629),1,COUNTIF($N$1:N380,H384:H1629)),0)),\"\")","v":""}]
[null,null,null,null,null,null,null,null,null,null,null,null,null,{"$f":"IFERROR(INDEX(H385:H1630,MATCH(0,IF(ISBLANK(H385:H1630),1,COUNTIF($N$1:N381,H385:H1630)),0)),\"\")","v":""}]
[null,null,null,null,null,null,null,null,null,null,null,null,null,{"$f":"IFERROR(INDEX(H386:H1631,MATCH(0,IF(ISBLANK(H386:H1631),1,COUNTIF($N$1:N382,H386:H1631)),0)),\"\")","v":""}]
[null,null,null,null,null,null,null,null,null,null,null,null,null,{"$f":"IFERROR(INDEX(H387:H1632,MATCH(0,IF(ISBLANK(H387:H1632),1,COUNTIF($N$1:N383,H387:H1632)),0)),\"\")","v":""}]
[null,null,null,null,null,null,null,null,null,null,null,null,null,{"$f":"IFERROR(INDEX(H388:H1633,MATCH(0,IF(ISBLANK(H388:H1633),1,COUNTIF($N$1:N384,H388:H1633)),0)),\"\")","v":""}]
[null,null,null,null,null,null,null,null,null,null,null,null,null,{"$f":"IFERROR(INDEX(H389:H1634,MATCH(0,IF(ISBLANK(H389:H1634),1,COUNTIF($N$1:N385,H389:H1634)),0)),\"\")","v":""}]
[null,null,null,null,null,null,null,null,null,null,null,null,null,{"$f":"IFERROR(INDEX(H390:H1635,MATCH(0,IF(ISBLANK(H390:H1635),1,COUNTIF($N$1:N386,H390:H1635)),0)),\"\")","v":""}]
[null,null,null,null,null,null,null,null,null,null,null,null,null,{"$f":"IFERROR(INDEX(H391:H1636,MATCH(0,IF(ISBLANK(H391:H1636),1,COUNTIF($N$1:N387,H391:H1636)),0)),\"\")","v":""}]
[null,null,null,null,null,null,null,null,null,null,null,null,null,{"$f":"IFERROR(INDEX(H392:H1637,MATCH(0,IF(ISBLANK(H392:H1637),1,COUNTIF($N$1:N388,H392:H1637)),0)),\"\")","v":""}]
[null,null,null,null,null,null,null,null,null,null,null,null,null,{"$f":"IFERROR(INDEX(H393:H1638,MATCH(0,IF(ISBLANK(H393:H1638),1,COUNTIF($N$1:N389,H393:H1638)),0)),\"\")","v":""}]
[null,null,null,null,null,null,null,null,null,null,null,null,null,{"$f":"IFERROR(INDEX(H394:H1639,MATCH(0,IF(ISBLANK(H394:H1639),1,COUNTIF($N$1:N390,H394:H1639)),0)),\"\")","v":""}]
[null,null,null,null,null,null,null,null,null,null,null,null,null,{"$f":"IFERROR(INDEX(H395:H1640,MATCH(0,IF(ISBLANK(H395:H1640),1,COUNTIF($N$1:N391,H395:H1640)),0)),\"\")","v":""}]
[null,null,null,null,null,null,null,null,null,null,null,null,null,{"$f":"IFERROR(INDEX(H396:H1641,MATCH(0,IF(ISBLANK(H396:H1641),1,COUNTIF($N$1:N392,H396:H1641)),0)),\"\")","v":""}]
[null,null,null,null,null,null,null,null,null,null,null,null,null,{"$f":"IFERROR(INDEX(H397:H1642,MATCH(0,IF(ISBLANK(H397:H1642),1,COUNTIF($N$1:N393,H397:H1642)),0)),\"\")","v":""}]
[null,null,null,null,null,null,null,null,null,null,null,null,null,{"$f":"IFERROR(INDEX(H398:H1643,MATCH(0,IF(ISBLANK(H398:H1643),1,COUNTIF($N$1:N394,H398:H1643)),0)),\"\")","v":""}]
[null,null,null,null,null,null,null,null,null,null,null,null,null,{"$f":"IFERROR(INDEX(H399:H1644,MATCH(0,IF(ISBLANK(H399:H1644),1,COUNTIF($N$1:N395,H399:H1644)),0)),\"\")","v":""}]
[null,null,null,null,null,null,null,null,null,null,null,null,null,{"$f":"IFERROR(INDEX(H400:H1645,MATCH(0,IF(ISBLANK(H400:H1645),1,COUNTIF($N$1:N396,H400:H1645)),0)),\"\")","v":""}]
[null,null,null,null,null,null,null,null,null,null,null,null,null,{"$f":"IFERROR(INDEX(H401:H1646,MATCH(0,IF(ISBLANK(H401:H1646),1,COUNTIF($N$1:N397,H401:H1646)),0)),\"\")","v":""}]
[null,null,null,null,null,null,null,null,null,null,null,null,null,{"$f":"IFERROR(INDEX(H402:H1647,MATCH(0,IF(ISBLANK(H402:H1647),1,COUNTIF($N$1:N398,H402:H1647)),0)),\"\")","v":""}]
[null,null,null,null,null,null,null,null,null,null,null,null,null,{"$f":"IFERROR(INDEX(H403:H1648,MATCH(0,IF(ISBLANK(H403:H1648),1,COUNTIF($N$1:N399,H403:H1648)),0)),\"\")","v":""}]
[null,null,null,null,null,null,null,null,null,null,null,null,null,{"$f":"IFERROR(INDEX(H404:H1649,MATCH(0,IF(ISBLANK(H404:H1649),1,COUNTIF($N$1:N400,H404:H1649)),0)),\"\")","v":""}]
[null,null,null,null,null,null,null,null,null,null,null,null,null,{"$f":"IFERROR(INDEX(H405:H1650,MATCH(0,IF(ISBLANK(H405:H1650),1,COUNTIF($N$1:N401,H405:H1650)),0)),\"\")","v":""}]
[null,null,null,null,null,null,null,null,null,null,null,null,null,{"$f":"IFERROR(INDEX(H406:H1651,MATCH(0,IF(ISBLANK(H406:H1651),1,COUNTIF($N$1:N402,H406:H1651)),0)),\"\")","v":""}]
[null,null,null,null,null,null,null,null,null,null,null,null,null,{"$f":"IFERROR(INDEX(H407:H1652,MATCH(0,IF(ISBLANK(H407:H1652),1,COUNTIF($N$1:N403,H407:H1652)),0)),\"\")","v":""}]
[null,null,null,null,null,null,null,null,null,null,null,null,null,{"$f":"IFERROR(INDEX(H408:H1653,MATCH(0,IF(ISBLANK(H408:H1653),1,COUNTIF($N$1:N404,H408:H1653)),0)),\"\")","v":""}]
[null,null,null,null,null,null,null,null,null,null,null,null,null,{"$f":"IFERROR(INDEX(H409:H1654,MATCH(0,IF(ISBLANK(H409:H1654),1,COUNTIF($N$1:N405,H409:H1654)),0)),\"\")","v":""}]
[null,null,null,null,null,null,null,null,null,null,null,null,null,{"$f":"IFERROR(INDEX(H410:H1655,MATCH(0,IF(ISBLANK(H410:H1655),1,COUNTIF($N$1:N406,H410:H1655)),0)),\"\")","v":""}]
[null,null,null,null,null,null,null,null,null,null,null,null,null,{"$f":"IFERROR(INDEX(H411:H1656,MATCH(0,IF(ISBLANK(H411:H1656),1,COUNTIF($N$1:N407,H411:H1656)),0)),\"\")","v":""}]
[null,null,null,null,null,null,null,null,null,null,null,null,null,{"$f":"IFERROR(INDEX(H412:H1657,MATCH(0,IF(ISBLANK(H412:H1657),1,COUNTIF($N$1:N408,H412:H1657)),0)),\"\")","v":""}]
[null,null,null,null,null,null,null,null,null,null,null,null,null,{"$f":"IFERROR(INDEX(H413:H1658,MATCH(0,IF(ISBLANK(H413:H1658),1,COUNTIF($N$1:N409,H413:H1658)),0)),\"\")","v":""}]
[null,null,null,null,null,null,null,null,null,null,null,null,null,{"$f":"IFERROR(INDEX(H414:H1659,MATCH(0,IF(ISBLANK(H414:H1659),1,COUNTIF($N$1:N410,H414:H1659)),0)),\"\")","v":""}]
[null,null,null,null,null,null,null,null,null,null,null,null,null,{"$f":"IFERROR(INDEX(H415:H1660,MATCH(0,IF(ISBLANK(H415:H1660),1,COUNTIF($N$1:N411,H415:H1660)),0)),\"\")","v":""}]
[null,null,null,null,null,null,null,null,null,null,null,null,null,{"$f":"IFERROR(INDEX(H416:H1661,MATCH(0,IF(ISBLANK(H416:H1661),1,COUNTIF($N$1:N412,H416:H1661)),0)),\"\")","v":""}]
[null,null,null,null,null,null,null,null,null,null,null,null,null,{"$f":"IFERROR(INDEX(H417:H1662,MATCH(0,IF(ISBLANK(H417:H1662),1,COUNTIF($N$1:N413,H417:H1662)),0)),\"\")","v":""}]
[null,null,null,null,null,null,null,null,null,null,null,null,null,{"$f":"IFERROR(INDEX(H418:H1663,MATCH(0,IF(ISBLANK(H418:H1663),1,COUNTIF($N$1:N414,H418:H1663)),0)),\"\")","v":""}]
[null,null,null,null,null,null,null,null,null,null,null,null,null,{"$f":"IFERROR(INDEX(H419:H1664,MATCH(0,IF(ISBLANK(H419:H1664),1,COUNTIF($N$1:N415,H419:H1664)),0)),\"\")","v":""}]
[null,null,null,null,null,null,null,null,null,null,null,null,null,{"$f":"IFERROR(INDEX(H420:H1665,MATCH(0,IF(ISBLANK(H420:H1665),1,COUNTIF($N$1:N416,H420:H1665)),0)),\"\")","v":""}]
[null,null,null,null,null,null,null,null,null,null,null,null,null,{"$f":"IFERROR(INDEX(H421:H1666,MATCH(0,IF(ISBLANK(H421:H1666),1,COUNTIF($N$1:N417,H421:H1666)),0)),\"\")","v":""}]
[null,null,null,null,null,null,null,null,null,null,null,null,null,{"$f":"IFERROR(INDEX(H422:H1667,MATCH(0,IF(ISBLANK(H422:H1667),1,COUNTIF($N$1:N418,H422:H1667)),0)),\"\")","v":""}]
[null,null,null,null,null,null,null,null,null,null,null,null,null,{"$f":"IFERROR(INDEX(H423:H1668,MATCH(0,IF(ISBLANK(H423:H1668),1,COUNTIF($N$1:N419,H423:H1668)),0)),\"\")","v":""}]
[null,null,null,null,null,null,null,null,null,null,null,null,null,{"$f":"IFERROR(INDEX(H424:H1669,MATCH(0,IF(ISBLANK(H424:H1669),1,COUNTIF($N$1:N420,H424:H1669)),0)),\"\")","v":""}]
[null,null,null,null,null,null,null,null,null,null,null,null,null,{"$f":"IFERROR(INDEX(H425:H1670,MATCH(0,IF(ISBLANK(H425:H1670),1,COUNTIF($N$1:N421,H425:H1670)),0)),\"\")","v":""}]
[null,null,null,null,null,null,null,null,null,null,null,null,null,{"$f":"IFERROR(INDEX(H426:H1671,MATCH(0,IF(ISBLANK(H426:H1671),1,COUNTIF($N$1:N422,H426:H1671)),0)),\"\")","v":""}]
[null,null,null,null,null,null,null,null,null,null,null,null,null,{"$f":"IFERROR(INDEX(H427:H1672,MATCH(0,IF(ISBLANK(H427:H1672),1,COUNTIF($N$1:N423,H427:H1672)),0)),\"\")","v":""}]
[null,null,null,null,null,null,null,null,null,null,null,null,null,{"$f":"IFERROR(INDEX(H428:H1673,MATCH(0,IF(ISBLANK(H428:H1673),1,COUNTIF($N$1:N424,H428:H1673)),0)),\"\")","v":""}]
[null,null,null,null,null,null,null,null,null,null,null,null,null,{"$f":"IFERROR(INDEX(H429:H1674,MATCH(0,IF(ISBLANK(H429:H1674),1,COUNTIF($N$1:N425,H429:H1674)),0)),\"\")","v":""}]
[null,null,null,null,null,null,null,null,null,null,null,null,null,{"$f":"IFERROR(INDEX(H430:H1675,MATCH(0,IF(ISBLANK(H430:H1675),1,COUNTIF($N$1:N426,H430:H1675)),0)),\"\")","v":""}]
[null,null,null,null,null,null,null,null,null,null,null,null,null,{"$f":"IFERROR(INDEX(H431:H1676,MATCH(0,IF(ISBLANK(H431:H1676),1,COUNTIF($N$1:N427,H431:H1676)),0)),\"\")","v":""}]
[null,null,null,null,null,null,null,null,null,null,null,null,null,{"$f":"IFERROR(INDEX(H432:H1677,MATCH(0,IF(ISBLANK(H432:H1677),1,COUNTIF($N$1:N428,H432:H1677)),0)),\"\")","v":""}]
[null,null,null,null,null,null,null,null,null,null,null,null,null,{"$f":"IFERROR(INDEX(H433:H1678,MATCH(0,IF(ISBLANK(H433:H1678),1,COUNTIF($N$1:N429,H433:H1678)),0)),\"\")","v":""}]
[null,null,null,null,null,null,null,null,null,null,null,null,null,{"$f":"IFERROR(INDEX(H434:H1679,MATCH(0,IF(ISBLANK(H434:H1679),1,COUNTIF($N$1:N430,H434:H1679)),0)),\"\")","v":""}]
[null,null,null,null,null,null,null,null,null,null,null,null,null,{"$f":"IFERROR(INDEX(H435:H1680,MATCH(0,IF(ISBLANK(H435:H1680),1,COUNTIF($N$1:N431,H435:H1680)),0)),\"\")","v":""}]
[null,null,null,null,null,null,null,null,null,null,null,null,null,{"$f":"IFERROR(INDEX(H436:H1681,MATCH(0,IF(ISBLANK(H436:H1681),1,COUNTIF($N$1:N432,H436:H1681)),0)),\"\")","v":""}]
[null,null,null,null,null,null,null,null,null,null,null,null,null,{"$f":"IFERROR(INDEX(H437:H1682,MATCH(0,IF(ISBLANK(H437:H1682),1,COUNTIF($N$1:N433,H437:H1682)),0)),\"\")","v":""}]
[null,null,null,null,null,null,null,null,null,null,null,null,null,{"$f":"IFERROR(INDEX(H438:H1683,MATCH(0,IF(ISBLANK(H438:H1683),1,COUNTIF($N$1:N434,H438:H1683)),0)),\"\")","v":""}]
[null,null,null,null,null,null,null,null,null,null,null,null,null,{"$f":"IFERROR(INDEX(H439:H1684,MATCH(0,IF(ISBLANK(H439:H1684),1,COUNTIF($N$1:N435,H439:H1684)),0)),\"\")","v":""}]
[null,null,null,null,null,null,null,null,null,null,null,null,null,{"$f":"IFERROR(INDEX(H440:H1685,MATCH(0,IF(ISBLANK(H440:H1685),1,COUNTIF($N$1:N436,H440:H1685)),0)),\"\")","v":""}]
[null,null,null,null,null,null,null,null,null,null,null,null,null,{"$f":"IFERROR(INDEX(H441:H1686,MATCH(0,IF(ISBLANK(H441:H1686),1,COUNTIF($N$1:N437,H441:H1686)),0)),\"\")","v":""}]
[null,null,null,null,null,null,null,null,null,null,null,null,null,{"$f":"IFERROR(INDEX(H442:H1687,MATCH(0,IF(ISBLANK(H442:H1687),1,COUNTIF($N$1:N438,H442:H1687)),0)),\"\")","v":""}]
[null,null,null,null,null,null,null,null,null,null,null,null,null,{"$f":"IFERROR(INDEX(H443:H1688,MATCH(0,IF(ISBLANK(H443:H1688),1,COUNTIF($N$1:N439,H443:H1688)),0)),\"\")","v":""}]
[null,null,null,null,null,null,null,null,null,null,null,null,null,{"$f":"IFERROR(INDEX(H444:H1689,MATCH(0,IF(ISBLANK(H444:H1689),1,COUNTIF($N$1:N440,H444:H1689)),0)),\"\")","v":""}]
[null,null,null,null,null,null,null,null,null,null,null,null,null,{"$f":"IFERROR(INDEX(H445:H1690,MATCH(0,IF(ISBLANK(H445:H1690),1,COUNTIF($N$1:N441,H445:H1690)),0)),\"\")","v":""}]
[null,null,null,null,null,null,null,null,null,null,null,null,null,{"$f":"IFERROR(INDEX(H446:H1691,MATCH(0,IF(ISBLANK(H446:H1691),1,COUNTIF($N$1:N442,H446:H1691)),0)),\"\")","v":""}]
[null,null,null,null,null,null,null,null,null,null,null,null,null,{"$f":"IFERROR(INDEX(H447:H1692,MATCH(0,IF(ISBLANK(H447:H1692),1,COUNTIF($N$1:N443,H447:H1692)),0)),\"\")","v":""}]
[null,null,null,null,null,null,null,null,null,null,null,null,null,{"$f":"IFERROR(INDEX(H448:H1693,MATCH(0,IF(ISBLANK(H448:H1693),1,COUNTIF($N$1:N444,H448:H1693)),0)),\"\")","v":""}]
[null,null,null,null,null,null,null,null,null,null,null,null,null,{"$f":"IFERROR(INDEX(H449:H1694,MATCH(0,IF(ISBLANK(H449:H1694),1,COUNTIF($N$1:N445,H449:H1694)),0)),\"\")","v":""}]
[null,null,null,null,null,null,null,null,null,null,null,null,null,{"$f":"IFERROR(INDEX(H450:H1695,MATCH(0,IF(ISBLANK(H450:H1695),1,COUNTIF($N$1:N446,H450:H1695)),0)),\"\")","v":""}]
[null,null,null,null,null,null,null,null,null,null,null,null,null,{"$f":"IFERROR(INDEX(H451:H1696,MATCH(0,IF(ISBLANK(H451:H1696),1,COUNTIF($N$1:N447,H451:H1696)),0)),\"\")","v":""}]
[null,null,null,null,null,null,null,null,null,null,null,null,null,{"$f":"IFERROR(INDEX(H452:H1697,MATCH(0,IF(ISBLANK(H452:H1697),1,COUNTIF($N$1:N448,H452:H1697)),0)),\"\")","v":""}]
[null,null,null,null,null,null,null,null,null,null,null,null,null,{"$f":"IFERROR(INDEX(H453:H1698,MATCH(0,IF(ISBLANK(H453:H1698),1,COUNTIF($N$1:N449,H453:H1698)),0)),\"\")","v":""}]
[null,null,null,null,null,null,null,null,null,null,null,null,null,{"$f":"IFERROR(INDEX(H454:H1699,MATCH(0,IF(ISBLANK(H454:H1699),1,COUNTIF($N$1:N450,H454:H1699)),0)),\"\")","v":""}]
[null,null,null,null,null,null,null,null,null,null,null,null,null,{"$f":"IFERROR(INDEX(H455:H1700,MATCH(0,IF(ISBLANK(H455:H1700),1,COUNTIF($N$1:N451,H455:H1700)),0)),\"\")","v":""}]
[null,null,null,null,null,null,null,null,null,null,null,null,null,{"$f":"IFERROR(INDEX(H456:H1701,MATCH(0,IF(ISBLANK(H456:H1701),1,COUNTIF($N$1:N452,H456:H1701)),0)),\"\")","v":""}]
[null,null,null,null,null,null,null,null,null,null,null,null,null,{"$f":"IFERROR(INDEX(H457:H1702,MATCH(0,IF(ISBLANK(H457:H1702),1,COUNTIF($N$1:N453,H457:H1702)),0)),\"\")","v":""}]
[null,null,null,null,null,null,null,null,null,null,null,null,null,{"$f":"IFERROR(INDEX(H458:H1703,MATCH(0,IF(ISBLANK(H458:H1703),1,COUNTIF($N$1:N454,H458:H1703)),0)),\"\")","v":""}]
[null,null,null,null,null,null,null,null,null,null,null,null,null,{"$f":"IFERROR(INDEX(H459:H1704,MATCH(0,IF(ISBLANK(H459:H1704),1,COUNTIF($N$1:N455,H459:H1704)),0)),\"\")","v":""}]
[null,null,null,null,null,null,null,null,null,null,null,null,null,{"$f":"IFERROR(INDEX(H460:H1705,MATCH(0,IF(ISBLANK(H460:H1705),1,COUNTIF($N$1:N456,H460:H1705)),0)),\"\")","v":""}]
[null,null,null,null,null,null,null,null,null,null,null,null,null,{"$f":"IFERROR(INDEX(H461:H1706,MATCH(0,IF(ISBLANK(H461:H1706),1,COUNTIF($N$1:N457,H461:H1706)),0)),\"\")","v":""}]
[null,null,null,null,null,null,null,null,null,null,null,null,null,{"$f":"IFERROR(INDEX(H462:H1707,MATCH(0,IF(ISBLANK(H462:H1707),1,COUNTIF($N$1:N458,H462:H1707)),0)),\"\")","v":""}]
[null,null,null,null,null,null,null,null,null,null,null,null,null,{"$f":"IFERROR(INDEX(H463:H1708,MATCH(0,IF(ISBLANK(H463:H1708),1,COUNTIF($N$1:N459,H463:H1708)),0)),\"\")","v":""}]
[null,null,null,null,null,null,null,null,null,null,null,null,null,{"$f":"IFERROR(INDEX(H464:H1709,MATCH(0,IF(ISBLANK(H464:H1709),1,COUNTIF($N$1:N460,H464:H1709)),0)),\"\")","v":""}]
[null,null,null,null,null,null,null,null,null,null,null,null,null,{"$f":"IFERROR(INDEX(H465:H1710,MATCH(0,IF(ISBLANK(H465:H1710),1,COUNTIF($N$1:N461,H465:H1710)),0)),\"\")","v":""}]
[null,null,null,null,null,null,null,null,null,null,null,null,null,{"$f":"IFERROR(INDEX(H466:H1711,MATCH(0,IF(ISBLANK(H466:H1711),1,COUNTIF($N$1:N462,H466:H1711)),0)),\"\")","v":""}]
[null,null,null,null,null,null,null,null,null,null,null,null,null,{"$f":"IFERROR(INDEX(H467:H1712,MATCH(0,IF(ISBLANK(H467:H1712),1,COUNTIF($N$1:N463,H467:H1712)),0)),\"\")","v":""}]
[null,null,null,null,null,null,null,null,null,null,null,null,null,{"$f":"IFERROR(INDEX(H468:H1713,MATCH(0,IF(ISBLANK(H468:H1713),1,COUNTIF($N$1:N464,H468:H1713)),0)),\"\")","v":""}]
[null,null,null,null,null,null,null,null,null,null,null,null,null,{"$f":"IFERROR(INDEX(H469:H1714,MATCH(0,IF(ISBLANK(H469:H1714),1,COUNTIF($N$1:N465,H469:H1714)),0)),\"\")","v":""}]
[null,null,null,null,null,null,null,null,null,null,null,null,null,{"$f":"IFERROR(INDEX(H470:H1715,MATCH(0,IF(ISBLANK(H470:H1715),1,COUNTIF($N$1:N466,H470:H1715)),0)),\"\")","v":""}]
[null,null,null,null,null,null,null,null,null,null,null,null,null,{"$f":"IFERROR(INDEX(H471:H1716,MATCH(0,IF(ISBLANK(H471:H1716),1,COUNTIF($N$1:N467,H471:H1716)),0)),\"\")","v":""}]
[null,null,null,null,null,null,null,null,null,null,null,null,null,{"$f":"IFERROR(INDEX(H472:H1717,MATCH(0,IF(ISBLANK(H472:H1717),1,COUNTIF($N$1:N468,H472:H1717)),0)),\"\")","v":""}]
[null,null,null,null,null,null,null,null,null,null,null,null,null,{"$f":"IFERROR(INDEX(H473:H1718,MATCH(0,IF(ISBLANK(H473:H1718),1,COUNTIF($N$1:N469,H473:H1718)),0)),\"\")","v":""}]
[null,null,null,null,null,null,null,null,null,null,null,null,null,{"$f":"IFERROR(INDEX(H474:H1719,MATCH(0,IF(ISBLANK(H474:H1719),1,COUNTIF($N$1:N470,H474:H1719)),0)),\"\")","v":""}]
[null,null,null,null,null,null,null,null,null,null,null,null,null,{"$f":"IFERROR(INDEX(H475:H1720,MATCH(0,IF(ISBLANK(H475:H1720),1,COUNTIF($N$1:N471,H475:H1720)),0)),\"\")","v":""}]
[null,null,null,null,null,null,null,null,null,null,null,null,null,{"$f":"IFERROR(INDEX(H476:H1721,MATCH(0,IF(ISBLANK(H476:H1721),1,COUNTIF($N$1:N472,H476:H1721)),0)),\"\")","v":""}]
[null,null,null,null,null,null,null,null,null,null,null,null,null,{"$f":"IFERROR(INDEX(H477:H1722,MATCH(0,IF(ISBLANK(H477:H1722),1,COUNTIF($N$1:N473,H477:H1722)),0)),\"\")","v":""}]
[null,null,null,null,null,null,null,null,null,null,null,null,null,{"$f":"IFERROR(INDEX(H478:H1723,MATCH(0,IF(ISBLANK(H478:H1723),1,COUNTIF($N$1:N474,H478:H1723)),0)),\"\")","v":""}]
[null,null,null,null,null,null,null,null,null,null,null,null,null,{"$f":"IFERROR(INDEX(H479:H1724,MATCH(0,IF(ISBLANK(H479:H1724),1,COUNTIF($N$1:N475,H479:H1724)),0)),\"\")","v":""}]
[null,null,null,null,null,null,null,null,null,null,null,null,null,{"$f":"IFERROR(INDEX(H480:H1725,MATCH(0,IF(ISBLANK(H480:H1725),1,COUNTIF($N$1:N476,H480:H1725)),0)),\"\")","v":""}]
[null,null,null,null,null,null,null,null,null,null,null,null,null,{"$f":"IFERROR(INDEX(H481:H1726,MATCH(0,IF(ISBLANK(H481:H1726),1,COUNTIF($N$1:N477,H481:H1726)),0)),\"\")","v":""}]
[null,null,null,null,null,null,null,null,null,null,null,null,null,{"$f":"IFERROR(INDEX(H482:H1727,MATCH(0,IF(ISBLANK(H482:H1727),1,COUNTIF($N$1:N478,H482:H1727)),0)),\"\")","v":""}]
[null,null,null,null,null,null,null,null,null,null,null,null,null,{"$f":"IFERROR(INDEX(H483:H1728,MATCH(0,IF(ISBLANK(H483:H1728),1,COUNTIF($N$1:N479,H483:H1728)),0)),\"\")","v":""}]
[null,null,null,null,null,null,null,null,null,null,null,null,null,{"$f":"IFERROR(INDEX(H484:H1729,MATCH(0,IF(ISBLANK(H484:H1729),1,COUNTIF($N$1:N480,H484:H1729)),0)),\"\")","v":""}]
[null,null,null,null,null,null,null,null,null,null,null,null,null,{"$f":"IFERROR(INDEX(H485:H1730,MATCH(0,IF(ISBLANK(H485:H1730),1,COUNTIF($N$1:N481,H485:H1730)),0)),\"\")","v":""}]
[null,null,null,null,null,null,null,null,null,null,null,null,null,{"$f":"IFERROR(INDEX(H486:H1731,MATCH(0,IF(ISBLANK(H486:H1731),1,COUNTIF($N$1:N482,H486:H1731)),0)),\"\")","v":""}]
[null,null,null,null,null,null,null,null,null,null,null,null,null,{"$f":"IFERROR(INDEX(H487:H1732,MATCH(0,IF(ISBLANK(H487:H1732),1,COUNTIF($N$1:N483,H487:H1732)),0)),\"\")","v":""}]
[null,null,null,null,null,null,null,null,null,null,null,null,null,{"$f":"IFERROR(INDEX(H488:H1733,MATCH(0,IF(ISBLANK(H488:H1733),1,COUNTIF($N$1:N484,H488:H1733)),0)),\"\")","v":""}]
[null,null,null,null,null,null,null,null,null,null,null,null,null,{"$f":"IFERROR(INDEX(H489:H1734,MATCH(0,IF(ISBLANK(H489:H1734),1,COUNTIF($N$1:N485,H489:H1734)),0)),\"\")","v":""}]
[null,null,null,null,null,null,null,null,null,null,null,null,null,{"$f":"IFERROR(INDEX(H490:H1735,MATCH(0,IF(ISBLANK(H490:H1735),1,COUNTIF($N$1:N486,H490:H1735)),0)),\"\")","v":""}]
[null,null,null,null,null,null,null,null,null,null,null,null,null,{"$f":"IFERROR(INDEX(H491:H1736,MATCH(0,IF(ISBLANK(H491:H1736),1,COUNTIF($N$1:N487,H491:H1736)),0)),\"\")","v":""}]
[null,null,null,null,null,null,null,null,null,null,null,null,null,{"$f":"IFERROR(INDEX(H492:H1737,MATCH(0,IF(ISBLANK(H492:H1737),1,COUNTIF($N$1:N488,H492:H1737)),0)),\"\")","v":""}]
[null,null,null,null,null,null,null,null,null,null,null,null,null,{"$f":"IFERROR(INDEX(H493:H1738,MATCH(0,IF(ISBLANK(H493:H1738),1,COUNTIF($N$1:N489,H493:H1738)),0)),\"\")","v":""}]
[null,null,null,null,null,null,null,null,null,null,null,null,null,{"$f":"IFERROR(INDEX(H494:H1739,MATCH(0,IF(ISBLANK(H494:H1739),1,COUNTIF($N$1:N490,H494:H1739)),0)),\"\")","v":""}]
[null,null,null,null,null,null,null,null,null,null,null,null,null,{"$f":"IFERROR(INDEX(H495:H1740,MATCH(0,IF(ISBLANK(H495:H1740),1,COUNTIF($N$1:N491,H495:H1740)),0)),\"\")","v":""}]
[null,null,null,null,null,null,null,null,null,null,null,null,null,{"$f":"IFERROR(INDEX(H496:H1741,MATCH(0,IF(ISBLANK(H496:H1741),1,COUNTIF($N$1:N492,H496:H1741)),0)),\"\")","v":""}]
[null,null,null,null,null,null,null,null,null,null,null,null,null,{"$f":"IFERROR(INDEX(H497:H1742,MATCH(0,IF(ISBLANK(H497:H1742),1,COUNTIF($N$1:N493,H497:H1742)),0)),\"\")","v":""}]
[null,null,null,null,null,null,null,null,null,null,null,null,null,{"$f":"IFERROR(INDEX(H498:H1743,MATCH(0,IF(ISBLANK(H498:H1743),1,COUNTIF($N$1:N494,H498:H1743)),0)),\"\")","v":""}]
[null,null,null,null,null,null,null,null,null,null,null,null,null,{"$f":"IFERROR(INDEX(H499:H1744,MATCH(0,IF(ISBLANK(H499:H1744),1,COUNTIF($N$1:N495,H499:H1744)),0)),\"\")","v":""}]
[null,null,null,null,null,null,null,null,null,null,null,null,null,{"$f":"IFERROR(INDEX(H500:H1745,MATCH(0,IF(ISBLANK(H500:H1745),1,COUNTIF($N$1:N496,H500:H1745)),0)),\"\")","v":""}]
[null,null,null,null,null,null,null,null,null,null,null,null,null,{"$f":"IFERROR(INDEX(H501:H1746,MATCH(0,IF(ISBLANK(H501:H1746),1,COUNTIF($N$1:N497,H501:H1746)),0)),\"\")","v":""}]
[null,null,null,null,null,null,null,null,null,null,null,null,null,{"$f":"IFERROR(INDEX(H502:H1747,MATCH(0,IF(ISBLANK(H502:H1747),1,COUNTIF($N$1:N498,H502:H1747)),0)),\"\")","v":""}]
[null,null,null,null,null,null,null,null,null,null,null,null,null,{"$f":"IFERROR(INDEX(H503:H1748,MATCH(0,IF(ISBLANK(H503:H1748),1,COUNTIF($N$1:N499,H503:H1748)),0)),\"\")","v":""}]
[null,null,null,null,null,null,null,null,null,null,null,null,null,{"$f":"IFERROR(INDEX(H504:H1749,MATCH(0,IF(ISBLANK(H504:H1749),1,COUNTIF($N$1:N500,H504:H1749)),0)),\"\")","v":""}]
[null,null,null,null,null,null,null,null,null,null,null,null,null,{"$f":"IFERROR(INDEX(H505:H1750,MATCH(0,IF(ISBLANK(H505:H1750),1,COUNTIF($N$1:N501,H505:H1750)),0)),\"\")","v":""}]
[null,null,null,null,null,null,null,null,null,null,null,null,null,{"$f":"IFERROR(INDEX(H506:H1751,MATCH(0,IF(ISBLANK(H506:H1751),1,COUNTIF($N$1:N502,H506:H1751)),0)),\"\")","v":""}]
[null,null,null,null,null,null,null,null,null,null,null,null,null,{"$f":"IFERROR(INDEX(H507:H1752,MATCH(0,IF(ISBLANK(H507:H1752),1,COUNTIF($N$1:N503,H507:H1752)),0)),\"\")","v":""}]
[null,null,null,null,null,null,null,null,null,null,null,null,null,{"$f":"IFERROR(INDEX(H508:H1753,MATCH(0,IF(ISBLANK(H508:H1753),1,COUNTIF($N$1:N504,H508:H1753)),0)),\"\")","v":""}]
[null,null,null,null,null,null,null,null,null,null,null,null,null,{"$f":"IFERROR(INDEX(H509:H1754,MATCH(0,IF(ISBLANK(H509:H1754),1,COUNTIF($N$1:N505,H509:H1754)),0)),\"\")","v":""}]
[null,null,null,null,null,null,null,null,null,null,null,null,null,{"$f":"IFERROR(INDEX(H510:H1755,MATCH(0,IF(ISBLANK(H510:H1755),1,COUNTIF($N$1:N506,H510:H1755)),0)),\"\")","v":""}]
[null,null,null,null,null,null,null,null,null,null,null,null,null,{"$f":"IFERROR(INDEX(H511:H1756,MATCH(0,IF(ISBLANK(H511:H1756),1,COUNTIF($N$1:N507,H511:H1756)),0)),\"\")","v":""}]
[null,null,null,null,null,null,null,null,null,null,null,null,null,{"$f":"IFERROR(INDEX(H512:H1757,MATCH(0,IF(ISBLANK(H512:H1757),1,COUNTIF($N$1:N508,H512:H1757)),0)),\"\")","v":""}]
[null,null,null,null,null,null,null,null,null,null,null,null,null,{"$f":"IFERROR(INDEX(H513:H1758,MATCH(0,IF(ISBLANK(H513:H1758),1,COUNTIF($N$1:N509,H513:H1758)),0)),\"\")","v":""}]
[null,null,null,null,null,null,null,null,null,null,null,null,null,{"$f":"IFERROR(INDEX(H514:H1759,MATCH(0,IF(ISBLANK(H514:H1759),1,COUNTIF($N$1:N510,H514:H1759)),0)),\"\")","v":""}]
[null,null,null,null,null,null,null,null,null,null,null,null,null,{"$f":"IFERROR(INDEX(H515:H1760,MATCH(0,IF(ISBLANK(H515:H1760),1,COUNTIF($N$1:N511,H515:H1760)),0)),\"\")","v":""}]
[null,null,null,null,null,null,null,null,null,null,null,null,null,{"$f":"IFERROR(INDEX(H516:H1761,MATCH(0,IF(ISBLANK(H516:H1761),1,COUNTIF($N$1:N512,H516:H1761)),0)),\"\")","v":""}]
[null,null,null,null,null,null,null,null,null,null,null,null,null,{"$f":"IFERROR(INDEX(H517:H1762,MATCH(0,IF(ISBLANK(H517:H1762),1,COUNTIF($N$1:N513,H517:H1762)),0)),\"\")","v":""}]
[null,null,null,null,null,null,null,null,null,null,null,null,null,{"$f":"IFERROR(INDEX(H518:H1763,MATCH(0,IF(ISBLANK(H518:H1763),1,COUNTIF($N$1:N514,H518:H1763)),0)),\"\")","v":""}]
[null,null,null,null,null,null,null,null,null,null,null,null,null,{"$f":"IFERROR(INDEX(H519:H1764,MATCH(0,IF(ISBLANK(H519:H1764),1,COUNTIF($N$1:N515,H519:H1764)),0)),\"\")","v":""}]
[null,null,null,null,null,null,null,null,null,null,null,null,null,{"$f":"IFERROR(INDEX(H520:H1765,MATCH(0,IF(ISBLANK(H520:H1765),1,COUNTIF($N$1:N516,H520:H1765)),0)),\"\")","v":""}]
[null,null,null,null,null,null,null,null,null,null,null,null,null,{"$f":"IFERROR(INDEX(H521:H1766,MATCH(0,IF(ISBLANK(H521:H1766),1,COUNTIF($N$1:N517,H521:H1766)),0)),\"\")","v":""}]
[null,null,null,null,null,null,null,null,null,null,null,null,null,{"$f":"IFERROR(INDEX(H522:H1767,MATCH(0,IF(ISBLANK(H522:H1767),1,COUNTIF($N$1:N518,H522:H1767)),0)),\"\")","v":""}]
[null,null,null,null,null,null,null,null,null,null,null,null,null,{"$f":"IFERROR(INDEX(H523:H1768,MATCH(0,IF(ISBLANK(H523:H1768),1,COUNTIF($N$1:N519,H523:H1768)),0)),\"\")","v":""}]
[null,null,null,null,null,null,null,null,null,null,null,null,null,{"$f":"IFERROR(INDEX(H524:H1769,MATCH(0,IF(ISBLANK(H524:H1769),1,COUNTIF($N$1:N520,H524:H1769)),0)),\"\")","v":""}]
[null,null,null,null,null,null,null,null,null,null,null,null,null,{"$f":"IFERROR(INDEX(H525:H1770,MATCH(0,IF(ISBLANK(H525:H1770),1,COUNTIF($N$1:N521,H525:H1770)),0)),\"\")","v":""}]
[null,null,null,null,null,null,null,null,null,null,null,null,null,{"$f":"IFERROR(INDEX(H526:H1771,MATCH(0,IF(ISBLANK(H526:H1771),1,COUNTIF($N$1:N522,H526:H1771)),0)),\"\")","v":""}]
[null,null,null,null,null,null,null,null,null,null,null,null,null,{"$f":"IFERROR(INDEX(H527:H1772,MATCH(0,IF(ISBLANK(H527:H1772),1,COUNTIF($N$1:N523,H527:H1772)),0)),\"\")","v":""}]
[null,null,null,null,null,null,null,null,null,null,null,null,null,{"$f":"IFERROR(INDEX(H528:H1773,MATCH(0,IF(ISBLANK(H528:H1773),1,COUNTIF($N$1:N524,H528:H1773)),0)),\"\")","v":""}]
[null,null,null,null,null,null,null,null,null,null,null,null,null,{"$f":"IFERROR(INDEX(H529:H1774,MATCH(0,IF(ISBLANK(H529:H1774),1,COUNTIF($N$1:N525,H529:H1774)),0)),\"\")","v":""}]
[null,null,null,null,null,null,null,null,null,null,null,null,null,{"$f":"IFERROR(INDEX(H530:H1775,MATCH(0,IF(ISBLANK(H530:H1775),1,COUNTIF($N$1:N526,H530:H1775)),0)),\"\")","v":""}]
[null,null,null,null,null,null,null,null,null,null,null,null,null,{"$f":"IFERROR(INDEX(H531:H1776,MATCH(0,IF(ISBLANK(H531:H1776),1,COUNTIF($N$1:N527,H531:H1776)),0)),\"\")","v":""}]
[null,null,null,null,null,null,null,null,null,null,null,null,null,{"$f":"IFERROR(INDEX(H532:H1777,MATCH(0,IF(ISBLANK(H532:H1777),1,COUNTIF($N$1:N528,H532:H1777)),0)),\"\")","v":""}]
[null,null,null,null,null,null,null,null,null,null,null,null,null,{"$f":"IFERROR(INDEX(H533:H1778,MATCH(0,IF(ISBLANK(H533:H1778),1,COUNTIF($N$1:N529,H533:H1778)),0)),\"\")","v":""}]
[null,null,null,null,null,null,null,null,null,null,null,null,null,{"$f":"IFERROR(INDEX(H534:H1779,MATCH(0,IF(ISBLANK(H534:H1779),1,COUNTIF($N$1:N530,H534:H1779)),0)),\"\")","v":""}]
[null,null,null,null,null,null,null,null,null,null,null,null,null,{"$f":"IFERROR(INDEX(H535:H1780,MATCH(0,IF(ISBLANK(H535:H1780),1,COUNTIF($N$1:N531,H535:H1780)),0)),\"\")","v":""}]
[null,null,null,null,null,null,null,null,null,null,null,null,null,{"$f":"IFERROR(INDEX(H536:H1781,MATCH(0,IF(ISBLANK(H536:H1781),1,COUNTIF($N$1:N532,H536:H1781)),0)),\"\")","v":""}]
[null,null,null,null,null,null,null,null,null,null,null,null,null,{"$f":"IFERROR(INDEX(H537:H1782,MATCH(0,IF(ISBLANK(H537:H1782),1,COUNTIF($N$1:N533,H537:H1782)),0)),\"\")","v":""}]
[null,null,null,null,null,null,null,null,null,null,null,null,null,{"$f":"IFERROR(INDEX(H538:H1783,MATCH(0,IF(ISBLANK(H538:H1783),1,COUNTIF($N$1:N534,H538:H1783)),0)),\"\")","v":""}]
[null,null,null,null,null,null,null,null,null,null,null,null,null,{"$f":"IFERROR(INDEX(H539:H1784,MATCH(0,IF(ISBLANK(H539:H1784),1,COUNTIF($N$1:N535,H539:H1784)),0)),\"\")","v":""}]
[null,null,null,null,null,null,null,null,null,null,null,null,null,{"$f":"IFERROR(INDEX(H540:H1785,MATCH(0,IF(ISBLANK(H540:H1785),1,COUNTIF($N$1:N536,H540:H1785)),0)),\"\")","v":""}]
[null,null,null,null,null,null,null,null,null,null,null,null,null,{"$f":"IFERROR(INDEX(H541:H1786,MATCH(0,IF(ISBLANK(H541:H1786),1,COUNTIF($N$1:N537,H541:H1786)),0)),\"\")","v":""}]
[null,null,null,null,null,null,null,null,null,null,null,null,null,{"$f":"IFERROR(INDEX(H542:H1787,MATCH(0,IF(ISBLANK(H542:H1787),1,COUNTIF($N$1:N538,H542:H1787)),0)),\"\")","v":""}]
[null,null,null,null,null,null,null,null,null,null,null,null,null,{"$f":"IFERROR(INDEX(H543:H1788,MATCH(0,IF(ISBLANK(H543:H1788),1,COUNTIF($N$1:N539,H543:H1788)),0)),\"\")","v":""}]
[null,null,null,null,null,null,null,null,null,null,null,null,null,{"$f":"IFERROR(INDEX(H544:H1789,MATCH(0,IF(ISBLANK(H544:H1789),1,COUNTIF($N$1:N540,H544:H1789)),0)),\"\")","v":""}]
[null,null,null,null,null,null,null,null,null,null,null,null,null,{"$f":"IFERROR(INDEX(H545:H1790,MATCH(0,IF(ISBLANK(H545:H1790),1,COUNTIF($N$1:N541,H545:H1790)),0)),\"\")","v":""}]
[null,null,null,null,null,null,null,null,null,null,null,null,null,{"$f":"IFERROR(INDEX(H546:H1791,MATCH(0,IF(ISBLANK(H546:H1791),1,COUNTIF($N$1:N542,H546:H1791)),0)),\"\")","v":""}]
[null,null,null,null,null,null,null,null,null,null,null,null,null,{"$f":"IFERROR(INDEX(H547:H1792,MATCH(0,IF(ISBLANK(H547:H1792),1,COUNTIF($N$1:N543,H547:H1792)),0)),\"\")","v":""}]
[null,null,null,null,null,null,null,null,null,null,null,null,null,{"$f":"IFERROR(INDEX(H548:H1793,MATCH(0,IF(ISBLANK(H548:H1793),1,COUNTIF($N$1:N544,H548:H1793)),0)),\"\")","v":""}]
[null,null,null,null,null,null,null,null,null,null,null,null,null,{"$f":"IFERROR(INDEX(H549:H1794,MATCH(0,IF(ISBLANK(H549:H1794),1,COUNTIF($N$1:N545,H549:H1794)),0)),\"\")","v":""}]
[null,null,null,null,null,null,null,null,null,null,null,null,null,{"$f":"IFERROR(INDEX(H550:H1795,MATCH(0,IF(ISBLANK(H550:H1795),1,COUNTIF($N$1:N546,H550:H1795)),0)),\"\")","v":""}]
[null,null,null,null,null,null,null,null,null,null,null,null,null,{"$f":"IFERROR(INDEX(H551:H1796,MATCH(0,IF(ISBLANK(H551:H1796),1,COUNTIF($N$1:N547,H551:H1796)),0)),\"\")","v":""}]
[null,null,null,null,null,null,null,null,null,null,null,null,null,{"$f":"IFERROR(INDEX(H552:H1797,MATCH(0,IF(ISBLANK(H552:H1797),1,COUNTIF($N$1:N548,H552:H1797)),0)),\"\")","v":""}]
[null,null,null,null,null,null,null,null,null,null,null,null,null,{"$f":"IFERROR(INDEX(H553:H1798,MATCH(0,IF(ISBLANK(H553:H1798),1,COUNTIF($N$1:N549,H553:H1798)),0)),\"\")","v":""}]
[null,null,null,null,null,null,null,null,null,null,null,null,null,{"$f":"IFERROR(INDEX(H554:H1799,MATCH(0,IF(ISBLANK(H554:H1799),1,COUNTIF($N$1:N550,H554:H1799)),0)),\"\")","v":""}]
[null,null,null,null,null,null,null,null,null,null,null,null,null,{"$f":"IFERROR(INDEX(H555:H1800,MATCH(0,IF(ISBLANK(H555:H1800),1,COUNTIF($N$1:N551,H555:H1800)),0)),\"\")","v":""}]
[null,null,null,null,null,null,null,null,null,null,null,null,null,{"$f":"IFERROR(INDEX(H556:H1801,MATCH(0,IF(ISBLANK(H556:H1801),1,COUNTIF($N$1:N552,H556:H1801)),0)),\"\")","v":""}]
[null,null,null,null,null,null,null,null,null,null,null,null,null,{"$f":"IFERROR(INDEX(H557:H1802,MATCH(0,IF(ISBLANK(H557:H1802),1,COUNTIF($N$1:N553,H557:H1802)),0)),\"\")","v":""}]
[null,null,null,null,null,null,null,null,null,null,null,null,null,{"$f":"IFERROR(INDEX(H558:H1803,MATCH(0,IF(ISBLANK(H558:H1803),1,COUNTIF($N$1:N554,H558:H1803)),0)),\"\")","v":""}]
[null,null,null,null,null,null,null,null,null,null,null,null,null,{"$f":"IFERROR(INDEX(H559:H1804,MATCH(0,IF(ISBLANK(H559:H1804),1,COUNTIF($N$1:N555,H559:H1804)),0)),\"\")","v":""}]
[null,null,null,null,null,null,null,null,null,null,null,null,null,{"$f":"IFERROR(INDEX(H560:H1805,MATCH(0,IF(ISBLANK(H560:H1805),1,COUNTIF($N$1:N556,H560:H1805)),0)),\"\")","v":""}]
[null,null,null,null,null,null,null,null,null,null,null,null,null,{"$f":"IFERROR(INDEX(H561:H1806,MATCH(0,IF(ISBLANK(H561:H1806),1,COUNTIF($N$1:N557,H561:H1806)),0)),\"\")","v":""}]
[null,null,null,null,null,null,null,null,null,null,null,null,null,{"$f":"IFERROR(INDEX(H562:H1807,MATCH(0,IF(ISBLANK(H562:H1807),1,COUNTIF($N$1:N558,H562:H1807)),0)),\"\")","v":""}]
[null,null,null,null,null,null,null,null,null,null,null,null,null,{"$f":"IFERROR(INDEX(H563:H1808,MATCH(0,IF(ISBLANK(H563:H1808),1,COUNTIF($N$1:N559,H563:H1808)),0)),\"\")","v":""}]
[null,null,null,null,null,null,null,null,null,null,null,null,null,{"$f":"IFERROR(INDEX(H564:H1809,MATCH(0,IF(ISBLANK(H564:H1809),1,COUNTIF($N$1:N560,H564:H1809)),0)),\"\")","v":""}]
[null,null,null,null,null,null,null,null,null,null,null,null,null,{"$f":"IFERROR(INDEX(H565:H1810,MATCH(0,IF(ISBLANK(H565:H1810),1,COUNTIF($N$1:N561,H565:H1810)),0)),\"\")","v":""}]
[null,null,null,null,null,null,null,null,null,null,null,null,null,{"$f":"IFERROR(INDEX(H566:H1811,MATCH(0,IF(ISBLANK(H566:H1811),1,COUNTIF($N$1:N562,H566:H1811)),0)),\"\")","v":""}]
[null,null,null,null,null,null,null,null,null,null,null,null,null,{"$f":"IFERROR(INDEX(H567:H1812,MATCH(0,IF(ISBLANK(H567:H1812),1,COUNTIF($N$1:N563,H567:H1812)),0)),\"\")","v":""}]
[null,null,null,null,null,null,null,null,null,null,null,null,null,{"$f":"IFERROR(INDEX(H568:H1813,MATCH(0,IF(ISBLANK(H568:H1813),1,COUNTIF($N$1:N564,H568:H1813)),0)),\"\")","v":""}]
[null,null,null,null,null,null,null,null,null,null,null,null,null,{"$f":"IFERROR(INDEX(H569:H1814,MATCH(0,IF(ISBLANK(H569:H1814),1,COUNTIF($N$1:N565,H569:H1814)),0)),\"\")","v":""}]
[null,null,null,null,null,null,null,null,null,null,null,null,null,{"$f":"IFERROR(INDEX(H570:H1815,MATCH(0,IF(ISBLANK(H570:H1815),1,COUNTIF($N$1:N566,H570:H1815)),0)),\"\")","v":""}]
[null,null,null,null,null,null,null,null,null,null,null,null,null,{"$f":"IFERROR(INDEX(H571:H1816,MATCH(0,IF(ISBLANK(H571:H1816),1,COUNTIF($N$1:N567,H571:H1816)),0)),\"\")","v":""}]
[null,null,null,null,null,null,null,null,null,null,null,null,null,{"$f":"IFERROR(INDEX(H572:H1817,MATCH(0,IF(ISBLANK(H572:H1817),1,COUNTIF($N$1:N568,H572:H1817)),0)),\"\")","v":""}]
[null,null,null,null,null,null,null,null,null,null,null,null,null,{"$f":"IFERROR(INDEX(H573:H1818,MATCH(0,IF(ISBLANK(H573:H1818),1,COUNTIF($N$1:N569,H573:H1818)),0)),\"\")","v":""}]
[null,null,null,null,null,null,null,null,null,null,null,null,null,{"$f":"IFERROR(INDEX(H574:H1819,MATCH(0,IF(ISBLANK(H574:H1819),1,COUNTIF($N$1:N570,H574:H1819)),0)),\"\")","v":""}]
[null,null,null,null,null,null,null,null,null,null,null,null,null,{"$f":"IFERROR(INDEX(H575:H1820,MATCH(0,IF(ISBLANK(H575:H1820),1,COUNTIF($N$1:N571,H575:H1820)),0)),\"\")","v":""}]
[null,null,null,null,null,null,null,null,null,null,null,null,null,{"$f":"IFERROR(INDEX(H576:H1821,MATCH(0,IF(ISBLANK(H576:H1821),1,COUNTIF($N$1:N572,H576:H1821)),0)),\"\")","v":""}]
[null,null,null,null,null,null,null,null,null,null,null,null,null,{"$f":"IFERROR(INDEX(H577:H1822,MATCH(0,IF(ISBLANK(H577:H1822),1,COUNTIF($N$1:N573,H577:H1822)),0)),\"\")","v":""}]
[null,null,null,null,null,null,null,null,null,null,null,null,null,{"$f":"IFERROR(INDEX(H578:H1823,MATCH(0,IF(ISBLANK(H578:H1823),1,COUNTIF($N$1:N574,H578:H1823)),0)),\"\")","v":""}]
[null,null,null,null,null,null,null,null,null,null,null,null,null,{"$f":"IFERROR(INDEX(H579:H1824,MATCH(0,IF(ISBLANK(H579:H1824),1,COUNTIF($N$1:N575,H579:H1824)),0)),\"\")","v":""}]
[null,null,null,null,null,null,null,null,null,null,null,null,null,{"$f":"IFERROR(INDEX(H580:H1825,MATCH(0,IF(ISBLANK(H580:H1825),1,COUNTIF($N$1:N576,H580:H1825)),0)),\"\")","v":""}]
[null,null,null,null,null,null,null,null,null,null,null,null,null,{"$f":"IFERROR(INDEX(H581:H1826,MATCH(0,IF(ISBLANK(H581:H1826),1,COUNTIF($N$1:N577,H581:H1826)),0)),\"\")","v":""}]
[null,null,null,null,null,null,null,null,null,null,null,null,null,{"$f":"IFERROR(INDEX(H582:H1827,MATCH(0,IF(ISBLANK(H582:H1827),1,COUNTIF($N$1:N578,H582:H1827)),0)),\"\")","v":""}]
[null,null,null,null,null,null,null,null,null,null,null,null,null,{"$f":"IFERROR(INDEX(H583:H1828,MATCH(0,IF(ISBLANK(H583:H1828),1,COUNTIF($N$1:N579,H583:H1828)),0)),\"\")","v":""}]
[null,null,null,null,null,null,null,null,null,null,null,null,null,{"$f":"IFERROR(INDEX(H584:H1829,MATCH(0,IF(ISBLANK(H584:H1829),1,COUNTIF($N$1:N580,H584:H1829)),0)),\"\")","v":""}]
[null,null,null,null,null,null,null,null,null,null,null,null,null,{"$f":"IFERROR(INDEX(H585:H1830,MATCH(0,IF(ISBLANK(H585:H1830),1,COUNTIF($N$1:N581,H585:H1830)),0)),\"\")","v":""}]
[null,null,null,null,null,null,null,null,null,null,null,null,null,{"$f":"IFERROR(INDEX(H586:H1831,MATCH(0,IF(ISBLANK(H586:H1831),1,COUNTIF($N$1:N582,H586:H1831)),0)),\"\")","v":""}]
[null,null,null,null,null,null,null,null,null,null,null,null,null,{"$f":"IFERROR(INDEX(H587:H1832,MATCH(0,IF(ISBLANK(H587:H1832),1,COUNTIF($N$1:N583,H587:H1832)),0)),\"\")","v":""}]
[null,null,null,null,null,null,null,null,null,null,null,null,null,{"$f":"IFERROR(INDEX(H588:H1833,MATCH(0,IF(ISBLANK(H588:H1833),1,COUNTIF($N$1:N584,H588:H1833)),0)),\"\")","v":""}]
[null,null,null,null,null,null,null,null,null,null,null,null,null,{"$f":"IFERROR(INDEX(H589:H1834,MATCH(0,IF(ISBLANK(H589:H1834),1,COUNTIF($N$1:N585,H589:H1834)),0)),\"\")","v":""}]
[null,null,null,null,null,null,null,null,null,null,null,null,null,{"$f":"IFERROR(INDEX(H590:H1835,MATCH(0,IF(ISBLANK(H590:H1835),1,COUNTIF($N$1:N586,H590:H1835)),0)),\"\")","v":""}]
[null,null,null,null,null,null,null,null,null,null,null,null,null,{"$f":"IFERROR(INDEX(H591:H1836,MATCH(0,IF(ISBLANK(H591:H1836),1,COUNTIF($N$1:N587,H591:H1836)),0)),\"\")","v":""}]
[null,null,null,null,null,null,null,null,null,null,null,null,null,{"$f":"IFERROR(INDEX(H592:H1837,MATCH(0,IF(ISBLANK(H592:H1837),1,COUNTIF($N$1:N588,H592:H1837)),0)),\"\")","v":""}]
[null,null,null,null,null,null,null,null,null,null,null,null,null,{"$f":"IFERROR(INDEX(H593:H1838,MATCH(0,IF(ISBLANK(H593:H1838),1,COUNTIF($N$1:N589,H593:H1838)),0)),\"\")","v":""}]
[null,null,null,null,null,null,null,null,null,null,null,null,null,{"$f":"IFERROR(INDEX(H594:H1839,MATCH(0,IF(ISBLANK(H594:H1839),1,COUNTIF($N$1:N590,H594:H1839)),0)),\"\")","v":""}]
[null,null,null,null,null,null,null,null,null,null,null,null,null,{"$f":"IFERROR(INDEX(H595:H1840,MATCH(0,IF(ISBLANK(H595:H1840),1,COUNTIF($N$1:N591,H595:H1840)),0)),\"\")","v":""}]
[null,null,null,null,null,null,null,null,null,null,null,null,null,{"$f":"IFERROR(INDEX(H596:H1841,MATCH(0,IF(ISBLANK(H596:H1841),1,COUNTIF($N$1:N592,H596:H1841)),0)),\"\")","v":""}]
[null,null,null,null,null,null,null,null,null,null,null,null,null,{"$f":"IFERROR(INDEX(H597:H1842,MATCH(0,IF(ISBLANK(H597:H1842),1,COUNTIF($N$1:N593,H597:H1842)),0)),\"\")","v":""}]
[null,null,null,null,null,null,null,null,null,null,null,null,null,{"$f":"IFERROR(INDEX(H598:H1843,MATCH(0,IF(ISBLANK(H598:H1843),1,COUNTIF($N$1:N594,H598:H1843)),0)),\"\")","v":""}]
[null,null,null,null,null,null,null,null,null,null,null,null,null,{"$f":"IFERROR(INDEX(H599:H1844,MATCH(0,IF(ISBLANK(H599:H1844),1,COUNTIF($N$1:N595,H599:H1844)),0)),\"\")","v":""}]
[null,null,null,null,null,null,null,null,null,null,null,null,null,{"$f":"IFERROR(INDEX(H600:H1845,MATCH(0,IF(ISBLANK(H600:H1845),1,COUNTIF($N$1:N596,H600:H1845)),0)),\"\")","v":""}]
[null,null,null,null,null,null,null,null,null,null,null,null,null,{"$f":"IFERROR(INDEX(H601:H1846,MATCH(0,IF(ISBLANK(H601:H1846),1,COUNTIF($N$1:N597,H601:H1846)),0)),\"\")","v":""}]
[null,null,null,null,null,null,null,null,null,null,null,null,null,{"$f":"IFERROR(INDEX(H602:H1847,MATCH(0,IF(ISBLANK(H602:H1847),1,COUNTIF($N$1:N598,H602:H1847)),0)),\"\")","v":""}]
[null,null,null,null,null,null,null,null,null,null,null,null,null,{"$f":"IFERROR(INDEX(H603:H1848,MATCH(0,IF(ISBLANK(H603:H1848),1,COUNTIF($N$1:N599,H603:H1848)),0)),\"\")","v":""}]
[null,null,null,null,null,null,null,null,null,null,null,null,null,{"$f":"IFERROR(INDEX(H604:H1849,MATCH(0,IF(ISBLANK(H604:H1849),1,COUNTIF($N$1:N600,H604:H1849)),0)),\"\")","v":""}]
[null,null,null,null,null,null,null,null,null,null,null,null,null,{"$f":"IFERROR(INDEX(H605:H1850,MATCH(0,IF(ISBLANK(H605:H1850),1,COUNTIF($N$1:N601,H605:H1850)),0)),\"\")","v":""}]
[null,null,null,null,null,null,null,null,null,null,null,null,null,{"$f":"IFERROR(INDEX(H606:H1851,MATCH(0,IF(ISBLANK(H606:H1851),1,COUNTIF($N$1:N602,H606:H1851)),0)),\"\")","v":""}]
[null,null,null,null,null,null,null,null,null,null,null,null,null,{"$f":"IFERROR(INDEX(H607:H1852,MATCH(0,IF(ISBLANK(H607:H1852),1,COUNTIF($N$1:N603,H607:H1852)),0)),\"\")","v":""}]
[null,null,null,null,null,null,null,null,null,null,null,null,null,{"$f":"IFERROR(INDEX(H608:H1853,MATCH(0,IF(ISBLANK(H608:H1853),1,COUNTIF($N$1:N604,H608:H1853)),0)),\"\")","v":""}]
[null,null,null,null,null,null,null,null,null,null,null,null,null,{"$f":"IFERROR(INDEX(H609:H1854,MATCH(0,IF(ISBLANK(H609:H1854),1,COUNTIF($N$1:N605,H609:H1854)),0)),\"\")","v":""}]
[null,null,null,null,null,null,null,null,null,null,null,null,null,{"$f":"IFERROR(INDEX(H610:H1855,MATCH(0,IF(ISBLANK(H610:H1855),1,COUNTIF($N$1:N606,H610:H1855)),0)),\"\")","v":""}]
[null,null,null,null,null,null,null,null,null,null,null,null,null,{"$f":"IFERROR(INDEX(H611:H1856,MATCH(0,IF(ISBLANK(H611:H1856),1,COUNTIF($N$1:N607,H611:H1856)),0)),\"\")","v":""}]
[null,null,null,null,null,null,null,null,null,null,null,null,null,{"$f":"IFERROR(INDEX(H612:H1857,MATCH(0,IF(ISBLANK(H612:H1857),1,COUNTIF($N$1:N608,H612:H1857)),0)),\"\")","v":""}]
[null,null,null,null,null,null,null,null,null,null,null,null,null,{"$f":"IFERROR(INDEX(H613:H1858,MATCH(0,IF(ISBLANK(H613:H1858),1,COUNTIF($N$1:N609,H613:H1858)),0)),\"\")","v":""}]
[null,null,null,null,null,null,null,null,null,null,null,null,null,{"$f":"IFERROR(INDEX(H614:H1859,MATCH(0,IF(ISBLANK(H614:H1859),1,COUNTIF($N$1:N610,H614:H1859)),0)),\"\")","v":""}]
[null,null,null,null,null,null,null,null,null,null,null,null,null,{"$f":"IFERROR(INDEX(H615:H1860,MATCH(0,IF(ISBLANK(H615:H1860),1,COUNTIF($N$1:N611,H615:H1860)),0)),\"\")","v":""}]
[null,null,null,null,null,null,null,null,null,null,null,null,null,{"$f":"IFERROR(INDEX(H616:H1861,MATCH(0,IF(ISBLANK(H616:H1861),1,COUNTIF($N$1:N612,H616:H1861)),0)),\"\")","v":""}]
[null,null,null,null,null,null,null,null,null,null,null,null,null,{"$f":"IFERROR(INDEX(H617:H1862,MATCH(0,IF(ISBLANK(H617:H1862),1,COUNTIF($N$1:N613,H617:H1862)),0)),\"\")","v":""}]
[null,null,null,null,null,null,null,null,null,null,null,null,null,{"$f":"IFERROR(INDEX(H618:H1863,MATCH(0,IF(ISBLANK(H618:H1863),1,COUNTIF($N$1:N614,H618:H1863)),0)),\"\")","v":""}]
[null,null,null,null,null,null,null,null,null,null,null,null,null,{"$f":"IFERROR(INDEX(H619:H1864,MATCH(0,IF(ISBLANK(H619:H1864),1,COUNTIF($N$1:N615,H619:H1864)),0)),\"\")","v":""}]
[null,null,null,null,null,null,null,null,null,null,null,null,null,{"$f":"IFERROR(INDEX(H620:H1865,MATCH(0,IF(ISBLANK(H620:H1865),1,COUNTIF($N$1:N616,H620:H1865)),0)),\"\")","v":""}]
[null,null,null,null,null,null,null,null,null,null,null,null,null,{"$f":"IFERROR(INDEX(H621:H1866,MATCH(0,IF(ISBLANK(H621:H1866),1,COUNTIF($N$1:N617,H621:H1866)),0)),\"\")","v":""}]
[null,null,null,null,null,null,null,null,null,null,null,null,null,{"$f":"IFERROR(INDEX(H622:H1867,MATCH(0,IF(ISBLANK(H622:H1867),1,COUNTIF($N$1:N618,H622:H1867)),0)),\"\")","v":""}]
[null,null,null,null,null,null,null,null,null,null,null,null,null,{"$f":"IFERROR(INDEX(H623:H1868,MATCH(0,IF(ISBLANK(H623:H1868),1,COUNTIF($N$1:N619,H623:H1868)),0)),\"\")","v":""}]
[null,null,null,null,null,null,null,null,null,null,null,null,null,{"$f":"IFERROR(INDEX(H624:H1869,MATCH(0,IF(ISBLANK(H624:H1869),1,COUNTIF($N$1:N620,H624:H1869)),0)),\"\")","v":""}]
[null,null,null,null,null,null,null,null,null,null,null,null,null,{"$f":"IFERROR(INDEX(H625:H1870,MATCH(0,IF(ISBLANK(H625:H1870),1,COUNTIF($N$1:N621,H625:H1870)),0)),\"\")","v":""}]
[null,null,null,null,null,null,null,null,null,null,null,null,null,{"$f":"IFERROR(INDEX(H626:H1871,MATCH(0,IF(ISBLANK(H626:H1871),1,COUNTIF($N$1:N622,H626:H1871)),0)),\"\")","v":""}]
[null,null,null,null,null,null,null,null,null,null,null,null,null,{"$f":"IFERROR(INDEX(H627:H1872,MATCH(0,IF(ISBLANK(H627:H1872),1,COUNTIF($N$1:N623,H627:H1872)),0)),\"\")","v":""}]
[null,null,null,null,null,null,null,null,null,null,null,null,null,{"$f":"IFERROR(INDEX(H628:H1873,MATCH(0,IF(ISBLANK(H628:H1873),1,COUNTIF($N$1:N624,H628:H1873)),0)),\"\")","v":""}]
[null,null,null,null,null,null,null,null,null,null,null,null,null,{"$f":"IFERROR(INDEX(H629:H1874,MATCH(0,IF(ISBLANK(H629:H1874),1,COUNTIF($N$1:N625,H629:H1874)),0)),\"\")","v":""}]
[null,null,null,null,null,null,null,null,null,null,null,null,null,{"$f":"IFERROR(INDEX(H630:H1875,MATCH(0,IF(ISBLANK(H630:H1875),1,COUNTIF($N$1:N626,H630:H1875)),0)),\"\")","v":""}]
[null,null,null,null,null,null,null,null,null,null,null,null,null,{"$f":"IFERROR(INDEX(H631:H1876,MATCH(0,IF(ISBLANK(H631:H1876),1,COUNTIF($N$1:N627,H631:H1876)),0)),\"\")","v":""}]
[null,null,null,null,null,null,null,null,null,null,null,null,null,{"$f":"IFERROR(INDEX(H632:H1877,MATCH(0,IF(ISBLANK(H632:H1877),1,COUNTIF($N$1:N628,H632:H1877)),0)),\"\")","v":""}]
[null,null,null,null,null,null,null,null,null,null,null,null,null,{"$f":"IFERROR(INDEX(H633:H1878,MATCH(0,IF(ISBLANK(H633:H1878),1,COUNTIF($N$1:N629,H633:H1878)),0)),\"\")","v":""}]
[null,null,null,null,null,null,null,null,null,null,null,null,null,{"$f":"IFERROR(INDEX(H634:H1879,MATCH(0,IF(ISBLANK(H634:H1879),1,COUNTIF($N$1:N630,H634:H1879)),0)),\"\")","v":""}]
[null,null,null,null,null,null,null,null,null,null,null,null,null,{"$f":"IFERROR(INDEX(H635:H1880,MATCH(0,IF(ISBLANK(H635:H1880),1,COUNTIF($N$1:N631,H635:H1880)),0)),\"\")","v":""}]
[null,null,null,null,null,null,null,null,null,null,null,null,null,{"$f":"IFERROR(INDEX(H636:H1881,MATCH(0,IF(ISBLANK(H636:H1881),1,COUNTIF($N$1:N632,H636:H1881)),0)),\"\")","v":""}]
[null,null,null,null,null,null,null,null,null,null,null,null,null,{"$f":"IFERROR(INDEX(H637:H1882,MATCH(0,IF(ISBLANK(H637:H1882),1,COUNTIF($N$1:N633,H637:H1882)),0)),\"\")","v":""}]
[null,null,null,null,null,null,null,null,null,null,null,null,null,{"$f":"IFERROR(INDEX(H638:H1883,MATCH(0,IF(ISBLANK(H638:H1883),1,COUNTIF($N$1:N634,H638:H1883)),0)),\"\")","v":""}]
[null,null,null,null,null,null,null,null,null,null,null,null,null,{"$f":"IFERROR(INDEX(H639:H1884,MATCH(0,IF(ISBLANK(H639:H1884),1,COUNTIF($N$1:N635,H639:H1884)),0)),\"\")","v":""}]
[null,null,null,null,null,null,null,null,null,null,null,null,null,{"$f":"IFERROR(INDEX(H640:H1885,MATCH(0,IF(ISBLANK(H640:H1885),1,COUNTIF($N$1:N636,H640:H1885)),0)),\"\")","v":""}]
[null,null,null,null,null,null,null,null,null,null,null,null,null,{"$f":"IFERROR(INDEX(H641:H1886,MATCH(0,IF(ISBLANK(H641:H1886),1,COUNTIF($N$1:N637,H641:H1886)),0)),\"\")","v":""}]
[null,null,null,null,null,null,null,null,null,null,null,null,null,{"$f":"IFERROR(INDEX(H642:H1887,MATCH(0,IF(ISBLANK(H642:H1887),1,COUNTIF($N$1:N638,H642:H1887)),0)),\"\")","v":""}]
[null,null,null,null,null,null,null,null,null,null,null,null,null,{"$f":"IFERROR(INDEX(H643:H1888,MATCH(0,IF(ISBLANK(H643:H1888),1,COUNTIF($N$1:N639,H643:H1888)),0)),\"\")","v":""}]
[null,null,null,null,null,null,null,null,null,null,null,null,null,{"$f":"IFERROR(INDEX(H644:H1889,MATCH(0,IF(ISBLANK(H644:H1889),1,COUNTIF($N$1:N640,H644:H1889)),0)),\"\")","v":""}]
[null,null,null,null,null,null,null,null,null,null,null,null,null,{"$f":"IFERROR(INDEX(H645:H1890,MATCH(0,IF(ISBLANK(H645:H1890),1,COUNTIF($N$1:N641,H645:H1890)),0)),\"\")","v":""}]
[null,null,null,null,null,null,null,null,null,null,null,null,null,{"$f":"IFERROR(INDEX(H646:H1891,MATCH(0,IF(ISBLANK(H646:H1891),1,COUNTIF($N$1:N642,H646:H1891)),0)),\"\")","v":""}]
[null,null,null,null,null,null,null,null,null,null,null,null,null,{"$f":"IFERROR(INDEX(H647:H1892,MATCH(0,IF(ISBLANK(H647:H1892),1,COUNTIF($N$1:N643,H647:H1892)),0)),\"\")","v":""}]
[null,null,null,null,null,null,null,null,null,null,null,null,null,{"$f":"IFERROR(INDEX(H648:H1893,MATCH(0,IF(ISBLANK(H648:H1893),1,COUNTIF($N$1:N644,H648:H1893)),0)),\"\")","v":""}]
[null,null,null,null,null,null,null,null,null,null,null,null,null,{"$f":"IFERROR(INDEX(H649:H1894,MATCH(0,IF(ISBLANK(H649:H1894),1,COUNTIF($N$1:N645,H649:H1894)),0)),\"\")","v":""}]
[null,null,null,null,null,null,null,null,null,null,null,null,null,{"$f":"IFERROR(INDEX(H650:H1895,MATCH(0,IF(ISBLANK(H650:H1895),1,COUNTIF($N$1:N646,H650:H1895)),0)),\"\")","v":""}]
[null,null,null,null,null,null,null,null,null,null,null,null,null,{"$f":"IFERROR(INDEX(H651:H1896,MATCH(0,IF(ISBLANK(H651:H1896),1,COUNTIF($N$1:N647,H651:H1896)),0)),\"\")","v":""}]
[null,null,null,null,null,null,null,null,null,null,null,null,null,{"$f":"IFERROR(INDEX(H652:H1897,MATCH(0,IF(ISBLANK(H652:H1897),1,COUNTIF($N$1:N648,H652:H1897)),0)),\"\")","v":""}]
[null,null,null,null,null,null,null,null,null,null,null,null,null,{"$f":"IFERROR(INDEX(H653:H1898,MATCH(0,IF(ISBLANK(H653:H1898),1,COUNTIF($N$1:N649,H653:H1898)),0)),\"\")","v":""}]
[null,null,null,null,null,null,null,null,null,null,null,null,null,{"$f":"IFERROR(INDEX(H654:H1899,MATCH(0,IF(ISBLANK(H654:H1899),1,COUNTIF($N$1:N650,H654:H1899)),0)),\"\")","v":""}]
[null,null,null,null,null,null,null,null,null,null,null,null,null,{"$f":"IFERROR(INDEX(H655:H1900,MATCH(0,IF(ISBLANK(H655:H1900),1,COUNTIF($N$1:N651,H655:H1900)),0)),\"\")","v":""}]
[null,null,null,null,null,null,null,null,null,null,null,null,null,{"$f":"IFERROR(INDEX(H656:H1901,MATCH(0,IF(ISBLANK(H656:H1901),1,COUNTIF($N$1:N652,H656:H1901)),0)),\"\")","v":""}]
[null,null,null,null,null,null,null,null,null,null,null,null,null,{"$f":"IFERROR(INDEX(H657:H1902,MATCH(0,IF(ISBLANK(H657:H1902),1,COUNTIF($N$1:N653,H657:H1902)),0)),\"\")","v":""}]
[null,null,null,null,null,null,null,null,null,null,null,null,null,{"$f":"IFERROR(INDEX(H658:H1903,MATCH(0,IF(ISBLANK(H658:H1903),1,COUNTIF($N$1:N654,H658:H1903)),0)),\"\")","v":""}]
[null,null,null,null,null,null,null,null,null,null,null,null,null,{"$f":"IFERROR(INDEX(H659:H1904,MATCH(0,IF(ISBLANK(H659:H1904),1,COUNTIF($N$1:N655,H659:H1904)),0)),\"\")","v":""}]
[null,null,null,null,null,null,null,null,null,null,null,null,null,{"$f":"IFERROR(INDEX(H660:H1905,MATCH(0,IF(ISBLANK(H660:H1905),1,COUNTIF($N$1:N656,H660:H1905)),0)),\"\")","v":""}]
[null,null,null,null,null,null,null,null,null,null,null,null,null,{"$f":"IFERROR(INDEX(H661:H1906,MATCH(0,IF(ISBLANK(H661:H1906),1,COUNTIF($N$1:N657,H661:H1906)),0)),\"\")","v":""}]

{"sheet":"datastudents","index":1,"n_rows":175,"n_cols":12,"rows_kept":175,"cut":false,"hidden":false,"merged":[[4,0,4,3],[4,4,4,7],[4,8,4,11]]}
[]
[]
[]
[]
["تسجيل غياب الطلاب اليومي",null,null,null,"تسجيل الاستئذان اليومي",null,null,null,"تسجيل التأخر اليومي"]
["رقم الطالب","اسم الطالب","الصف والشعبة","تاريخ اليوم","رقم الطالب2","اسم الطالب3","الصف والشعبة4","تاريخ اليوم5","رقم الطالب6","اسم الطالب7","الصف والشعبة8","تاريخ اليوم9"]
[null,{"$f":"IFERROR(VLOOKUP(A7,data,2,FALSE),\"\")","v":""},{"$f":"IFERROR(VLOOKUP(A7,data,5,FALSE),\"\")","v":""},{"$f":"IF(ISNUMBER(A7)=TRUE,TODAY(),\"\")","v":""},null,{"$f":"IFERROR(VLOOKUP(E7,data,2,FALSE),\"\")","v":""},{"$f":"IFERROR(VLOOKUP(E7,data,5,FALSE),\"\")","v":""},{"$f":"IF(ISNUMBER(E7)=TRUE,TODAY(),\"\")","v":""},null,{"$f":"IFERROR(VLOOKUP(I7,data,2,FALSE),\"\")","v":""},{"$f":"IFERROR(VLOOKUP(I7,data,5,FALSE),\"\")","v":""},{"$f":"IF(ISNUMBER(I7)=TRUE,TODAY(),\"\")","v":""}]
[null,"","","",null,"","","",null,"","",""]
[null,"","","",null,"","","",null,"","",""]
[null,"","","",null,"","","",null,"","",""]
[null,"","","",null,"","","",null,"","",""]
[null,"","","",null,"","","",null,"","",""]
[null,"","","",null,"","","",null,"","",""]
[null,"","","",null,"","","",null,"","",""]
[null,"","","",null,"","","",null,"","",""]
[null,"","","",null,"","","",null,"","",""]
[null,"","","",null,"","","",null,"","",""]
[null,"","","",null,"","","",null,"","",""]
[null,"","","",null,"","","",null,"","",""]
[null,"","","",null,"","","",null,"","",""]
[null,"","","",null,"","","",null,"","",""]
[null,"","","",null,"","","",null,"","",""]
[null,"","","",null,"","","",null,"","",""]
[null,"","","",null,"","","",null,"","",""]
[null,"","","",null,"","","",null,"","",""]
[null,"","","",null,"","","",null,"","",""]
[null,"","","",null,"","","",null,"","",""]
[null,"","","",null,"","","",null,"","",""]
[null,"","","",null,"","","",null,"","",""]
[null,"","","",null,"","","",null,"","",""]
[null,"","","",null,"","","",null,"","",""]
[null,"","","",null,"","","",null,"","",""]
[null,"","","",null,"","","",null,"","",""]
[null,"","","",null,"","","",null,"","",""]
[null,"","","",null,"","","",null,"","",""]
[null,"","","",null,"","","",null,"","",""]
[null,"","","",null,"","","",null,"","",""]
[null,"","","",null,"","","",null,"","",""]
[null,{"$f":"IFERROR(VLOOKUP(A39,data,2,FALSE),\"\")","v":""},{"$f":"IFERROR(VLOOKUP(A39,data,5,FALSE),\"\")","v":""},{"$f":"IF(ISNUMBER(A39)=TRUE,TODAY(),\"\")","v":""},null,{"$f":"IFERROR(VLOOKUP(E39,data,2,FALSE),\"\")","v":""},{"$f":"IFERROR(VLOOKUP(E39,data,5,FALSE),\"\")","v":""},{"$f":"IF(ISNUMBER(E39)=TRUE,TODAY(),\"\")","v":""},null,{"$f":"IFERROR(VLOOKUP(I39,data,2,FALSE),\"\")","v":""},{"$f":"IFERROR(VLOOKUP(I39,data,5,FALSE),\"\")","v":""},{"$f":"IF(ISNUMBER(I39)=TRUE,TODAY(),\"\")","v":""}]
[null,"","","",null,"","","",null,"","",""]
[null,"","","",null,"","","",null,"","",""]
[null,"","","",null,"","","",null,"","",""]
[null,"","","",null,"","","",null,"","",""]
[null,"","","",null,"","","",null,"","",""]
[null,"","","",null,"","","",null,"","",""]
[null,"","","",null,"","","",null,"","",""]
[null,"","","",null,"","","",null,"","",""]
[null,"","","",null,"","","",null,"","",""]
[null,"","","",null,"","","",null,"","",""]
[null,"","","",null,"","","",null,"","",""]
[null,"","","",null,"","","",null,"","",""]
[null,"","","",null,"","","",null,"","",""]
[null,"","","",null,"","","",null,"","",""]
[null,"","","",null,"","","",null,"","",""]
[null,"","","",null,"","","",null,"","",""]
[null,"","","",null,"","","",null,"","",""]
[null,"","","",null,"","","",null,"","",""]
[null,"","","",null,"","","",null,"","",""]
[null,"","","",null,"","","",null,"","",""]
[null,"","","",null,"","","",null,"","",""]
[null,"","","",null,"","","",null,"","",""]
[null,"","","",null,"","","",null,"","",""]
[null,"","","",null,"","","",null,"","",""]
[null,"","","",null,"","","",null,"","",""]
[null,"","","",null,"","","",null,"","",""]
[null,"","","",null,"","","",null,"","",""]
[null,"","","",null,"","","",null,"","",""]
[null,"","","",null,"","","",null,"","",""]
[null,"","","",null,"","","",null,"","",""]
[null,"","","",null,"","","",null,"","",""]
[null,{"$f":"IFERROR(VLOOKUP(A71,data,2,FALSE),\"\")","v":""},{"$f":"IFERROR(VLOOKUP(A71,data,5,FALSE),\"\")","v":""},{"$f":"IF(ISNUMBER(A71)=TRUE,TODAY(),\"\")","v":""},null,{"$f":"IFERROR(VLOOKUP(E71,data,2,FALSE),\"\")","v":""},{"$f":"IFERROR(VLOOKUP(E71,data,5,FALSE),\"\")","v":""},{"$f":"IF(ISNUMBER(E71)=TRUE,TODAY(),\"\")","v":""},null,{"$f":"IFERROR(VLOOKUP(I71,data,2,FALSE),\"\")","v":""},{"$f":"IFERROR(VLOOKUP(I71,data,5,FALSE),\"\")","v":""},{"$f":"IF(ISNUMBER(I71)=TRUE,TODAY(),\"\")","v":""}]
[null,"","","",null,"","","",null,"","",""]
[null,"","","",null,"","","",null,"","",""]
[null,"","","",null,"","","",null,"","",""]
[null,"","","",null,"","","",null,"","",""]
[null,"","","",null,"","","",null,"","",""]
[null,"","","",null,"","","",null,"","",""]
[null,"","","",null,"","","",null,"","",""]
[null,"","","",null,"","","",null,"","",""]
[null,"","","",null,"","","",null,"","",""]
[null,"","","",null,"","","",null,"","",""]
[null,"","","",null,"","","",null,"","",""]
[null,"","","",null,"","","",null,"","",""]
[null,"","","",null,"","","",null,"","",""]
[null,"","","",null,"","","",null,"","",""]
[null,"","","",null,"","","",null,"","",""]
[null,"","","",null,"","","",null,"","",""]
[null,"","","",null,"","","",null,"","",""]
[null,"","","",null,"","","",null,"","",""]
[null,"","","",null,"","","",null,"","",""]
[null,"","","",null,"","","",null,"","",""]
[null,"","","",null,"","","",null,"","",""]
[null,"","","",null,"","","",null,"","",""]
[null,"","","",null,"","","",null,"","",""]
[null,"","","",null,"","","",null,"","",""]
[null,"","","",null,"","","",null,"","",""]
[null,"","","",null,"","","",null,"","",""]
[null,"","","",null,"","","",null,"","",""]
[null,"","","",null,"","","",null,"","",""]
[null,"","","",null,"","","",null,"","",""]
[null,"","","",null,"","","",null,"","",""]
[null,"","","",null,"","","",null,"","",""]
[null,{"$f":"IFERROR(VLOOKUP(A103,data,2,FALSE),\"\")","v":""},{"$f":"IFERROR(VLOOKUP(A103,data,5,FALSE),\"\")","v":""},{"$f":"IF(ISNUMBER(A103)=TRUE,TODAY(),\"\")","v":""},null,{"$f":"IFERROR(VLOOKUP(E103,data,2,FALSE),\"\")","v":""},{"$f":"IFERROR(VLOOKUP(E103,data,5,FALSE),\"\")","v":""},{"$f":"IF(ISNUMBER(E103)=TRUE,TODAY(),\"\")","v":""},null,{"$f":"IFERROR(VLOOKUP(I103,data,2,FALSE),\"\")","v":""},{"$f":"IFERROR(VLOOKUP(I103,data,5,FALSE),\"\")","v":""},{"$f":"IF(ISNUMBER(I103)=TRUE,TODAY(),\"\")","v":""}]
[null,"","","",null,"","","",null,"","",""]
[null,"","","",null,"","","",null,"","",""]
[null,"","","",null,"","","",null,"","",""]
[null,"","","",null,"","","",null,"","",""]
[null,"","","",null,"","","",null,"","",""]
[null,"","","",null,"","","",null,"","",""]
[null,"","","",null,"","","",null,"","",""]
[null,"","","",null,"","","",null,"","",""]
[null,"","","",null,"","","",null,"","",""]
[null,"","","",null,"","","",null,"","",""]
[null,"","","",null,"","","",null,"","",""]
[null,"","","",null,"","","",null,"","",""]
[null,"","","",null,"","","",null,"","",""]
[null,"","","",null,"","","",null,"","",""]
[null,"","","",null,"","","",null,"","",""]
[null,"","","",null,"","","",null,"","",""]
[null,"","","",null,"","","",null,"","",""]
[null,"","","",null,"","","",null,"","",""]
[null,"","","",null,"","","",null,"","",""]
[null,"","","",null,"","","",null,"","",""]
[null,"","","",null,"","","",null,"","",""]
[null,"","","",null,"","","",null,"","",""]
[null,"","","",null,"","","",null,"","",""]
[null,"","","",null,"","","",null,"","",""]
[null,"","","",null,"","","",null,"","",""]
[null,"","","",null,"","","",null,"","",""]
[null,"","","",null,"","","",null,"","",""]
[null,"","","",null,"","","",null,"","",""]
[null,"","","",null,"","","",null,"","",""]
[null,"","","",null,"","","",null,"","",""]
[null,"","","",null,"","","",null,"","",""]
[null,{"$f":"IFERROR(VLOOKUP(A135,data,2,FALSE),\"\")","v":""},{"$f":"IFERROR(VLOOKUP(A135,data,5,FALSE),\"\")","v":""},{"$f":"IF(ISNUMBER(A135)=TRUE,TODAY(),\"\")","v":""},null,{"$f":"IFERROR(VLOOKUP(E135,data,2,FALSE),\"\")","v":""},{"$f":"IFERROR(VLOOKUP(E135,data,5,FALSE),\"\")","v":""},{"$f":"IF(ISNUMBER(E135)=TRUE,TODAY(),\"\")","v":""},null,{"$f":"IFERROR(VLOOKUP(I135,data,2,FALSE),\"\")","v":""},{"$f":"IFERROR(VLOOKUP(I135,data,5,FALSE),\"\")","v":""},{"$f":"IF(ISNUMBER(I135)=TRUE,TODAY(),\"\")","v":""}]
[null,"","","",null,"","","",null,"","",""]
[null,"","","",null,"","","",null,"","",""]
[null,"","","",null,"","","",null,"","",""]
[null,"","","",null,"","","",null,"","",""]
[null,"","","",null,"","","",null,"","",""]
[null,"","","",null,"","","",null,"","",""]
[null,"","","",null,"","","",null,"","",""]
[null,"","","",null,"","","",null,"","",""]
[null,"","","",null,"","","",null,"","",""]
[null,"","","",null,"","","",null,"","",""]
[null,"","","",null,"","","",null,"","",""]
[null,"","","",null,"","","",null,"","",""]
[null,"","","",null,"","","",null,"","",""]
[null,"","","",null,"","","",null,"","",""]
[null,"","","",null,"","","",null,"","",""]
[null,"","","",null,"","","",null,"","",""]
[null,"","","",null,"","","",null,"","",""]
[null,"","","",null,"","","",null,"","",""]
[null,"","","",null,"","","",null,"","",""]
[null,"","","",null,"","","",null,"","",""]
[null,"","","",null,"","","",null,"","",""]
[null,"","","",null,"","","",null,"","",""]
[null,"","","",null,"","","",null,"","",""]
[null,"","","",null,"","","",null,"","",""]
[null,"","","",null,"","","",null,"","",""]
[null,"","","",null,"","","",null,"","",""]
[null,"","","",null,"","","",null,"","",""]
[null,"","","",null,"","","",null,"","",""]
[null,"","","",null,"","","",null,"","",""]
[null,"","","",null,"","","",null,"","",""]
[null,"","","",null,"","","",null,"","",""]
[null,{"$f":"IFERROR(VLOOKUP(A167,data,2,FALSE),\"\")","v":""},{"$f":"IFERROR(VLOOKUP(A167,data,5,FALSE),\"\")","v":""},{"$f":"IF(ISNUMBER(A167)=TRUE,TODAY(),\"\")","v":""},null,{"$f":"IFERROR(VLOOKUP(E167,data,2,FALSE),\"\")","v":""},{"$f":"IFERROR(VLOOKUP(E167,data,5,FALSE),\"\")","v":""},{"$f":"IF(ISNUMBER(E167)=TRUE,TODAY(),\"\")","v":""},null,{"$f":"IFERROR(VLOOKUP(I167,data,2,FALSE),\"\")","v":""},{"$f":"IFERROR(VLOOKUP(I167,data,5,FALSE),\"\")","v":""},{"$f":"IF(ISNUMBER(I167)=TRUE,TODAY(),\"\")","v":""}]
[null,"","","",null,"","","",null,"","",""]
[null,"","","",null,"","","",null,"","",""]
[null,"","","",null,"","","",null,"","",""]
[null,"","","",null,"","","",null,"","",""]
[null,"","","",null,"","","",null,"","",""]
[null,"","","",null,"","","",null,"","",""]
[null,"","","",null,"","","",null,"","",""]
[null,"","","",null,"","","",null,"","",""]

{"sheet":"datasave","index":2,"n_rows":6,"n_cols":12,"rows_kept":6,"cut":false,"hidden":false,"merged":[[4,0,4,3],[4,4,4,7],[4,8,4,11]]}
[]
[]
[]
[]
["تسجيل غياب الطلاب اليومي",null,null,null,"تسجيل الاستئذان اليومي",null,null,null,"تسجيل التأخر اليومي"]
["رقم الطالب","اسم الطالب","الصف والشعبة","تاريخ اليوم","رقم الطالب2","اسم الطالب3","الصف والشعبة4","تاريخ اليوم5","رقم الطالب6","اسم الطالب7","الصف والشعبة8","تاريخ اليوم9"]

{"sheet":"repstudent","index":3,"n_rows":209,"n_cols":52,"rows_kept":209,"cut":false,"hidden":false,"merged":[[0,2,0,3],[0,5,0,6],[1,2,1,7],[3,2,3,4],[3,5,3,16],[2,2,2,24],[3,20,3,24],[3,17,3,19],[36,2,36,8],[36,10,36,16],[36,18,36,24],[4,2,4,4],[4,5,4,16],[5,2,5,4],[5,5,5,16],[4,17,4,19],[4,20,4,24],[5,17,5,19],[5,20,5,24],[18,2,18,8],[18,10,18,16],[18,18,18,24],[27,2,27,8],[27,10,27,16],[27,18,27,24],[6,2,6,4],[6,5,6,16],[9,2,9,8],[9,10,9,16],[9,18,9,24]]}
[null,null,null,null,null,null,null,null,null,null,null,null,null,null,null,null,null,null,null,null,null,null,null,null,null," ادخال رقم الطالب",null,null,null,2,{"$f":"INDEX($AJ$1:$AJ$24,AD1)","v":2018},8,{"$f":"INDEX($AK$1:$AK$12,AF1)","v":"August"},null,null,2017,"January"]
[null,null,null,null,null,null,null,null,null,null,null,null,null,null,null,null,null,null,null,null,null,null,null,null,null,20919458,"/",null,null,3,{"$f":"INDEX($AJ$1:$AJ$24,AD2)","v":2019},9,{"$f":"INDEX($AK$1:$AK$12,AF2)","v":"September"},null,null,2018,"February",null,null,null,null,null,null,null,null,null,null,null,20919458,"مايد سعيد علي المهبوبي الشحي","08 [نخبة]/2","2018-12-05"]
[null,null,"الغياب والأستئذان والتأخر",null,null,null,null,null,null,null,null,null,null,null,null,null,null,null,null,null,null,null,null,null,null,null,null,null,null,null,null,10,"October",null,null,2019,"March",null,null,null,null,null,null,null,null,null,null,null,20919458,"مايد سعيد علي المهبوبي الشحي","08 [نخبة]/2","2019-02-27"]
[null,null,"رقم الطالب :",null,null,{"$f":"Z2","v":20919458},null,null,null,null,null,null,null,null,null,null,null,"عدد الغياب",null,null,{"$f":"IF(F4=\"\",\"\",COUNTIF(datasave!$A$7:$A$1253,F4))","v":0},null,null,null,null,null,null,null,null,null,null,11,"November",null,null,2020,"April",null,null,null,null,null,null,null,null,null,null,null,20919458,"مايد سعيد علي المهبوبي الشحي","08 [نخبة]/2","2019-02-17"]
[null,null,"اسم الطالب :",null,null,{"$f":"IFERROR(VLOOKUP(F4,data,2,FALSE),\"\")","v":""},null,null,null,null,null,null,null,null,null,null,null,"عدد الاستئذان",null,null,{"$f":"IF(F4=\"\",\"\",COUNTIF(datasave!$E$7:$E$1253,F4))","v":0},null,null,null,null,null,null,null,null,null,null,12,"December",null,null,2021,"May",null,null,null,null,null,null,null,null,null,"غياب",null,20919458,"مايد سعيد علي المهبوبي الشحي","08 [نخبة]/2","2019-02-04"]
[null,null,"الصف والشعبة :",null,null,{"$f":"IFERROR(VLOOKUP(F4,data,5,FALSE),\"\")","v":""},null,null,null,null,null,null,null,null,null,null,null,"عدد التأخر",null,null,{"$f":"IF(F4=\"\",\"\",COUNTIF(datasave!$I$7:$I$1253,F4))","v":0},null,null,null,null,null,null,null,null,null,null,1,"January",null,null,2022,"June",null,null,null,null,null,null,null,"2019-01-22",null,{"$f":"IFERROR(INDEX(datasave!$D$7:$D$1253,SMALL(IF(($Z$2=datasave!$A$7:$A$1253),ROW(datasave!$A$7:$A$1253)-7),ROW(A1))),\"\")","v":""}]
[null,null,"المسار :",null,null,{"$f":"IFERROR(VLOOKUP(F4,data,4,FALSE),\"\")","v":""},null,null,null,null,null,null,null,null,null,null,null,null,null,null,null,null,null,null,null,null,null,null,null,null,null,2,"February",null,null,2023,"July",null,null,null,null,null,null,null,"2019-02-12",null,{"$f":"IFERROR(INDEX(datasave!$D$7:$D$1253,SMALL(IF(($Z$2=datasave!$A$7:$A$1253),ROW(datasave!$A$7:$A$1253)-7),ROW(A2))),\"\")","v":""}]
[null,null,null,null,null,null,null,null,null,null,null,null,null,null,null,null,null,null,null,null,null,null,null,null,null,null,null,null,null,null,null,3,"March",null,null,2024,"August",null,null,null,null,null,null,null,"2019-02-17",null,{"$f":"IFERROR(INDEX(datasave!$D$7:$D$1253,SMALL(IF(($Z$2=datasave!$A$7:$A$1253),ROW(datasave!$A$7:$A$1253)-7),ROW(A3))),\"\")","v":""}]
[null,null,null,null,null,null,null,null,null,null,null,null,null,null,null,null,null,null,null,null,null,null,null,null,null,null,null,null,null,null,null,4,"April",null,null,2025,"September",null,null,null,null,null,null,null,null,null,{"$f":"IFERROR(INDEX(datasave!$D$7:$D$1253,SMALL(IF(($Z$2=datasave!$A$7:$A$1253),ROW(datasave!$A$7:$A$1253)-7),ROW(A4))),\"\")","v":""}]
[null,null,{"$f":"DATEVALUE(\"1-\"&AG1&\"-\"&$AE$1)","v":"2018-08-01"},null,null,null,null,null,null,null,{"$f":"DATEVALUE(\"1-\"&AG2&\"-\"&$AE$1)","v":"2018-09-01"},null,null,null,null,null,null,null,{"$f":"DATEVALUE(\"1-\"&AG3&\"-\"&$AE$1)","v":"2018-10-01"},null,null,null,null,null,null,null,null,null,null,null,null,5,"May",null,null,2026,"October",null,null,null,null,null,null,null,null,null,{"$f":"IFERROR(INDEX(datasave!$D$7:$D$1253,SMALL(IF(($Z$2=datasave!$A$7:$A$1253),ROW(datasave!$A$7:$A$1253)-7),ROW(A5))),\"\")","v":""}]
[null,null,"SUN","MON","TUE","WED","THU","FRI","SAT",null,"SUN","MON","TUE","WED","THU","FRI","SAT",null,"SUN","MON","TUE","WED","THU","FRI","SAT",null,null,null,null,null,null,6,"June",null,null,2027,"November",null,null,null,null,null,null,null,null,null,{"$f":"IFERROR(INDEX(datasave!$D$7:$D$1253,SMALL(IF(($Z$2=datasave!$A$7:$A$1253),ROW(datasave!$A$7:$A$1253)-7),ROW(A6))),\"\")","v":""}]
[null,null,{"$f":"IF(WEEKDAY($C$10)=COLUMNS(C$10:$C11),$C$10,\"\")","v":""},{"$f":"IF(C12<>\"\",C12+1,IF(WEEKDAY($C$10)=COLUMNS($C$10:D11),$C$10,\"\"))","v":""},{"$f":"IF(D12<>\"\",D12+1,IF(WEEKDAY($C$10)=COLUMNS($C$10:E11),$C$10,\"\"))","v":""},{"$f":"IF(E12<>\"\",E12+1,IF(WEEKDAY($C$10)=COLUMNS($C$10:F11),$C$10,\"\"))","v":"2018-08-01"},{"$f":"IF(F12<>\"\",F12+1,IF(WEEKDAY($C$10)=COLUMNS($C$10:G11),$C$10,\"\"))","v":"2018-08-02"},{"$f":"IF(G12<>\"\",G12+1,IF(WEEKDAY($C$10)=COLUMNS($C$10:H11),$C$10,\"\"))","v":"2018-08-03"},{"$f":"IF(H12<>\"\",H12+1,IF(WEEKDAY($C$10)=COLUMNS($C$10:I11),$C$10,\"\"))","v":"2018-08-04"},null,{"$f":"IF(WEEKDAY($K$10)=COLUMNS($K$10:K11),$K$10,\"\")","v":""},{"$f":"IF(K12<>\"\",K12+1,IF(WEEKDAY($K$10)=COLUMNS($K$10:L11),$K$10,\"\"))","v":""},{"$f":"IF(L12<>\"\",L12+1,IF(WEEKDAY($K$10)=COLUMNS($K$10:M11),$K$10,\"\"))","v":""},{"$f":"IF(M12<>\"\",M12+1,IF(WEEKDAY($K$10)=COLUMNS($K$10:N11),$K$10,\"\"))","v":""},{"$f":"IF(N12<>\"\",N12+1,IF(WEEKDAY($K$10)=COLUMNS($K$10:O11),$K$10,\"\"))","v":""},{"$f":"IF(O12<>\"\",O12+1,IF(WEEKDAY($K$10)=COLUMNS($K$10:P11),$K$10,\"\"))","v":""},{"$f":"IF(P12<>\"\",P12+1,IF(WEEKDAY($K$10)=COLUMNS($K$10:Q11),$K$10,\"\"))","v":"2018-09-01"},null,{"$f":"IF(WEEKDAY($S$10)=COLUMNS($S$10:S11),$S$10,\"\")","v":""},{"$f":"IF(S12<>\"\",S12+1,IF(WEEKDAY($S$10)=COLUMNS($S$10:T11),$S$10,\"\"))","v":"2018-10-01"},{"$f":"IF(T12<>\"\",T12+1,IF(WEEKDAY($S$10)=COLUMNS($S$10:U11),$S$10,\"\"))","v":"2018-10-02"},{"$f":"IF(U12<>\"\",U12+1,IF(WEEKDAY($S$10)=COLUMNS($S$10:V11),$S$10,\"\"))","v":"2018-10-03"},{"$f":"IF(V12<>\"\",V12+1,IF(WEEKDAY($S$10)=COLUMNS($S$10:W11),$S$10,\"\"))","v":"2018-10-04"},{"$f":"IF(W12<>\"\",W12+1,IF(WEEKDAY($S$10)=COLUMNS($S$10:X11),$S$10,\"\"))","v":"2018-10-05"},{"$f":"IF(X12<>\"\",X12+1,IF(WEEKDAY($S$10)=COLUMNS($S$10:Y11),$S$10,\"\"))","v":"2018-10-06"},null,null,null,null,null,null,7,"July",null,null,2028,"December",null,null,null,null,null,null,null,null,null,{"$f":"IFERROR(INDEX(datasave!$D$7:$D$1253,SMALL(IF(($Z$2=datasave!$A$7:$A$1253),ROW(datasave!$A$7:$A$1253)-7),ROW(A7))),\"\")","v":""}]
[null,null,{"$f":"I12+1","v":"2018-08-05"},{"$f":"C13+1","v":"2018-08-06"},{"$f":"D13+1","v":"2018-08-07"},"2018-08-08","2018-08-09","2018-08-10","2018-08-11",null,{"$f":"Q12+1","v":"2018-09-02"},{"$f":"K13+1","v":"2018-09-03"},{"$f":"L13+1","v":"2018-09-04"},"2018-09-05","2018-09-06","2018-09-07","2018-09-08",null,{"$f":"Y12+1","v":"2018-10-07"},{"$f":"S13+1","v":"2018-10-08"},{"$f":"T13+1","v":"2018-10-09"},"2018-10-10","2018-10-11","2018-10-12","2018-10-13",null,null,null,null,null,null,null,null,null,null,2029,null,null,null,null,null,null,null,null,null,null,{"$f":"IFERROR(INDEX(datasave!$D$7:$D$1253,SMALL(IF(($Z$2=datasave!$A$7:$A$1253),ROW(datasave!$A$7:$A$1253)-7),ROW(A8))),\"\")","v":""}]
[null,null,{"$f":"I13+1","v":"2018-08-12"},{"$f":"C14+1","v":"2018-08-13"},"2018-08-14","2018-08-15","2018-08-16","2018-08-17","2018-08-18",null,{"$f":"Q13+1","v":"2018-09-09"},{"$f":"K14+1","v":"2018-09-10"},{"$f":"L14+1","v":"2018-09-11"},"2018-09-12","2018-09-13","2018-09-14","2018-09-15",null,{"$f":"Y13+1","v":"2018-10-14"},{"$f":"S14+1","v":"2018-10-15"},{"$f":"T14+1","v":"2018-10-16"},"2018-10-17","2018-10-18","2018-10-19","2018-10-20",null,null,null,null,null,null,null,null,null,null,2030,null,null,null,null,null,null,null,null,null,null,{"$f":"IFERROR(INDEX(datasave!$D$7:$D$1253,SMALL(IF(($Z$2=datasave!$A$7:$A$1253),ROW(datasave!$A$7:$A$1253)-7),ROW(A9))),\"\")","v":""}]
[null,null,{"$f":"I14+1","v":"2018-08-19"},{"$f":"C15+1","v":"2018-08-20"},"2018-08-21","2018-08-22","2018-08-23","2018-08-24","2018-08-25",null,{"$f":"Q14+1","v":"2018-09-16"},{"$f":"K15+1","v":"2018-09-17"},{"$f":"L15+1","v":"2018-09-18"},"2018-09-19","2018-09-20","2018-09-21","2018-09-22",null,{"$f":"Y14+1","v":"2018-10-21"},{"$f":"S15+1","v":"2018-10-22"},{"$f":"T15+1","v":"2018-10-23"},"2018-10-24","2018-10-25","2018-10-26","2018-10-27",null,null,null,null,null,null,null,null,null,null,2031,null,null,null,null,null,null,null,null,null,null,{"$f":"IFERROR(INDEX(datasave!$D$7:$D$1253,SMALL(IF(($Z$2=datasave!$A$7:$A$1253),ROW(datasave!$A$7:$A$1253)-7),ROW(A10))),\"\")","v":""}]
[null,null,{"$f":"IFERROR(IF(EOMONTH($C$10,0)>I15,I15+1,\"\"),\"\")","v":"2018-08-26"},{"$f":"IFERROR(IF(EOMONTH($C$10,0)>C16,C16+1,\"\"),\"\")","v":"2018-08-27"},{"$f":"IFERROR(IF(EOMONTH($C$10,0)>D16,D16+1,\"\"),\"\")","v":"2018-08-28"},"2018-08-29","2018-08-30","2018-08-31","",null,{"$f":"IFERROR(IF(EOMONTH($K$10,0)>Q15,Q15+1,\"\"),\"\")","v":"2018-09-23"},{"$f":"IFERROR(IF(EOMONTH($K$10,0)>K16,K16+1,\"\"),\"\")","v":"2018-09-24"},{"$f":"IFERROR(IF(EOMONTH($K$10,0)>L16,L16+1,\"\"),\"\")","v":"2018-09-25"},"2018-09-26","2018-09-27","2018-09-28","2018-09-29",null,{"$f":"IFERROR(IF(EOMONTH($S$10,0)>Y15,Y15+1,\"\"),\"\")","v":"2018-10-28"},{"$f":"IFERROR(IF(EOMONTH($S$10,0)>S16,S16+1,\"\"),\"\")","v":"2018-10-29"},"2018-10-30","2018-10-31","","","",null,null,null,null,null,null,null,null,null,null,2032,null,null,null,null,null,null,null,null,null,null,{"$f":"IFERROR(INDEX(datasave!$D$7:$D$1253,SMALL(IF(($Z$2=datasave!$A$7:$A$1253),ROW(datasave!$A$7:$A$1253)-7),ROW(A11))),\"\")","v":""}]
[null,null,{"$f":"IFERROR(IF(EOMONTH($C$10,0)>I16,I16+1,\"\"),\"\")","v":""},{"$f":"IFERROR(IF(EOMONTH($C$10,0)>C17,C17+1,\"\"),\"\")","v":""},"","","","","",null,{"$f":"IFERROR(IF(EOMONTH($K$10,0)>Q16,Q16+1,\"\"),\"\")","v":"2018-09-30"},{"$f":"IFERROR(IF(EOMONTH($K$10,0)>K17,K17+1,\"\"),\"\")","v":""},{"$f":"IFERROR(IF(EOMONTH($K$10,0)>L17,L17+1,\"\"),\"\")","v":""},"","","","",null,{"$f":"IFERROR(IF(EOMONTH($S$10,0)>Y16,Y16+1,\"\"),\"\")","v":""},"","","","","","",null,null,null,null,null,null,null,null,null,null,2033,null,null,null,null,null,null,null,null,null,null,{"$f":"IFERROR(INDEX(datasave!$D$7:$D$1253,SMALL(IF(($Z$2=datasave!$A$7:$A$1253),ROW(datasave!$A$7:$A$1253)-7),ROW(A12))),\"\")","v":""}]
[null,null,null,null,null,null,null,null,null,null,null,null,null,null,null,null,null,null,null,null,null,null,null,null,null,null,null,null,null,null,null,null,null,null,null,2034,null,null,null,null,null,null,null,null,null,null,{"$f":"IFERROR(INDEX(datasave!$D$7:$D$1253,SMALL(IF(($Z$2=datasave!$A$7:$A$1253),ROW(datasave!$A$7:$A$1253)-7),ROW(A13))),\"\")","v":""}]
[null,null,{"$f":"DATEVALUE(\"1-\"&AG4&\"-\"&$AE$1)","v":"2018-11-01"},null,null,null,null,null,null,null,{"$f":"DATEVALUE(\"1-\"&AG5&\"-\"&$AE$1)","v":"2018-12-01"},null,null,null,null,null,null,null,{"$f":"DATEVALUE(\"1-\"&$AG$6&\"-\"&$AE$2)","v":"2019-01-01"},null,null,null,null,null,null,null,null,null,null,null,null,null,null,null,null,2035,null,null,null,null,null,null,null,null,null,null,{"$f":"IFERROR(INDEX(datasave!$D$7:$D$1253,SMALL(IF(($Z$2=datasave!$A$7:$A$1253),ROW(datasave!$A$7:$A$1253)-7),ROW(A14))),\"\")","v":""}]
[null,null,"SUN","MON","TUE","WED","THU","FRI","SAT",null,"SUN","MON","TUE","WED","THU","FRI","SAT",null,"SUN","MON","TUE","WED","THU","FRI","SAT",null,null,null,null,null,null,null,null,null,null,2036,null,null,null,null,null,null,null,null,null,null,{"$f":"IFERROR(INDEX(datasave!$D$7:$D$1253,SMALL(IF(($Z$2=datasave!$A$7:$A$1253),ROW(datasave!$A$7:$A$1253)-7),ROW(A15))),\"\")","v":""}]
[null,null,{"$f":"IF(WEEKDAY($C$19)=COLUMNS(C$10:$C20),$C$19,\"\")","v":""},{"$f":"IF(C21<>\"\",C21+1,IF(WEEKDAY($C$19)=COLUMNS($C$19:D20),$C$19,\"\"))","v":""},{"$f":"IF(D21<>\"\",D21+1,IF(WEEKDAY($C$19)=COLUMNS($C$19:E20),$C$19,\"\"))","v":""},{"$f":"IF(E21<>\"\",E21+1,IF(WEEKDAY($C$19)=COLUMNS($C$19:F20),$C$19,\"\"))","v":""},{"$f":"IF(F21<>\"\",F21+1,IF(WEEKDAY($C$19)=COLUMNS($C$19:G20),$C$19,\"\"))","v":"2018-11-01"},{"$f":"IF(G21<>\"\",G21+1,IF(WEEKDAY($C$19)=COLUMNS($C$19:H20),$C$19,\"\"))","v":"2018-11-02"},{"$f":"IF(H21<>\"\",H21+1,IF(WEEKDAY($C$19)=COLUMNS($C$19:I20),$C$19,\"\"))","v":"2018-11-03"},null,{"$f":"IF(WEEKDAY($K$19)=COLUMNS($K$19:K20),$K$19,\"\")","v":""},{"$f":"IF(K21<>\"\",K21+1,IF(WEEKDAY($K$19)=COLUMNS($K$19:L20),$K$19,\"\"))","v":""},{"$f":"IF(L21<>\"\",L21+1,IF(WEEKDAY($K$19)=COLUMNS($K$19:M20),$K$19,\"\"))","v":""},{"$f":"IF(M21<>\"\",M21+1,IF(WEEKDAY($K$19)=COLUMNS($K$19:N20),$K$19,\"\"))","v":""},{"$f":"IF(N21<>\"\",N21+1,IF(WEEKDAY($K$19)=COLUMNS($K$19:O20),$K$19,\"\"))","v":""},{"$f":"IF(O21<>\"\",O21+1,IF(WEEKDAY($K$19)=COLUMNS($K$19:P20),$K$19,\"\"))","v":""},{"$f":"IF(P21<>\"\",P21+1,IF(WEEKDAY($K$19)=COLUMNS($K$19:Q20),$K$19,\"\"))","v":"2018-12-01"},null,{"$f":"IF(WEEKDAY($S$19)=COLUMNS($S$19:S20),$S$19,\"\")","v":""},{"$f":"IF(S21<>\"\",S21+1,IF(WEEKDAY($S$19)=COLUMNS($S$19:T20),$S$19,\"\"))","v":""},{"$f":"IF(T21<>\"\",T21+1,IF(WEEKDAY($S$19)=COLUMNS($S$19:U20),$S$19,\"\"))","v":"2019-01-01"},{"$f":"IF(U21<>\"\",U21+1,IF(WEEKDAY($S$19)=COLUMNS($S$19:V20),$S$19,\"\"))","v":"2019-01-02"},{"$f":"IF(V21<>\"\",V21+1,IF(WEEKDAY($S$19)=COLUMNS($S$19:W20),$S$19,\"\"))","v":"2019-01-03"},{"$f":"IF(W21<>\"\",W21+1,IF(WEEKDAY($S$19)=COLUMNS($S$19:X20),$S$19,\"\"))","v":"2019-01-04"},{"$f":"IF(X21<>\"\",X21+1,IF(WEEKDAY($S$19)=COLUMNS($S$19:Y20),$S$19,\"\"))","v":"2019-01-05"},null,null,null,null,null,null,null,null,null,null,2037,null,null,null,null,null,null,null,null,null,null,{"$f":"IFERROR(INDEX(datasave!$D$7:$D$1253,SMALL(IF(($Z$2=datasave!$A$7:$A$1253),ROW(datasave!$A$7:$A$1253)-7),ROW(A16))),\"\")","v":""}]
[null,null,{"$f":"I21+1","v":"2018-11-04"},{"$f":"C22+1","v":"2018-11-05"},{"$f":"D22+1","v":"2018-11-06"},"2018-11-07","2018-11-08","2018-11-09","2018-11-10",null,{"$f":"Q21+1","v":"2018-12-02"},{"$f":"K22+1","v":"2018-12-03"},{"$f":"L22+1","v":"2018-12-04"},"2018-12-05","2018-12-06","2018-12-07","2018-12-08",null,{"$f":"Y21+1","v":"2019-01-06"},{"$f":"S22+1","v":"2019-01-07"},{"$f":"T22+1","v":"2019-01-08"},"2019-01-09","2019-01-10","2019-01-11","2019-01-12",null,null,null,null,null,null,null,null,null,null,2038,null,null,null,null,null,null,null,null,null,null,{"$f":"IFERROR(INDEX(datasave!$D$7:$D$1253,SMALL(IF(($Z$2=datasave!$A$7:$A$1253),ROW(datasave!$A$7:$A$1253)-7),ROW(A17))),\"\")","v":""}]
[null,null,{"$f":"I22+1","v":"2018-11-11"},{"$f":"C23+1","v":"2018-11-12"},{"$f":"D23+1","v":"2018-11-13"},"2018-11-14","2018-11-15","2018-11-16","2018-11-17",null,{"$f":"Q22+1","v":"2018-12-09"},{"$f":"K23+1","v":"2018-12-10"},{"$f":"L23+1","v":"2018-12-11"},"2018-12-12","2018-12-13","2018-12-14","2018-12-15",null,{"$f":"Y22+1","v":"2019-01-13"},{"$f":"S23+1","v":"2019-01-14"},{"$f":"T23+1","v":"2019-01-15"},"2019-01-16","2019-01-17","2019-01-18","2019-01-19",null,null,null,null,null,null,null,null,null,null,2039,null,null,null,null,null,null,null,null,null,null,{"$f":"IFERROR(INDEX(datasave!$D$7:$D$1253,SMALL(IF(($Z$2=datasave!$A$7:$A$1253),ROW(datasave!$A$7:$A$1253)-7),ROW(A18))),\"\")","v":""}]
[null,null,{"$f":"I23+1","v":"2018-11-18"},{"$f":"C24+1","v":"2018-11-19"},{"$f":"D24+1","v":"2018-11-20"},"2018-11-21","2018-11-22","2018-11-23","2018-11-24",null,{"$f":"Q23+1","v":"2018-12-16"},{"$f":"K24+1","v":"2018-12-17"},{"$f":"L24+1","v":"2018-12-18"},"2018-12-19","2018-12-20","2018-12-21","2018-12-22",null,{"$f":"Y23+1","v":"2019-01-20"},{"$f":"S24+1","v":"2019-01-21"},{"$f":"T24+1","v":"2019-01-22"},"2019-01-23","2019-01-24","2019-01-25","2019-01-26",null,null,null,null,null,null,null,null,null,null,2040,null,null,null,null,null,null,null,null,null,null,{"$f":"IFERROR(INDEX(datasave!$D$7:$D$1253,SMALL(IF(($Z$2=datasave!$A$7:$A$1253),ROW(datasave!$A$7:$A$1253)-7),ROW(A19))),\"\")","v":""}]
[null,null,{"$f":"IFERROR(IF(EOMONTH($C$19,0)>I24,I24+1,\"\"),\"\")","v":"2018-11-25"},{"$f":"IFERROR(IF(EOMONTH($C$19,0)>C25,C25+1,\"\"),\"\")","v":"2018-11-26"},"2018-11-27","2018-11-28","2018-11-29","2018-11-30","",null,{"$f":"IFERROR(IF(EOMONTH($K$19,0)>Q24,Q24+1,\"\"),\"\")","v":"2018-12-23"},{"$f":"IFERROR(IF(EOMONTH($K$19,0)>K25,K25+1,\"\"),\"\")","v":"2018-12-24"},"2018-12-25","2018-12-26","2018-12-27","2018-12-28","2018-12-29",null,{"$f":"IFERROR(IF(EOMONTH($S$19,0)>Y24,Y24+1,\"\"),\"\")","v":"2019-01-27"},{"$f":"IFERROR(IF(EOMONTH($S$19,0)>S25,S25+1,\"\"),\"\")","v":"2019-01-28"},"2019-01-29","2019-01-30","2019-01-31","","",null,null,null,null,null,null,null,null,null,null,null,null,null,null,null,null,null,null,null,null,null,{"$f":"IFERROR(INDEX(datasave!$D$7:$D$1253,SMALL(IF(($Z$2=datasave!$A$7:$A$1253),ROW(datasave!$A$7:$A$1253)-7),ROW(A20))),\"\")","v":""}]
[null,null,{"$f":"IFERROR(IF(EOMONTH($C$19,0)>I25,I25+1,\"\"),\"\")","v":""},"","","","","","",null,{"$f":"IFERROR(IF(EOMONTH($K$19,0)>Q25,Q25+1,\"\"),\"\")","v":"2018-12-30"},"2018-12-31","","","","","",null,{"$f":"IFERROR(IF(EOMONTH($S$19,0)>Y25,Y25+1,\"\"),\"\")","v":""},"","","","","","",null,null,null,null,null,null,null,null,null,null,null,null,null,null,null,null,null,null,null,null,null,{"$f":"IFERROR(INDEX(datasave!$D$7:$D$1253,SMALL(IF(($Z$2=datasave!$A$7:$A$1253),ROW(datasave!$A$7:$A$1253)-7),ROW(A21))),\"\")","v":""}]
[null,null,null,null,null,null,null,null,null,null,null,null,null,null,null,null,null,null,null,null,null,null,null,null,null,null,null,null,null,null,null,null,null,null,null,null,null,null,null,null,null,null,null,null,null,null,{"$f":"IFERROR(INDEX(datasave!$D$7:$D$1253,SMALL(IF(($Z$2=datasave!$A$7:$A$1253),ROW(datasave!$A$7:$A$1253)-7),ROW(A22))),\"\")","v":""}]
[null,null,{"$f":"DATEVALUE(\"1-\"&$AG$7&\"-\"&$AE$2)","v":"2019-02-01"},null,null,null,null,null,null,null,{"$f":"DATEVALUE(\"1-\"&$AG$8&\"-\"&$AE$2)","v":"2019-03-01"},null,null,null,null,null,null,null,{"$f":"DATEVALUE(\"1-\"&$AG$9&\"-\"&$AE$2)","v":"2019-04-01"},null,null,null,null,null,null,null,null,null,null,null,null,null,null,null,null,null,null,null,null,null,null,null,null,null,null,null,{"$f":"IFERROR(INDEX(datasave!$D$7:$D$1253,SMALL(IF(($Z$2=datasave!$A$7:$A$1253),ROW(datasave!$A$7:$A$1253)-7),ROW(A23))),\"\")","v":""}]
[null,null,"SUN","MON","TUE","WED","THU","FRI","SAT",null,"SUN","MON","TUE","WED","THU","FRI","SAT",null,"SUN","MON","TUE","WED","THU","FRI","SAT",null,null,null,null,null,null,null,null,null,null,null,null,null,null,null,null,null,null,null,null,null,{"$f":"IFERROR(INDEX(datasave!$D$7:$D$1253,SMALL(IF(($Z$2=datasave!$A$7:$A$1253),ROW(datasave!$A$7:$A$1253)-7),ROW(A24))),\"\")","v":""}]
[null,null,{"$f":"IF(WEEKDAY($C$28)=COLUMNS(C$10:$C29),$C$28,\"\")","v":""},{"$f":"IF(C30<>\"\",C30+1,IF(WEEKDAY($C$28)=COLUMNS($C$28:D29),$C$28,\"\"))","v":""},{"$f":"IF(D30<>\"\",D30+1,IF(WEEKDAY($C$28)=COLUMNS($C$28:E29),$C$28,\"\"))","v":""},{"$f":"IF(E30<>\"\",E30+1,IF(WEEKDAY($C$28)=COLUMNS($C$28:F29),$C$28,\"\"))","v":""},{"$f":"IF(F30<>\"\",F30+1,IF(WEEKDAY($C$28)=COLUMNS($C$28:G29),$C$28,\"\"))","v":""},{"$f":"IF(G30<>\"\",G30+1,IF(WEEKDAY($C$28)=COLUMNS($C$28:H29),$C$28,\"\"))","v":"2019-02-01"},{"$f":"IF(H30<>\"\",H30+1,IF(WEEKDAY($C$28)=COLUMNS($C$28:I29),$C$28,\"\"))","v":"2019-02-02"},null,{"$f":"IF(WEEKDAY($K$28)=COLUMNS($K$28:K29),$K$28,\"\")","v":""},{"$f":"IF(K30<>\"\",K30+1,IF(WEEKDAY($K$28)=COLUMNS($K$28:L29),$K$28,\"\"))","v":""},{"$f":"IF(L30<>\"\",L30+1,IF(WEEKDAY($K$28)=COLUMNS($K$28:M29),$K$28,\"\"))","v":""},{"$f":"IF(M30<>\"\",M30+1,IF(WEEKDAY($K$28)=COLUMNS($K$28:N29),$K$28,\"\"))","v":""},{"$f":"IF(N30<>\"\",N30+1,IF(WEEKDAY($K$28)=COLUMNS($K$28:O29),$K$28,\"\"))","v":""},{"$f":"IF(O30<>\"\",O30+1,IF(WEEKDAY($K$28)=COLUMNS($K$28:P29),$K$28,\"\"))","v":"2019-03-01"},{"$f":"IF(P30<>\"\",P30+1,IF(WEEKDAY($K$28)=COLUMNS($K$28:Q29),$K$28,\"\"))","v":"2019-03-02"},null,{"$f":"IF(WEEKDAY($S$28)=COLUMNS($S$28:S29),$S$28,\"\")","v":""},{"$f":"IF(S30<>\"\",S30+1,IF(WEEKDAY($S$28)=COLUMNS($S$28:T29),$S$28,\"\"))","v":"2019-04-01"},{"$f":"IF(T30<>\"\",T30+1,IF(WEEKDAY($S$28)=COLUMNS($S$28:U29),$S$28,\"\"))","v":"2019-04-02"},{"$f":"IF(U30<>\"\",U30+1,IF(WEEKDAY($S$28)=COLUMNS($S$28:V29),$S$28,\"\"))","v":"2019-04-03"},{"$f":"IF(V30<>\"\",V30+1,IF(WEEKDAY($S$28)=COLUMNS($S$28:W29),$S$28,\"\"))","v":"2019-04-04"},{"$f":"IF(W30<>\"\",W30+1,IF(WEEKDAY($S$28)=COLUMNS($S$28:X29),$S$28,\"\"))","v":"2019-04-05"},{"$f":"IF(X30<>\"\",X30+1,IF(WEEKDAY($S$28)=COLUMNS($S$28:Y29),$S$28,\"\"))","v":"2019-04-06"},null,null,null,null,null,null,null,null,null,null,null,null,null,null,null,null,null,null,null,null,null,{"$f":"IFERROR(INDEX(datasave!$D$7:$D$1253,SMALL(IF(($Z$2=datasave!$A$7:$A$1253),ROW(datasave!$A$7:$A$1253)-7),ROW(A25))),\"\")","v":""}]
[null,null,{"$f":"I30+1","v":"2019-02-03"},{"$f":"C31+1","v":"2019-02-04"},{"$f":"D31+1","v":"2019-02-05"},"2019-02-06","2019-02-07","2019-02-08","2019-02-09",null,{"$f":"Q30+1","v":"2019-03-03"},{"$f":"K31+1","v":"2019-03-04"},{"$f":"L31+1","v":"2019-03-05"},"2019-03-06","2019-03-07","2019-03-08","2019-03-09",null,{"$f":"Y30+1","v":"2019-04-07"},{"$f":"S31+1","v":"2019-04-08"},{"$f":"T31+1","v":"2019-04-09"},"2019-04-10","2019-04-11","2019-04-12","2019-04-13",null,null,null,null,null,null,null,null,null,null,null,null,null,null,null,null,null,null,null,null,null,{"$f":"IFERROR(INDEX(datasave!$D$7:$D$1253,SMALL(IF(($Z$2=datasave!$A$7:$A$1253),ROW(datasave!$A$7:$A$1253)-7),ROW(A26))),\"\")","v":""}]
[null,null,{"$f":"I31+1","v":"2019-02-10"},{"$f":"C32+1","v":"2019-02-11"},{"$f":"D32+1","v":"2019-02-12"},"2019-02-13","2019-02-14","2019-02-15","2019-02-16",null,{"$f":"Q31+1","v":"2019-03-10"},{"$f":"K32+1","v":"2019-03-11"},{"$f":"L32+1","v":"2019-03-12"},"2019-03-13","2019-03-14","2019-03-15","2019-03-16",null,{"$f":"Y31+1","v":"2019-04-14"},{"$f":"S32+1","v":"2019-04-15"},{"$f":"T32+1","v":"2019-04-16"},"2019-04-17","2019-04-18","2019-04-19","2019-04-20",null,null,null,null,null,null,null,null,null,null,null,null,null,null,null,null,null,null,null,null,null,{"$f":"IFERROR(INDEX(datasave!$D$7:$D$1253,SMALL(IF(($Z$2=datasave!$A$7:$A$1253),ROW(datasave!$A$7:$A$1253)-7),ROW(A27))),\"\")","v":""}]
[null,null,{"$f":"I32+1","v":"2019-02-17"},{"$f":"C33+1","v":"2019-02-18"},{"$f":"D33+1","v":"2019-02-19"},"2019-02-20","2019-02-21","2019-02-22","2019-02-23",null,{"$f":"Q32+1","v":"2019-03-17"},{"$f":"K33+1","v":"2019-03-18"},{"$f":"L33+1","v":"2019-03-19"},"2019-03-20","2019-03-21","2019-03-22","2019-03-23",null,{"$f":"Y32+1","v":"2019-04-21"},{"$f":"S33+1","v":"2019-04-22"},{"$f":"T33+1","v":"2019-04-23"},"2019-04-24","2019-04-25","2019-04-26","2019-04-27",null,null,null,null,null,null,null,null,null,null,null,null,null,null,null,null,null,null,null,null,null,{"$f":"IFERROR(INDEX(datasave!$D$7:$D$1253,SMALL(IF(($Z$2=datasave!$A$7:$A$1253),ROW(datasave!$A$7:$A$1253)-7),ROW(A28))),\"\")","v":""}]
[null,null,{"$f":"IFERROR(IF(EOMONTH($C$28,0)>I33,I33+1,\"\"),\"\")","v":"2019-02-24"},{"$f":"IFERROR(IF(EOMONTH($C$28,0)>C34,C34+1,\"\"),\"\")","v":"2019-02-25"},"2019-02-26","2019-02-27","2019-02-28","","",null,{"$f":"IFERROR(IF(EOMONTH($K$28,0)>Q33,Q33+1,\"\"),\"\")","v":"2019-03-24"},{"$f":"IFERROR(IF(EOMONTH($K$28,0)>K34,K34+1,\"\"),\"\")","v":"2019-03-25"},"2019-03-26","2019-03-27","2019-03-28","2019-03-29","2019-03-30",null,{"$f":"IFERROR(IF(EOMONTH($S$28,0)>Y33,Y33+1,\"\"),\"\")","v":"2019-04-28"},{"$f":"IFERROR(IF(EOMONTH($S$28,0)>S34,S34+1,\"\"),\"\")","v":"2019-04-29"},"2019-04-30","","","","",null,null,null,null,null,null,null,null,null,null,null,null,null,null,null,null,null,null,null,null,null,{"$f":"IFERROR(INDEX(datasave!$D$7:$D$1253,SMALL(IF(($Z$2=datasave!$A$7:$A$1253),ROW(datasave!$A$7:$A$1253)-7),ROW(A29))),\"\")","v":""}]
[null,null,{"$f":"IFERROR(IF(EOMONTH($C$28,0)>I34,I34+1,\"\"),\"\")","v":""},"","","","","","",null,{"$f":"IFERROR(IF(EOMONTH($K$28,0)>Q34,Q34+1,\"\"),\"\")","v":"2019-03-31"},"","","","","","",null,{"$f":"IFERROR(IF(EOMONTH($S$28,0)>Y34,Y34+1,\"\"),\"\")","v":""},"","","","","","",null,null,null,null,null,null,null,null,null,null,null,null,null,null,null,null,null,null,null,null,null,{"$f":"IFERROR(INDEX(datasave!$D$7:$D$1253,SMALL(IF(($Z$2=datasave!$A$7:$A$1253),ROW(datasave!$A$7:$A$1253)-7),ROW(A30))),\"\")","v":""}]
[null,null,null,null,null,null,null,null,null,null,null,null,null,null,null,null,null,null,null,null,null,null,null,null,null,null,null,null,null,null,null,null,null,null,null,null,null,null,null,null,null,null,null,null,null,null,{"$f":"IFERROR(INDEX(datasave!$D$7:$D$1253,SMALL(IF(($Z$2=datasave!$A$7:$A$1253),ROW(datasave!$A$7:$A$1253)-7),ROW(A31))),\"\")","v":""}]
[null,null,{"$f":"DATEVALUE(\"1-\"&$AG$10&\"-\"&$AE$2)","v":"2019-05-01"},null,null,null,null,null,null,null,{"$f":"DATEVALUE(\"1-\"&$AG$11&\"-\"&$AE$2)","v":"2019-06-01"},null,null,null,null,null,null,null,{"$f":"DATEVALUE(\"1-\"&$AG$12&\"-\"&$AE$2)","v":"2019-07-01"},null,null,null,null,null,null,null,null,null,null,null,null,null,null,null,null,null,null,null,null,null,null,null,null,null,null,null,{"$f":"IFERROR(INDEX(datasave!$D$7:$D$1253,SMALL(IF(($Z$2=datasave!$A$7:$A$1253),ROW(datasave!$A$7:$A$1253)-7),ROW(A32))),\"\")","v":""}]
[null,null,"SUN","MON","TUE","WED","THU","FRI","SAT",null,"SUN","MON","TUE","WED","THU","FRI","SAT",null,"SUN","MON","TUE","WED","THU","FRI","SAT",null,null,null,null,null,null,null,null,null,null,null,null,null,null,null,null,null,null,null,null,null,{"$f":"IFERROR(INDEX(datasave!$D$7:$D$1253,SMALL(IF(($Z$2=datasave!$A$7:$A$1253),ROW(datasave!$A$7:$A$1253)-7),ROW(A33))),\"\")","v":""}]
[null,null,{"$f":"IF(WEEKDAY($C$37)=COLUMNS(C$10:$C38),$C$37,\"\")","v":""},{"$f":"IF(C39<>\"\",C39+1,IF(WEEKDAY($C$37)=COLUMNS($C$37:D38),$C$37,\"\"))","v":""},{"$f":"IF(D39<>\"\",D39+1,IF(WEEKDAY($C$37)=COLUMNS($C$37:E38),$C$37,\"\"))","v":""},{"$f":"IF(E39<>\"\",E39+1,IF(WEEKDAY($C$37)=COLUMNS($C$37:F38),$C$37,\"\"))","v":"2019-05-01"},{"$f":"IF(F39<>\"\",F39+1,IF(WEEKDAY($C$37)=COLUMNS($C$37:G38),$C$37,\"\"))","v":"2019-05-02"},{"$f":"IF(G39<>\"\",G39+1,IF(WEEKDAY($C$37)=COLUMNS($C$37:H38),$C$37,\"\"))","v":"2019-05-03"},{"$f":"IF(H39<>\"\",H39+1,IF(WEEKDAY($C$37)=COLUMNS($C$37:I38),$C$37,\"\"))","v":"2019-05-04"},null,{"$f":"IF(WEEKDAY($K$37)=COLUMNS($K$37:K38),$K$37,\"\")","v":""},{"$f":"IF(K39<>\"\",K39+1,IF(WEEKDAY($K$37)=COLUMNS($K$37:L38),$K$37,\"\"))","v":""},{"$f":"IF(L39<>\"\",L39+1,IF(WEEKDAY($K$37)=COLUMNS($K$37:M38),$K$37,\"\"))","v":""},{"$f":"IF(M39<>\"\",M39+1,IF(WEEKDAY($K$37)=COLUMNS($K$37:N38),$K$37,\"\"))","v":""},{"$f":"IF(N39<>\"\",N39+1,IF(WEEKDAY($K$37)=COLUMNS($K$37:O38),$K$37,\"\"))","v":""},{"$f":"IF(O39<>\"\",O39+1,IF(WEEKDAY($K$37)=COLUMNS($K$37:P38),$K$37,\"\"))","v":""},{"$f":"IF(P39<>\"\",P39+1,IF(WEEKDAY($K$37)=COLUMNS($K$37:Q38),$K$37,\"\"))","v":"2019-06-01"},null,{"$f":"IF(WEEKDAY($S$37)=COLUMNS($S$37:S38),$S$37,\"\")","v":""},{"$f":"IF(S39<>\"\",S39+1,IF(WEEKDAY($S$37)=COLUMNS($S$37:T38),$S$37,\"\"))","v":"2019-07-01"},{"$f":"IF(T39<>\"\",T39+1,IF(WEEKDAY($S$37)=COLUMNS($S$37:U38),$S$37,\"\"))","v":"2019-07-02"},{"$f":"IF(U39<>\"\",U39+1,IF(WEEKDAY($S$37)=COLUMNS($S$37:V38),$S$37,\"\"))","v":"2019-07-03"},{"$f":"IF(V39<>\"\",V39+1,IF(WEEKDAY($S$37)=COLUMNS($S$37:W38),$S$37,\"\"))","v":"2019-07-04"},{"$f":"IF(W39<>\"\",W39+1,IF(WEEKDAY($S$37)=COLUMNS($S$37:X38),$S$37,\"\"))","v":"2019-07-05"},{"$f":"IF(X39<>\"\",X39+1,IF(WEEKDAY($S$37)=COLUMNS($S$37:Y38),$S$37,\"\"))","v":"2019-07-06"},null,null,null,null,null,null,null,null,null,null,null,null,null,null,null,null,null,null,null,null,null,{"$f":"IFERROR(INDEX(datasave!$D$7:$D$1253,SMALL(IF(($Z$2=datasave!$A$7:$A$1253),ROW(datasave!$A$7:$A$1253)-7),ROW(A34))),\"\")","v":""}]
[null,null,{"$f":"I39+1","v":"2019-05-05"},{"$f":"C40+1","v":"2019-05-06"},{"$f":"D40+1","v":"2019-05-07"},"2019-05-08","2019-05-09","2019-05-10","2019-05-11",null,{"$f":"Q39+1","v":"2019-06-02"},{"$f":"K40+1","v":"2019-06-03"},{"$f":"L40+1","v":"2019-06-04"},"2019-06-05","2019-06-06","2019-06-07","2019-06-08",null,{"$f":"Y39+1","v":"2019-07-07"},{"$f":"S40+1","v":"2019-07-08"},{"$f":"T40+1","v":"2019-07-09"},"2019-07-10","2019-07-11","2019-07-12","2019-07-13",null,null,null,null,null,null,null,null,null,null,null,null,null,null,null,null,null,null,null,null,null,{"$f":"IFERROR(INDEX(datasave!$D$7:$D$1253,SMALL(IF(($Z$2=datasave!$A$7:$A$1253),ROW(datasave!$A$7:$A$1253)-7),ROW(A35))),\"\")","v":""}]
[null,null,{"$f":"I40+1","v":"2019-05-12"},{"$f":"C41+1","v":"2019-05-13"},{"$f":"D41+1","v":"2019-05-14"},"2019-05-15","2019-05-16","2019-05-17","2019-05-18",null,{"$f":"Q40+1","v":"2019-06-09"},{"$f":"K41+1","v":"2019-06-10"},{"$f":"L41+1","v":"2019-06-11"},"2019-06-12","2019-06-13","2019-06-14","2019-06-15",null,{"$f":"Y40+1","v":"2019-07-14"},{"$f":"S41+1","v":"2019-07-15"},{"$f":"T41+1","v":"2019-07-16"},"2019-07-17","2019-07-18","2019-07-19","2019-07-20",null,null,null,null,null,null,null,null,null,null,null,null,null,null,null,null,null,null,null,null,null,{"$f":"IFERROR(INDEX(datasave!$D$7:$D$1253,SMALL(IF(($Z$2=datasave!$A$7:$A$1253),ROW(datasave!$A$7:$A$1253)-7),ROW(A36))),\"\")","v":""}]
[null,null,{"$f":"I41+1","v":"2019-05-19"},{"$f":"C42+1","v":"2019-05-20"},{"$f":"D42+1","v":"2019-05-21"},"2019-05-22","2019-05-23","2019-05-24","2019-05-25",null,{"$f":"Q41+1","v":"2019-06-16"},{"$f":"K42+1","v":"2019-06-17"},{"$f":"L42+1","v":"2019-06-18"},"2019-06-19","2019-06-20","2019-06-21","2019-06-22",null,{"$f":"Y41+1","v":"2019-07-21"},{"$f":"S42+1","v":"2019-07-22"},{"$f":"T42+1","v":"2019-07-23"},"2019-07-24","2019-07-25","2019-07-26","2019-07-27",null,null,null,null,null,null,null,null,null,null,null,null,null,null,null,null,null,null,null,null,null,{"$f":"IFERROR(INDEX(datasave!$D$7:$D$1253,SMALL(IF(($Z$2=datasave!$A$7:$A$1253),ROW(datasave!$A$7:$A$1253)-7),ROW(A37))),\"\")","v":""}]
[null,null,{"$f":"IFERROR(IF(EOMONTH($C$37,0)>I42,I42+1,\"\"),\"\")","v":"2019-05-26"},{"$f":"IFERROR(IF(EOMONTH($C$37,0)>C43,C43+1,\"\"),\"\")","v":"2019-05-27"},"2019-05-28","2019-05-29","2019-05-30","2019-05-31","",null,{"$f":"IFERROR(IF(EOMONTH($K$37,0)>Q42,Q42+1,\"\"),\"\")","v":"2019-06-23"},{"$f":"IFERROR(IF(EOMONTH($K$37,0)>K43,K43+1,\"\"),\"\")","v":"2019-06-24"},"2019-06-25","2019-06-26","2019-06-27","2019-06-28","2019-06-29",null,{"$f":"IFERROR(IF(EOMONTH($S$37,0)>Y42,Y42+1,\"\"),\"\")","v":"2019-07-28"},{"$f":"IFERROR(IF(EOMONTH($S$37,0)>S43,S43+1,\"\"),\"\")","v":"2019-07-29"},"2019-07-30","2019-07-31","","","",null,null,null,null,null,null,null,null,null,null,null,null,null,null,null,null,null,null,null,null,null,{"$f":"IFERROR(INDEX(datasave!$D$7:$D$1253,SMALL(IF(($Z$2=datasave!$A$7:$A$1253),ROW(datasave!$A$7:$A$1253)-7),ROW(A38))),\"\")","v":""}]
[null,null,{"$f":"IFERROR(IF(EOMONTH($C$37,0)>I43,I43+1,\"\"),\"\")","v":""},"","","","","","",null,{"$f":"IFERROR(IF(EOMONTH($K$37,0)>Q43,Q43+1,\"\"),\"\")","v":"2019-06-30"},"","","","","","",null,{"$f":"IFERROR(IF(EOMONTH($S$37,0)>Y43,Y43+1,\"\"),\"\")","v":""},"","","","","","",null,null,null,null,null,null,null,null,null,null,null,null,null,null,null,null,null,null,null,null,null,{"$f":"IFERROR(INDEX(datasave!$D$7:$D$1253,SMALL(IF(($Z$2=datasave!$A$7:$A$1253),ROW(datasave!$A$7:$A$1253)-7),ROW(A39))),\"\")","v":""}]
[null,null,null,null,null,null,null,null,null,null,null,null,null,null,null,null,null,null,null,null,null,null,null,null,null,null,null,null,null,null,null,null,null,null,null,null,null,null,null,null,null,null,null,null,null,null,{"$f":"IFERROR(INDEX(datasave!$D$7:$D$1253,SMALL(IF(($Z$2=datasave!$A$7:$A$1253),ROW(datasave!$A$7:$A$1253)-7),ROW(A40))),\"\")","v":""}]
[null,null,null,null,null,null,null,null,null,null,null,null,null,null,null,null,null,null,null,null,null,null,null,null,null,null,null,null,null,null,null,null,null,null,null,null,null,null,null,null,null,null,null,null,null,null,{"$f":"IFERROR(INDEX(datasave!$D$7:$D$1253,SMALL(IF(($Z$2=datasave!$A$7:$A$1253),ROW(datasave!$A$7:$A$1253)-7),ROW(A41))),\"\")","v":""}]
[null,null,null,null,null,null,null,null,null,null,null,null,null,null,null,null,null,null,null,null,null,null,null,null,null,null,null,null,null,null,null,null,null,null,null,null,null,null,null,null,null,null,null,null,null,null,{"$f":"IFERROR(INDEX(datasave!$D$7:$D$1253,SMALL(IF(($Z$2=datasave!$A$7:$A$1253),ROW(datasave!$A$7:$A$1253)-7),ROW(A42))),\"\")","v":""}]
[null,null,null,null,null,null,null,null,null,null,null,null,null,null,null,null,null,null,null,null,null,null,null,null,null,null,null,null,null,null,null,null,null,null,null,null,null,null,null,null,null,null,null,null,null,null,{"$f":"IFERROR(INDEX(datasave!$D$7:$D$1253,SMALL(IF(($Z$2=datasave!$A$7:$A$1253),ROW(datasave!$A$7:$A$1253)-7),ROW(A43))),\"\")","v":""}]
[null,null,null,null,null,null,null,null,null,null,null,null,null,null,null,null,null,null,null,null,null,null,null,null,null,null,null,null,null,null,null,null,null,null,null,null,null,null,null,null,null,null,null,null,null,null,{"$f":"IFERROR(INDEX(datasave!$D$7:$D$1253,SMALL(IF(($Z$2=datasave!$A$7:$A$1253),ROW(datasave!$A$7:$A$1253)-7),ROW(A44))),\"\")","v":""}]
[null,null,null,null,null,null,null,null,null,null,null,null,null,null,null,null,null,null,null,null,null,null,null,null,null,null,null,null,null,null,null,null,null,null,null,null,null,null,null,null,null,null,null,null,null,null,{"$f":"IFERROR(INDEX(datasave!$D$7:$D$1253,SMALL(IF(($Z$2=datasave!$A$7:$A$1253),ROW(datasave!$A$7:$A$1253)-7),ROW(A45))),\"\")","v":""}]
[null,null,null,null,null,null,null,null,null,null,null,null,null,null,null,null,null,null,null,null,null,null,null,null,null,null,null,null,null,null,null,null,null,null,null,null,null,null,null,null,null,null,null,null,null,null,{"$f":"IFERROR(INDEX(datasave!$D$7:$D$1253,SMALL(IF(($Z$2=datasave!$A$7:$A$1253),ROW(datasave!$A$7:$A$1253)-7),ROW(A46))),\"\")","v":""}]
[null,null,null,null,null,null,null,null,null,null,null,null,null,null,null,null,null,null,null,null,null,null,null,null,null,null,null,null,null,null,null,null,null,null,null,null,null,null,null,null,null,null,null,null,null,null,{"$f":"IFERROR(INDEX(datasave!$D$7:$D$1253,SMALL(IF(($Z$2=datasave!$A$7:$A$1253),ROW(datasave!$A$7:$A$1253)-7),ROW(A47))),\"\")","v":""}]
[null,null,null,null,null,null,null,null,null,null,null,null,null,null,null,null,null,null,null,null,null,null,null,null,null,null,null,null,null,null,null,null,null,null,null,null,null,null,null,null,null,null,null,null,null,null,{"$f":"IFERROR(INDEX(datasave!$D$7:$D$1253,SMALL(IF(($Z$2=datasave!$A$7:$A$1253),ROW(datasave!$A$7:$A$1253)-7),ROW(A48))),\"\")","v":""}]
[null,null,null,null,null,null,null,null,null,null,null,null,null,null,null,null,null,null,null,null,null,null,null,null,null,null,null,null,null,null,null,null,null,null,null,null,null,null,null,null,null,null,null,null,null,null,{"$f":"IFERROR(INDEX(datasave!$D$7:$D$1253,SMALL(IF(($Z$2=datasave!$A$7:$A$1253),ROW(datasave!$A$7:$A$1253)-7),ROW(A49))),\"\")","v":""}]
[null,null,null,null,null,null,null,null,null,null,null,null,null,null,null,null,null,null,null,null,null,null,null,null,null,null,null,null,null,null,null,null,null,null,null,null,null,null,null,null,null,null,null,null,null,null,{"$f":"IFERROR(INDEX(datasave!$D$7:$D$1253,SMALL(IF(($Z$2=datasave!$A$7:$A$1253),ROW(datasave!$A$7:$A$1253)-7),ROW(A50))),\"\")","v":""}]
[null,null,null,null,null,null,null,null,null,null,null,null,null,null,null,null,null,null,null,null,null,null,null,null,null,null,null,null,null,null,null,null,null,null,null,null,null,null,null,null,null,null,null,null,null,null,{"$f":"IFERROR(INDEX(datasave!$D$7:$D$1253,SMALL(IF(($Z$2=datasave!$A$7:$A$1253),ROW(datasave!$A$7:$A$1253)-7),ROW(A51))),\"\")","v":""}]
[null,null,null,null,null,null,null,null,null,null,null,null,null,null,null,null,null,null,null,null,null,null,null,null,null,null,null,null,null,null,null,null,null,null,null,null,null,null,null,null,null,null,null,null,null,null,{"$f":"IFERROR(INDEX(datasave!$D$7:$D$1253,SMALL(IF(($Z$2=datasave!$A$7:$A$1253),ROW(datasave!$A$7:$A$1253)-7),ROW(A52))),\"\")","v":""}]
[null,null,null,null,null,null,null,null,null,null,null,null,null,null,null,null,null,null,null,null,null,null,null,null,null,null,null,null,null,null,null,null,null,null,null,null,null,null,null,null,null,null,null,null,null,null,{"$f":"IFERROR(INDEX(datasave!$D$7:$D$1253,SMALL(IF(($Z$2=datasave!$A$7:$A$1253),ROW(datasave!$A$7:$A$1253)-7),ROW(A53))),\"\")","v":""}]
[null,null,null,null,null,null,null,null,null,null,null,null,null,null,null,null,null,null,null,null,null,null,null,null,null,null,null,null,null,null,null,null,null,null,null,null,null,null,null,null,null,null,null,null,null,null,{"$f":"IFERROR(INDEX(datasave!$D$7:$D$1253,SMALL(IF(($Z$2=datasave!$A$7:$A$1253),ROW(datasave!$A$7:$A$1253)-7),ROW(A54))),\"\")","v":""}]
[null,null,null,null,null,null,null,null,null,null,null,null,null,null,null,null,null,null,null,null,null,null,null,null,null,null,null,null,null,null,null,null,null,null,null,null,null,null,null,null,null,null,null,null,null,null,{"$f":"IFERROR(INDEX(datasave!$D$7:$D$1253,SMALL(IF(($Z$2=datasave!$A$7:$A$1253),ROW(datasave!$A$7:$A$1253)-7),ROW(A55))),\"\")","v":""}]
[null,null,null,null,null,null,null,null,null,null,null,null,null,null,null,null,null,null,null,null,null,null,null,null,null,null,null,null,null,null,null,null,null,null,null,null,null,null,null,null,null,null,null,null,null,null,{"$f":"IFERROR(INDEX(datasave!$D$7:$D$1253,SMALL(IF(($Z$2=datasave!$A$7:$A$1253),ROW(datasave!$A$7:$A$1253)-7),ROW(A56))),\"\")","v":""}]
[null,null,null,null,null,null,null,null,null,null,null,null,null,null,null,null,null,null,null,null,null,null,null,null,null,null,null,null,null,null,null,null,null,null,null,null,null,null,null,null,null,null,null,null,null,null,{"$f":"IFERROR(INDEX(datasave!$D$7:$D$1253,SMALL(IF(($Z$2=datasave!$A$7:$A$1253),ROW(datasave!$A$7:$A$1253)-7),ROW(A57))),\"\")","v":""}]
[null,null,null,null,null,null,null,null,null,null,null,null,null,null,null,null,null,null,null,null,null,null,null,null,null,null,null,null,null,null,null,null,null,null,null,null,null,null,null,null,null,null,null,null,null,null,{"$f":"IFERROR(INDEX(datasave!$D$7:$D$1253,SMALL(IF(($Z$2=datasave!$A$7:$A$1253),ROW(datasave!$A$7:$A$1253)-7),ROW(A58))),\"\")","v":""}]
[null,null,null,null,null,null,null,null,null,null,null,null,null,null,null,null,null,null,null,null,null,null,null,null,null,null,null,null,null,null,null,null,null,null,null,null,null,null,null,null,null,null,null,null,null,null,{"$f":"IFERROR(INDEX(datasave!$D$7:$D$1253,SMALL(IF(($Z$2=datasave!$A$7:$A$1253),ROW(datasave!$A$7:$A$1253)-7),ROW(A59))),\"\")","v":""}]
[null,null,null,null,null,null,null,null,null,null,null,null,null,null,null,null,null,null,null,null,null,null,null,null,null,null,null,null,null,null,null,null,null,null,null,null,null,null,null,null,null,null,null,null,null,null,{"$f":"IFERROR(INDEX(datasave!$D$7:$D$1253,SMALL(IF(($Z$2=datasave!$A$7:$A$1253),ROW(datasave!$A$7:$A$1253)-7),ROW(A60))),\"\")","v":""}]
[null,null,null,null,null,null,null,null,null,null,null,null,null,null,null,null,null,null,null,null,null,null,null,null,null,null,null,null,null,null,null,null,null,null,null,null,null,null,null,null,null,null,null,null,null,null,{"$f":"IFERROR(INDEX(datasave!$D$7:$D$1253,SMALL(IF(($Z$2=datasave!$A$7:$A$1253),ROW(datasave!$A$7:$A$1253)-7),ROW(A61))),\"\")","v":""}]
[null,null,null,null,null,null,null,null,null,null,null,null,null,null,null,null,null,null,null,null,null,null,null,null,null,null,null,null,null,null,null,null,null,null,null,null,null,null,null,null,null,null,null,null,null,null,{"$f":"IFERROR(INDEX(datasave!$D$7:$D$1253,SMALL(IF(($Z$2=datasave!$A$7:$A$1253),ROW(datasave!$A$7:$A$1253)-7),ROW(A62))),\"\")","v":""}]
[null,null,null,null,null,null,null,null,null,null,null,null,null,null,null,null,null,null,null,null,null,null,null,null,null,null,null,null,null,null,null,null,null,null,null,null,null,null,null,null,null,null,null,null,null,null,{"$f":"IFERROR(INDEX(datasave!$D$7:$D$1253,SMALL(IF(($Z$2=datasave!$A$7:$A$1253),ROW(datasave!$A$7:$A$1253)-7),ROW(A63))),\"\")","v":""}]
[null,null,null,null,null,null,null,null,null,null,null,null,null,null,null,null,null,null,null,null,null,null,null,null,null,null,null,null,null,null,null,null,null,null,null,null,null,null,null,null,null,null,null,null,null,null,{"$f":"IFERROR(INDEX(datasave!$D$7:$D$1253,SMALL(IF(($Z$2=datasave!$A$7:$A$1253),ROW(datasave!$A$7:$A$1253)-7),ROW(A64))),\"\")","v":""}]
[null,null,null,null,null,null,null,null,null,null,null,null,null,null,null,null,null,null,null,null,null,null,null,null,null,null,null,null,null,null,null,null,null,null,null,null,null,null,null,null,null,null,null,null,null,null,{"$f":"IFERROR(INDEX(datasave!$D$7:$D$1253,SMALL(IF(($Z$2=datasave!$A$7:$A$1253),ROW(datasave!$A$7:$A$1253)-7),ROW(A65))),\"\")","v":""}]
[null,null,null,null,null,null,null,null,null,null,null,null,null,null,null,null,null,null,null,null,null,null,null,null,null,null,null,null,null,null,null,null,null,null,null,null,null,null,null,null,null,null,null,null,null,null,{"$f":"IFERROR(INDEX(datasave!$D$7:$D$1253,SMALL(IF(($Z$2=datasave!$A$7:$A$1253),ROW(datasave!$A$7:$A$1253)-7),ROW(A66))),\"\")","v":""}]
[null,null,null,null,null,null,null,null,null,null,null,null,null,null,null,null,null,null,null,null,null,null,null,null,null,null,null,null,null,null,null,null,null,null,null,null,null,null,null,null,null,null,null,null,null,null,{"$f":"IFERROR(INDEX(datasave!$D$7:$D$1253,SMALL(IF(($Z$2=datasave!$A$7:$A$1253),ROW(datasave!$A$7:$A$1253)-7),ROW(A67))),\"\")","v":""}]
[null,null,null,null,null,null,null,null,null,null,null,null,null,null,null,null,null,null,null,null,null,null,null,null,null,null,null,null,null,null,null,null,null,null,null,null,null,null,null,null,null,null,null,null,null,null,{"$f":"IFERROR(INDEX(datasave!$D$7:$D$1253,SMALL(IF(($Z$2=datasave!$A$7:$A$1253),ROW(datasave!$A$7:$A$1253)-7),ROW(A68))),\"\")","v":""}]
[null,null,null,null,null,null,null,null,null,null,null,null,null,null,null,null,null,null,null,null,null,null,null,null,null,null,null,null,null,null,null,null,null,null,null,null,null,null,null,null,null,null,null,null,null,null,{"$f":"IFERROR(INDEX(datasave!$D$7:$D$1253,SMALL(IF(($Z$2=datasave!$A$7:$A$1253),ROW(datasave!$A$7:$A$1253)-7),ROW(A69))),\"\")","v":""}]
[null,null,null,null,null,null,null,null,null,null,null,null,null,null,null,null,null,null,null,null,null,null,null,null,null,null,null,null,null,null,null,null,null,null,null,null,null,null,null,null,null,null,null,null,null,null,{"$f":"IFERROR(INDEX(datasave!$D$7:$D$1253,SMALL(IF(($Z$2=datasave!$A$7:$A$1253),ROW(datasave!$A$7:$A$1253)-7),ROW(A70))),\"\")","v":""}]
[null,null,null,null,null,null,null,null,null,null,null,null,null,null,null,null,null,null,null,null,null,null,null,null,null,null,null,null,null,null,null,null,null,null,null,null,null,null,null,null,null,null,null,null,null,null,{"$f":"IFERROR(INDEX(datasave!$D$7:$D$1253,SMALL(IF(($Z$2=datasave!$A$7:$A$1253),ROW(datasave!$A$7:$A$1253)-7),ROW(A71))),\"\")","v":""}]
[null,null,null,null,null,null,null,null,null,null,null,null,null,null,null,null,null,null,null,null,null,null,null,null,null,null,null,null,null,null,null,null,null,null,null,null,null,null,null,null,null,null,null,null,null,null,{"$f":"IFERROR(INDEX(datasave!$D$7:$D$1253,SMALL(IF(($Z$2=datasave!$A$7:$A$1253),ROW(datasave!$A$7:$A$1253)-7),ROW(A72))),\"\")","v":""}]
[null,null,null,null,null,null,null,null,null,null,null,null,null,null,null,null,null,null,null,null,null,null,null,null,null,null,null,null,null,null,null,null,null,null,null,null,null,null,null,null,null,null,null,null,null,null,{"$f":"IFERROR(INDEX(datasave!$D$7:$D$1253,SMALL(IF(($Z$2=datasave!$A$7:$A$1253),ROW(datasave!$A$7:$A$1253)-7),ROW(A73))),\"\")","v":""}]
[null,null,null,null,null,null,null,null,null,null,null,null,null,null,null,null,null,null,null,null,null,null,null,null,null,null,null,null,null,null,null,null,null,null,null,null,null,null,null,null,null,null,null,null,null,null,{"$f":"IFERROR(INDEX(datasave!$D$7:$D$1253,SMALL(IF(($Z$2=datasave!$A$7:$A$1253),ROW(datasave!$A$7:$A$1253)-7),ROW(A74))),\"\")","v":""}]
[null,null,null,null,null,null,null,null,null,null,null,null,null,null,null,null,null,null,null,null,null,null,null,null,null,null,null,null,null,null,null,null,null,null,null,null,null,null,null,null,null,null,null,null,null,null,{"$f":"IFERROR(INDEX(datasave!$D$7:$D$1253,SMALL(IF(($Z$2=datasave!$A$7:$A$1253),ROW(datasave!$A$7:$A$1253)-7),ROW(A75))),\"\")","v":""}]
[null,null,null,null,null,null,null,null,null,null,null,null,null,null,null,null,null,null,null,null,null,null,null,null,null,null,null,null,null,null,null,null,null,null,null,null,null,null,null,null,null,null,null,null,null,null,{"$f":"IFERROR(INDEX(datasave!$D$7:$D$1253,SMALL(IF(($Z$2=datasave!$A$7:$A$1253),ROW(datasave!$A$7:$A$1253)-7),ROW(A76))),\"\")","v":""}]
[null,null,null,null,null,null,null,null,null,null,null,null,null,null,null,null,null,null,null,null,null,null,null,null,null,null,null,null,null,null,null,null,null,null,null,null,null,null,null,null,null,null,null,null,null,null,{"$f":"IFERROR(INDEX(datasave!$D$7:$D$1253,SMALL(IF(($Z$2=datasave!$A$7:$A$1253),ROW(datasave!$A$7:$A$1253)-7),ROW(A77))),\"\")","v":""}]
[null,null,null,null,null,null,null,null,null,null,null,null,null,null,null,null,null,null,null,null,null,null,null,null,null,null,null,null,null,null,null,null,null,null,null,null,null,null,null,null,null,null,null,null,null,null,{"$f":"IFERROR(INDEX(datasave!$D$7:$D$1253,SMALL(IF(($Z$2=datasave!$A$7:$A$1253),ROW(datasave!$A$7:$A$1253)-7),ROW(A78))),\"\")","v":""}]
[null,null,null,null,null,null,null,null,null,null,null,null,null,null,null,null,null,null,null,null,null,null,null,null,null,null,null,null,null,null,null,null,null,null,null,null,null,null,null,null,null,null,null,null,null,null,{"$f":"IFERROR(INDEX(datasave!$D$7:$D$1253,SMALL(IF(($Z$2=datasave!$A$7:$A$1253),ROW(datasave!$A$7:$A$1253)-7),ROW(A79))),\"\")","v":""}]
[null,null,null,null,null,null,null,null,null,null,null,null,null,null,null,null,null,null,null,null,null,null,null,null,null,null,null,null,null,null,null,null,null,null,null,null,null,null,null,null,null,null,null,null,null,null,{"$f":"IFERROR(INDEX(datasave!$D$7:$D$1253,SMALL(IF(($Z$2=datasave!$A$7:$A$1253),ROW(datasave!$A$7:$A$1253)-7),ROW(A80))),\"\")","v":""}]
[null,null,null,null,null,null,null,null,null,null,null,null,null,null,null,null,null,null,null,null,null,null,null,null,null,null,null,null,null,null,null,null,null,null,null,null,null,null,null,null,null,null,null,null,null,null,{"$f":"IFERROR(INDEX(datasave!$D$7:$D$1253,SMALL(IF(($Z$2=datasave!$A$7:$A$1253),ROW(datasave!$A$7:$A$1253)-7),ROW(A81))),\"\")","v":""}]
[null,null,null,null,null,null,null,null,null,null,null,null,null,null,null,null,null,null,null,null,null,null,null,null,null,null,null,null,null,null,null,null,null,null,null,null,null,null,null,null,null,null,null,null,null,null,{"$f":"IFERROR(INDEX(datasave!$D$7:$D$1253,SMALL(IF(($Z$2=datasave!$A$7:$A$1253),ROW(datasave!$A$7:$A$1253)-7),ROW(A82))),\"\")","v":""}]
[null,null,null,null,null,null,null,null,null,null,null,null,null,null,null,null,null,null,null,null,null,null,null,null,null,null,null,null,null,null,null,null,null,null,null,null,null,null,null,null,null,null,null,null,null,null,{"$f":"IFERROR(INDEX(datasave!$D$7:$D$1253,SMALL(IF(($Z$2=datasave!$A$7:$A$1253),ROW(datasave!$A$7:$A$1253)-7),ROW(A83))),\"\")","v":""}]
[null,null,null,null,null,null,null,null,null,null,null,null,null,null,null,null,null,null,null,null,null,null,null,null,null,null,null,null,null,null,null,null,null,null,null,null,null,null,null,null,null,null,null,null,null,null,{"$f":"IFERROR(INDEX(datasave!$D$7:$D$1253,SMALL(IF(($Z$2=datasave!$A$7:$A$1253),ROW(datasave!$A$7:$A$1253)-7),ROW(A84))),\"\")","v":""}]
[null,null,null,null,null,null,null,null,null,null,null,null,null,null,null,null,null,null,null,null,null,null,null,null,null,null,null,null,null,null,null,null,null,null,null,null,null,null,null,null,null,null,null,null,null,null,{"$f":"IFERROR(INDEX(datasave!$D$7:$D$1253,SMALL(IF(($Z$2=datasave!$A$7:$A$1253),ROW(datasave!$A$7:$A$1253)-7),ROW(A85))),\"\")","v":""}]
[null,null,null,null,null,null,null,null,null,null,null,null,null,null,null,null,null,null,null,null,null,null,null,null,null,null,null,null,null,null,null,null,null,null,null,null,null,null,null,null,null,null,null,null,null,null,{"$f":"IFERROR(INDEX(datasave!$D$7:$D$1253,SMALL(IF(($Z$2=datasave!$A$7:$A$1253),ROW(datasave!$A$7:$A$1253)-7),ROW(A86))),\"\")","v":""}]
[null,null,null,null,null,null,null,null,null,null,null,null,null,null,null,null,null,null,null,null,null,null,null,null,null,null,null,null,null,null,null,null,null,null,null,null,null,null,null,null,null,null,null,null,null,null,{"$f":"IFERROR(INDEX(datasave!$D$7:$D$1253,SMALL(IF(($Z$2=datasave!$A$7:$A$1253),ROW(datasave!$A$7:$A$1253)-7),ROW(A87))),\"\")","v":""}]
[null,null,null,null,null,null,null,null,null,null,null,null,null,null,null,null,null,null,null,null,null,null,null,null,null,null,null,null,null,null,null,null,null,null,null,null,null,null,null,null,null,null,null,null,null,null,{"$f":"IFERROR(INDEX(datasave!$D$7:$D$1253,SMALL(IF(($Z$2=datasave!$A$7:$A$1253),ROW(datasave!$A$7:$A$1253)-7),ROW(A88))),\"\")","v":""}]
[null,null,null,null,null,null,null,null,null,null,null,null,null,null,null,null,null,null,null,null,null,null,null,null,null,null,null,null,null,null,null,null,null,null,null,null,null,null,null,null,null,null,null,null,null,null,{"$f":"IFERROR(INDEX(datasave!$D$7:$D$1253,SMALL(IF(($Z$2=datasave!$A$7:$A$1253),ROW(datasave!$A$7:$A$1253)-7),ROW(A89))),\"\")","v":""}]
[null,null,null,null,null,null,null,null,null,null,null,null,null,null,null,null,null,null,null,null,null,null,null,null,null,null,null,null,null,null,null,null,null,null,null,null,null,null,null,null,null,null,null,null,null,null,{"$f":"IFERROR(INDEX(datasave!$D$7:$D$1253,SMALL(IF(($Z$2=datasave!$A$7:$A$1253),ROW(datasave!$A$7:$A$1253)-7),ROW(A90))),\"\")","v":""}]
[null,null,null,null,null,null,null,null,null,null,null,null,null,null,null,null,null,null,null,null,null,null,null,null,null,null,null,null,null,null,null,null,null,null,null,null,null,null,null,null,null,null,null,null,null,null,{"$f":"IFERROR(INDEX(datasave!$D$7:$D$1253,SMALL(IF(($Z$2=datasave!$A$7:$A$1253),ROW(datasave!$A$7:$A$1253)-7),ROW(A91))),\"\")","v":""}]
[null,null,null,null,null,null,null,null,null,null,null,null,null,null,null,null,null,null,null,null,null,null,null,null,null,null,null,null,null,null,null,null,null,null,null,null,null,null,null,null,null,null,null,null,null,null,{"$f":"IFERROR(INDEX(datasave!$D$7:$D$1253,SMALL(IF(($Z$2=datasave!$A$7:$A$1253),ROW(datasave!$A$7:$A$1253)-7),ROW(A92))),\"\")","v":""}]
[null,null,null,null,null,null,null,null,null,null,null,null,null,null,null,null,null,null,null,null,null,null,null,null,null,null,null,null,null,null,null,null,null,null,null,null,null,null,null,null,null,null,null,null,null,null,{"$f":"IFERROR(INDEX(datasave!$D$7:$D$1253,SMALL(IF(($Z$2=datasave!$A$7:$A$1253),ROW(datasave!$A$7:$A$1253)-7),ROW(A93))),\"\")","v":""}]
[null,null,null,null,null,null,null,null,null,null,null,null,null,null,null,null,null,null,null,null,null,null,null,null,null,null,null,null,null,null,null,null,null,null,null,null,null,null,null,null,null,null,null,null,null,null,{"$f":"IFERROR(INDEX(datasave!$D$7:$D$1253,SMALL(IF(($Z$2=datasave!$A$7:$A$1253),ROW(datasave!$A$7:$A$1253)-7),ROW(A94))),\"\")","v":""}]
[null,null,null,null,null,null,null,null,null,null,null,null,null,null,null,null,null,null,null,null,null,null,null,null,null,null,null,null,null,null,null,null,null,null,null,null,null,null,null,null,null,null,null,null,null,null,{"$f":"IFERROR(INDEX(datasave!$D$7:$D$1253,SMALL(IF(($Z$2=datasave!$A$7:$A$1253),ROW(datasave!$A$7:$A$1253)-7),ROW(A95))),\"\")","v":""}]
[null,null,null,null,null,null,null,null,null,null,null,null,null,null,null,null,null,null,null,null,null,null,null,null,null,null,null,null,null,null,null,null,null,null,null,null,null,null,null,null,null,null,null,null,null,null,{"$f":"IFERROR(INDEX(datasave!$D$7:$D$1253,SMALL(IF(($Z$2=datasave!$A$7:$A$1253),ROW(datasave!$A$7:$A$1253)-7),ROW(A96))),\"\")","v":""}]
[null,null,null,null,null,null,null,null,null,null,null,null,null,null,null,null,null,null,null,null,null,null,null,null,null,null,null,null,null,null,null,null,null,null,null,null,null,null,null,null,null,null,null,null,null,null,{"$f":"IFERROR(INDEX(datasave!$D$7:$D$1253,SMALL(IF(($Z$2=datasave!$A$7:$A$1253),ROW(datasave!$A$7:$A$1253)-7),ROW(A97))),\"\")","v":""}]
[null,null,null,null,null,null,null,null,null,null,null,null,null,null,null,null,null,null,null,null,null,null,null,null,null,null,null,null,null,null,null,null,null,null,null,null,null,null,null,null,null,null,null,null,null,null,{"$f":"IFERROR(INDEX(datasave!$D$7:$D$1253,SMALL(IF(($Z$2=datasave!$A$7:$A$1253),ROW(datasave!$A$7:$A$1253)-7),ROW(A98))),\"\")","v":""}]
[null,null,null,null,null,null,null,null,null,null,null,null,null,null,null,null,null,null,null,null,null,null,null,null,null,null,null,null,null,null,null,null,null,null,null,null,null,null,null,null,null,null,null,null,null,null,{"$f":"IFERROR(INDEX(datasave!$D$7:$D$1253,SMALL(IF(($Z$2=datasave!$A$7:$A$1253),ROW(datasave!$A$7:$A$1253)-7),ROW(A99))),\"\")","v":""}]
[null,null,null,null,null,null,null,null,null,null,null,null,null,null,null,null,null,null,null,null,null,null,null,null,null,null,null,null,null,null,null,null,null,null,null,null,null,null,null,null,null,null,null,null,null,null,{"$f":"IFERROR(INDEX(datasave!$D$7:$D$1253,SMALL(IF(($Z$2=datasave!$A$7:$A$1253),ROW(datasave!$A$7:$A$1253)-7),ROW(A100))),\"\")","v":""}]
[null,null,null,null,null,null,null,null,null,null,null,null,null,null,null,null,null,null,null,null,null,null,null,null,null,null,null,null,null,null,null,null,null,null,null,null,null,null,null,null,null,null,null,null,null,null,{"$f":"IFERROR(INDEX(datasave!$D$7:$D$1253,SMALL(IF(($Z$2=datasave!$A$7:$A$1253),ROW(datasave!$A$7:$A$1253)-7),ROW(A101))),\"\")","v":""}]
[null,null,null,null,null,null,null,null,null,null,null,null,null,null,null,null,null,null,null,null,null,null,null,null,null,null,null,null,null,null,null,null,null,null,null,null,null,null,null,null,null,null,null,null,null,null,{"$f":"IFERROR(INDEX(datasave!$D$7:$D$1253,SMALL(IF(($Z$2=datasave!$A$7:$A$1253),ROW(datasave!$A$7:$A$1253)-7),ROW(A102))),\"\")","v":""}]
[null,null,null,null,null,null,null,null,null,null,null,null,null,null,null,null,null,null,null,null,null,null,null,null,null,null,null,null,null,null,null,null,null,null,null,null,null,null,null,null,null,null,null,null,null,null,{"$f":"IFERROR(INDEX(datasave!$D$7:$D$1253,SMALL(IF(($Z$2=datasave!$A$7:$A$1253),ROW(datasave!$A$7:$A$1253)-7),ROW(A103))),\"\")","v":""}]
[null,null,null,null,null,null,null,null,null,null,null,null,null,null,null,null,null,null,null,null,null,null,null,null,null,null,null,null,null,null,null,null,null,null,null,null,null,null,null,null,null,null,null,null,null,null,{"$f":"IFERROR(INDEX(datasave!$D$7:$D$1253,SMALL(IF(($Z$2=datasave!$A$7:$A$1253),ROW(datasave!$A$7:$A$1253)-7),ROW(A104))),\"\")","v":""}]
[null,null,null,null,null,null,null,null,null,null,null,null,null,null,null,null,null,null,null,null,null,null,null,null,null,null,null,null,null,null,null,null,null,null,null,null,null,null,null,null,null,null,null,null,null,null,{"$f":"IFERROR(INDEX(datasave!$D$7:$D$1253,SMALL(IF(($Z$2=datasave!$A$7:$A$1253),ROW(datasave!$A$7:$A$1253)-7),ROW(A105))),\"\")","v":""}]
[null,null,null,null,null,null,null,null,null,null,null,null,null,null,null,null,null,null,null,null,null,null,null,null,null,null,null,null,null,null,null,null,null,null,null,null,null,null,null,null,null,null,null,null,null,null,{"$f":"IFERROR(INDEX(datasave!$D$7:$D$1253,SMALL(IF(($Z$2=datasave!$A$7:$A$1253),ROW(datasave!$A$7:$A$1253)-7),ROW(A106))),\"\")","v":""}]
[null,null,null,null,null,null,null,null,null,null,null,null,null,null,null,null,null,null,null,null,null,null,null,null,null,null,null,null,null,null,null,null,null,null,null,null,null,null,null,null,null,null,null,null,null,null,{"$f":"IFERROR(INDEX(datasave!$D$7:$D$1253,SMALL(IF(($Z$2=datasave!$A$7:$A$1253),ROW(datasave!$A$7:$A$1253)-7),ROW(A107))),\"\")","v":""}]
[null,null,null,null,null,null,null,null,null,null,null,null,null,null,null,null,null,null,null,null,null,null,null,null,null,null,null,null,null,null,null,null,null,null,null,null,null,null,null,null,null,null,null,null,null,null,{"$f":"IFERROR(INDEX(datasave!$D$7:$D$1253,SMALL(IF(($Z$2=datasave!$A$7:$A$1253),ROW(datasave!$A$7:$A$1253)-7),ROW(A108))),\"\")","v":""}]
[null,null,null,null,null,null,null,null,null,null,null,null,null,null,null,null,null,null,null,null,null,null,null,null,null,null,null,null,null,null,null,null,null,null,null,null,null,null,null,null,null,null,null,null,null,null,{"$f":"IFERROR(INDEX(datasave!$D$7:$D$1253,SMALL(IF(($Z$2=datasave!$A$7:$A$1253),ROW(datasave!$A$7:$A$1253)-7),ROW(A109))),\"\")","v":""}]
[null,null,null,null,null,null,null,null,null,null,null,null,null,null,null,null,null,null,null,null,null,null,null,null,null,null,null,null,null,null,null,null,null,null,null,null,null,null,null,null,null,null,null,null,null,null,{"$f":"IFERROR(INDEX(datasave!$D$7:$D$1253,SMALL(IF(($Z$2=datasave!$A$7:$A$1253),ROW(datasave!$A$7:$A$1253)-7),ROW(A110))),\"\")","v":""}]
[null,null,null,null,null,null,null,null,null,null,null,null,null,null,null,null,null,null,null,null,null,null,null,null,null,null,null,null,null,null,null,null,null,null,null,null,null,null,null,null,null,null,null,null,null,null,{"$f":"IFERROR(INDEX(datasave!$D$7:$D$1253,SMALL(IF(($Z$2=datasave!$A$7:$A$1253),ROW(datasave!$A$7:$A$1253)-7),ROW(A111))),\"\")","v":""}]
[null,null,null,null,null,null,null,null,null,null,null,null,null,null,null,null,null,null,null,null,null,null,null,null,null,null,null,null,null,null,null,null,null,null,null,null,null,null,null,null,null,null,null,null,null,null,{"$f":"IFERROR(INDEX(datasave!$D$7:$D$1253,SMALL(IF(($Z$2=datasave!$A$7:$A$1253),ROW(datasave!$A$7:$A$1253)-7),ROW(A112))),\"\")","v":""}]
[null,null,null,null,null,null,null,null,null,null,null,null,null,null,null,null,null,null,null,null,null,null,null,null,null,null,null,null,null,null,null,null,null,null,null,null,null,null,null,null,null,null,null,null,null,null,{"$f":"IFERROR(INDEX(datasave!$D$7:$D$1253,SMALL(IF(($Z$2=datasave!$A$7:$A$1253),ROW(datasave!$A$7:$A$1253)-7),ROW(A113))),\"\")","v":""}]
[null,null,null,null,null,null,null,null,null,null,null,null,null,null,null,null,null,null,null,null,null,null,null,null,null,null,null,null,null,null,null,null,null,null,null,null,null,null,null,null,null,null,null,null,null,null,{"$f":"IFERROR(INDEX(datasave!$D$7:$D$1253,SMALL(IF(($Z$2=datasave!$A$7:$A$1253),ROW(datasave!$A$7:$A$1253)-7),ROW(A114))),\"\")","v":""}]
[null,null,null,null,null,null,null,null,null,null,null,null,null,null,null,null,null,null,null,null,null,null,null,null,null,null,null,null,null,null,null,null,null,null,null,null,null,null,null,null,null,null,null,null,null,null,{"$f":"IFERROR(INDEX(datasave!$D$7:$D$1253,SMALL(IF(($Z$2=datasave!$A$7:$A$1253),ROW(datasave!$A$7:$A$1253)-7),ROW(A115))),\"\")","v":""}]
[null,null,null,null,null,null,null,null,null,null,null,null,null,null,null,null,null,null,null,null,null,null,null,null,null,null,null,null,null,null,null,null,null,null,null,null,null,null,null,null,null,null,null,null,null,null,{"$f":"IFERROR(INDEX(datasave!$D$7:$D$1253,SMALL(IF(($Z$2=datasave!$A$7:$A$1253),ROW(datasave!$A$7:$A$1253)-7),ROW(A116))),\"\")","v":""}]
[null,null,null,null,null,null,null,null,null,null,null,null,null,null,null,null,null,null,null,null,null,null,null,null,null,null,null,null,null,null,null,null,null,null,null,null,null,null,null,null,null,null,null,null,null,null,{"$f":"IFERROR(INDEX(datasave!$D$7:$D$1253,SMALL(IF(($Z$2=datasave!$A$7:$A$1253),ROW(datasave!$A$7:$A$1253)-7),ROW(A117))),\"\")","v":""}]
[null,null,null,null,null,null,null,null,null,null,null,null,null,null,null,null,null,null,null,null,null,null,null,null,null,null,null,null,null,null,null,null,null,null,null,null,null,null,null,null,null,null,null,null,null,null,{"$f":"IFERROR(INDEX(datasave!$D$7:$D$1253,SMALL(IF(($Z$2=datasave!$A$7:$A$1253),ROW(datasave!$A$7:$A$1253)-7),ROW(A118))),\"\")","v":""}]
[null,null,null,null,null,null,null,null,null,null,null,null,null,null,null,null,null,null,null,null,null,null,null,null,null,null,null,null,null,null,null,null,null,null,null,null,null,null,null,null,null,null,null,null,null,null,{"$f":"IFERROR(INDEX(datasave!$D$7:$D$1253,SMALL(IF(($Z$2=datasave!$A$7:$A$1253),ROW(datasave!$A$7:$A$1253)-7),ROW(A119))),\"\")","v":""}]
[null,null,null,null,null,null,null,null,null,null,null,null,null,null,null,null,null,null,null,null,null,null,null,null,null,null,null,null,null,null,null,null,null,null,null,null,null,null,null,null,null,null,null,null,null,null,{"$f":"IFERROR(INDEX(datasave!$D$7:$D$1253,SMALL(IF(($Z$2=datasave!$A$7:$A$1253),ROW(datasave!$A$7:$A$1253)-7),ROW(A120))),\"\")","v":""}]
[null,null,null,null,null,null,null,null,null,null,null,null,null,null,null,null,null,null,null,null,null,null,null,null,null,null,null,null,null,null,null,null,null,null,null,null,null,null,null,null,null,null,null,null,null,null,{"$f":"IFERROR(INDEX(datasave!$D$7:$D$1253,SMALL(IF(($Z$2=datasave!$A$7:$A$1253),ROW(datasave!$A$7:$A$1253)-7),ROW(A121))),\"\")","v":""}]
[null,null,null,null,null,null,null,null,null,null,null,null,null,null,null,null,null,null,null,null,null,null,null,null,null,null,null,null,null,null,null,null,null,null,null,null,null,null,null,null,null,null,null,null,null,null,{"$f":"IFERROR(INDEX(datasave!$D$7:$D$1253,SMALL(IF(($Z$2=datasave!$A$7:$A$1253),ROW(datasave!$A$7:$A$1253)-7),ROW(A122))),\"\")","v":""}]
[null,null,null,null,null,null,null,null,null,null,null,null,null,null,null,null,null,null,null,null,null,null,null,null,null,null,null,null,null,null,null,null,null,null,null,null,null,null,null,null,null,null,null,null,null,null,{"$f":"IFERROR(INDEX(datasave!$D$7:$D$1253,SMALL(IF(($Z$2=datasave!$A$7:$A$1253),ROW(datasave!$A$7:$A$1253)-7),ROW(A123))),\"\")","v":""}]
[null,null,null,null,null,null,null,null,null,null,null,null,null,null,null,null,null,null,null,null,null,null,null,null,null,null,null,null,null,null,null,null,null,null,null,null,null,null,null,null,null,null,null,null,null,null,{"$f":"IFERROR(INDEX(datasave!$D$7:$D$1253,SMALL(IF(($Z$2=datasave!$A$7:$A$1253),ROW(datasave!$A$7:$A$1253)-7),ROW(A124))),\"\")","v":""}]
[null,null,null,null,null,null,null,null,null,null,null,null,null,null,null,null,null,null,null,null,null,null,null,null,null,null,null,null,null,null,null,null,null,null,null,null,null,null,null,null,null,null,null,null,null,null,{"$f":"IFERROR(INDEX(datasave!$D$7:$D$1253,SMALL(IF(($Z$2=datasave!$A$7:$A$1253),ROW(datasave!$A$7:$A$1253)-7),ROW(A125))),\"\")","v":""}]
[null,null,null,null,null,null,null,null,null,null,null,null,null,null,null,null,null,null,null,null,null,null,null,null,null,null,null,null,null,null,null,null,null,null,null,null,null,null,null,null,null,null,null,null,null,null,{"$f":"IFERROR(INDEX(datasave!$D$7:$D$1253,SMALL(IF(($Z$2=datasave!$A$7:$A$1253),ROW(datasave!$A$7:$A$1253)-7),ROW(A126))),\"\")","v":""}]
[null,null,null,null,null,null,null,null,null,null,null,null,null,null,null,null,null,null,null,null,null,null,null,null,null,null,null,null,null,null,null,null,null,null,null,null,null,null,null,null,null,null,null,null,null,null,{"$f":"IFERROR(INDEX(datasave!$D$7:$D$1253,SMALL(IF(($Z$2=datasave!$A$7:$A$1253),ROW(datasave!$A$7:$A$1253)-7),ROW(A127))),\"\")","v":""}]
[null,null,null,null,null,null,null,null,null,null,null,null,null,null,null,null,null,null,null,null,null,null,null,null,null,null,null,null,null,null,null,null,null,null,null,null,null,null,null,null,null,null,null,null,null,null,{"$f":"IFERROR(INDEX(datasave!$D$7:$D$1253,SMALL(IF(($Z$2=datasave!$A$7:$A$1253),ROW(datasave!$A$7:$A$1253)-7),ROW(A128))),\"\")","v":""}]
[null,null,null,null,null,null,null,null,null,null,null,null,null,null,null,null,null,null,null,null,null,null,null,null,null,null,null,null,null,null,null,null,null,null,null,null,null,null,null,null,null,null,null,null,null,null,{"$f":"IFERROR(INDEX(datasave!$D$7:$D$1253,SMALL(IF(($Z$2=datasave!$A$7:$A$1253),ROW(datasave!$A$7:$A$1253)-7),ROW(A129))),\"\")","v":""}]
[null,null,null,null,null,null,null,null,null,null,null,null,null,null,null,null,null,null,null,null,null,null,null,null,null,null,null,null,null,null,null,null,null,null,null,null,null,null,null,null,null,null,null,null,null,null,{"$f":"IFERROR(INDEX(datasave!$D$7:$D$1253,SMALL(IF(($Z$2=datasave!$A$7:$A$1253),ROW(datasave!$A$7:$A$1253)-7),ROW(A130))),\"\")","v":""}]
[null,null,null,null,null,null,null,null,null,null,null,null,null,null,null,null,null,null,null,null,null,null,null,null,null,null,null,null,null,null,null,null,null,null,null,null,null,null,null,null,null,null,null,null,null,null,{"$f":"IFERROR(INDEX(datasave!$D$7:$D$1253,SMALL(IF(($Z$2=datasave!$A$7:$A$1253),ROW(datasave!$A$7:$A$1253)-7),ROW(A131))),\"\")","v":""}]
[null,null,null,null,null,null,null,null,null,null,null,null,null,null,null,null,null,null,null,null,null,null,null,null,null,null,null,null,null,null,null,null,null,null,null,null,null,null,null,null,null,null,null,null,null,null,{"$f":"IFERROR(INDEX(datasave!$D$7:$D$1253,SMALL(IF(($Z$2=datasave!$A$7:$A$1253),ROW(datasave!$A$7:$A$1253)-7),ROW(A132))),\"\")","v":""}]
[null,null,null,null,null,null,null,null,null,null,null,null,null,null,null,null,null,null,null,null,null,null,null,null,null,null,null,null,null,null,null,null,null,null,null,null,null,null,null,null,null,null,null,null,null,null,{"$f":"IFERROR(INDEX(datasave!$D$7:$D$1253,SMALL(IF(($Z$2=datasave!$A$7:$A$1253),ROW(datasave!$A$7:$A$1253)-7),ROW(A133))),\"\")","v":""}]
[null,null,null,null,null,null,null,null,null,null,null,null,null,null,null,null,null,null,null,null,null,null,null,null,null,null,null,null,null,null,null,null,null,null,null,null,null,null,null,null,null,null,null,null,null,null,{"$f":"IFERROR(INDEX(datasave!$D$7:$D$1253,SMALL(IF(($Z$2=datasave!$A$7:$A$1253),ROW(datasave!$A$7:$A$1253)-7),ROW(A134))),\"\")","v":""}]
[null,null,null,null,null,null,null,null,null,null,null,null,null,null,null,null,null,null,null,null,null,null,null,null,null,null,null,null,null,null,null,null,null,null,null,null,null,null,null,null,null,null,null,null,null,null,{"$f":"IFERROR(INDEX(datasave!$D$7:$D$1253,SMALL(IF(($Z$2=datasave!$A$7:$A$1253),ROW(datasave!$A$7:$A$1253)-7),ROW(A135))),\"\")","v":""}]
[null,null,null,null,null,null,null,null,null,null,null,null,null,null,null,null,null,null,null,null,null,null,null,null,null,null,null,null,null,null,null,null,null,null,null,null,null,null,null,null,null,null,null,null,null,null,{"$f":"IFERROR(INDEX(datasave!$D$7:$D$1253,SMALL(IF(($Z$2=datasave!$A$7:$A$1253),ROW(datasave!$A$7:$A$1253)-7),ROW(A136))),\"\")","v":""}]
[null,null,null,null,null,null,null,null,null,null,null,null,null,null,null,null,null,null,null,null,null,null,null,null,null,null,null,null,null,null,null,null,null,null,null,null,null,null,null,null,null,null,null,null,null,null,{"$f":"IFERROR(INDEX(datasave!$D$7:$D$1253,SMALL(IF(($Z$2=datasave!$A$7:$A$1253),ROW(datasave!$A$7:$A$1253)-7),ROW(A137))),\"\")","v":""}]
[null,null,null,null,null,null,null,null,null,null,null,null,null,null,null,null,null,null,null,null,null,null,null,null,null,null,null,null,null,null,null,null,null,null,null,null,null,null,null,null,null,null,null,null,null,null,{"$f":"IFERROR(INDEX(datasave!$D$7:$D$1253,SMALL(IF(($Z$2=datasave!$A$7:$A$1253),ROW(datasave!$A$7:$A$1253)-7),ROW(A138))),\"\")","v":""}]
[null,null,null,null,null,null,null,null,null,null,null,null,null,null,null,null,null,null,null,null,null,null,null,null,null,null,null,null,null,null,null,null,null,null,null,null,null,null,null,null,null,null,null,null,null,null,{"$f":"IFERROR(INDEX(datasave!$D$7:$D$1253,SMALL(IF(($Z$2=datasave!$A$7:$A$1253),ROW(datasave!$A$7:$A$1253)-7),ROW(A139))),\"\")","v":""}]
[null,null,null,null,null,null,null,null,null,null,null,null,null,null,null,null,null,null,null,null,null,null,null,null,null,null,null,null,null,null,null,null,null,null,null,null,null,null,null,null,null,null,null,null,null,null,{"$f":"IFERROR(INDEX(datasave!$D$7:$D$1253,SMALL(IF(($Z$2=datasave!$A$7:$A$1253),ROW(datasave!$A$7:$A$1253)-7),ROW(A140))),\"\")","v":""}]
[null,null,null,null,null,null,null,null,null,null,null,null,null,null,null,null,null,null,null,null,null,null,null,null,null,null,null,null,null,null,null,null,null,null,null,null,null,null,null,null,null,null,null,null,null,null,{"$f":"IFERROR(INDEX(datasave!$D$7:$D$1253,SMALL(IF(($Z$2=datasave!$A$7:$A$1253),ROW(datasave!$A$7:$A$1253)-7),ROW(A141))),\"\")","v":""}]
[null,null,null,null,null,null,null,null,null,null,null,null,null,null,null,null,null,null,null,null,null,null,null,null,null,null,null,null,null,null,null,null,null,null,null,null,null,null,null,null,null,null,null,null,null,null,{"$f":"IFERROR(INDEX(datasave!$D$7:$D$1253,SMALL(IF(($Z$2=datasave!$A$7:$A$1253),ROW(datasave!$A$7:$A$1253)-7),ROW(A142))),\"\")","v":""}]
[null,null,null,null,null,null,null,null,null,null,null,null,null,null,null,null,null,null,null,null,null,null,null,null,null,null,null,null,null,null,null,null,null,null,null,null,null,null,null,null,null,null,null,null,null,null,{"$f":"IFERROR(INDEX(datasave!$D$7:$D$1253,SMALL(IF(($Z$2=datasave!$A$7:$A$1253),ROW(datasave!$A$7:$A$1253)-7),ROW(A143))),\"\")","v":""}]
[null,null,null,null,null,null,null,null,null,null,null,null,null,null,null,null,null,null,null,null,null,null,null,null,null,null,null,null,null,null,null,null,null,null,null,null,null,null,null,null,null,null,null,null,null,null,{"$f":"IFERROR(INDEX(datasave!$D$7:$D$1253,SMALL(IF(($Z$2=datasave!$A$7:$A$1253),ROW(datasave!$A$7:$A$1253)-7),ROW(A144))),\"\")","v":""}]
[null,null,null,null,null,null,null,null,null,null,null,null,null,null,null,null,null,null,null,null,null,null,null,null,null,null,null,null,null,null,null,null,null,null,null,null,null,null,null,null,null,null,null,null,null,null,{"$f":"IFERROR(INDEX(datasave!$D$7:$D$1253,SMALL(IF(($Z$2=datasave!$A$7:$A$1253),ROW(datasave!$A$7:$A$1253)-7),ROW(A145))),\"\")","v":""}]
[null,null,null,null,null,null,null,null,null,null,null,null,null,null,null,null,null,null,null,null,null,null,null,null,null,null,null,null,null,null,null,null,null,null,null,null,null,null,null,null,null,null,null,null,null,null,{"$f":"IFERROR(INDEX(datasave!$D$7:$D$1253,SMALL(IF(($Z$2=datasave!$A$7:$A$1253),ROW(datasave!$A$7:$A$1253)-7),ROW(A146))),\"\")","v":""}]
[null,null,null,null,null,null,null,null,null,null,null,null,null,null,null,null,null,null,null,null,null,null,null,null,null,null,null,null,null,null,null,null,null,null,null,null,null,null,null,null,null,null,null,null,null,null,{"$f":"IFERROR(INDEX(datasave!$D$7:$D$1253,SMALL(IF(($Z$2=datasave!$A$7:$A$1253),ROW(datasave!$A$7:$A$1253)-7),ROW(A147))),\"\")","v":""}]
[null,null,null,null,null,null,null,null,null,null,null,null,null,null,null,null,null,null,null,null,null,null,null,null,null,null,null,null,null,null,null,null,null,null,null,null,null,null,null,null,null,null,null,null,null,null,{"$f":"IFERROR(INDEX(datasave!$D$7:$D$1253,SMALL(IF(($Z$2=datasave!$A$7:$A$1253),ROW(datasave!$A$7:$A$1253)-7),ROW(A148))),\"\")","v":""}]
[null,null,null,null,null,null,null,null,null,null,null,null,null,null,null,null,null,null,null,null,null,null,null,null,null,null,null,null,null,null,null,null,null,null,null,null,null,null,null,null,null,null,null,null,null,null,{"$f":"IFERROR(INDEX(datasave!$D$7:$D$1253,SMALL(IF(($Z$2=datasave!$A$7:$A$1253),ROW(datasave!$A$7:$A$1253)-7),ROW(A149))),\"\")","v":""}]
[null,null,null,null,null,null,null,null,null,null,null,null,null,null,null,null,null,null,null,null,null,null,null,null,null,null,null,null,null,null,null,null,null,null,null,null,null,null,null,null,null,null,null,null,null,null,{"$f":"IFERROR(INDEX(datasave!$D$7:$D$1253,SMALL(IF(($Z$2=datasave!$A$7:$A$1253),ROW(datasave!$A$7:$A$1253)-7),ROW(A150))),\"\")","v":""}]
[null,null,null,null,null,null,null,null,null,null,null,null,null,null,null,null,null,null,null,null,null,null,null,null,null,null,null,null,null,null,null,null,null,null,null,null,null,null,null,null,null,null,null,null,null,null,{"$f":"IFERROR(INDEX(datasave!$D$7:$D$1253,SMALL(IF(($Z$2=datasave!$A$7:$A$1253),ROW(datasave!$A$7:$A$1253)-7),ROW(A151))),\"\")","v":""}]
[null,null,null,null,null,null,null,null,null,null,null,null,null,null,null,null,null,null,null,null,null,null,null,null,null,null,null,null,null,null,null,null,null,null,null,null,null,null,null,null,null,null,null,null,null,null,{"$f":"IFERROR(INDEX(datasave!$D$7:$D$1253,SMALL(IF(($Z$2=datasave!$A$7:$A$1253),ROW(datasave!$A$7:$A$1253)-7),ROW(A152))),\"\")","v":""}]
[null,null,null,null,null,null,null,null,null,null,null,null,null,null,null,null,null,null,null,null,null,null,null,null,null,null,null,null,null,null,null,null,null,null,null,null,null,null,null,null,null,null,null,null,null,null,{"$f":"IFERROR(INDEX(datasave!$D$7:$D$1253,SMALL(IF(($Z$2=datasave!$A$7:$A$1253),ROW(datasave!$A$7:$A$1253)-7),ROW(A153))),\"\")","v":""}]
[null,null,null,null,null,null,null,null,null,null,null,null,null,null,null,null,null,null,null,null,null,null,null,null,null,null,null,null,null,null,null,null,null,null,null,null,null,null,null,null,null,null,null,null,null,null,{"$f":"IFERROR(INDEX(datasave!$D$7:$D$1253,SMALL(IF(($Z$2=datasave!$A$7:$A$1253),ROW(datasave!$A$7:$A$1253)-7),ROW(A154))),\"\")","v":""}]
[null,null,null,null,null,null,null,null,null,null,null,null,null,null,null,null,null,null,null,null,null,null,null,null,null,null,null,null,null,null,null,null,null,null,null,null,null,null,null,null,null,null,null,null,null,null,{"$f":"IFERROR(INDEX(datasave!$D$7:$D$1253,SMALL(IF(($Z$2=datasave!$A$7:$A$1253),ROW(datasave!$A$7:$A$1253)-7),ROW(A155))),\"\")","v":""}]
[null,null,null,null,null,null,null,null,null,null,null,null,null,null,null,null,null,null,null,null,null,null,null,null,null,null,null,null,null,null,null,null,null,null,null,null,null,null,null,null,null,null,null,null,null,null,{"$f":"IFERROR(INDEX(datasave!$D$7:$D$1253,SMALL(IF(($Z$2=datasave!$A$7:$A$1253),ROW(datasave!$A$7:$A$1253)-7),ROW(A156))),\"\")","v":""}]
[null,null,null,null,null,null,null,null,null,null,null,null,null,null,null,null,null,null,null,null,null,null,null,null,null,null,null,null,null,null,null,null,null,null,null,null,null,null,null,null,null,null,null,null,null,null,{"$f":"IFERROR(INDEX(datasave!$D$7:$D$1253,SMALL(IF(($Z$2=datasave!$A$7:$A$1253),ROW(datasave!$A$7:$A$1253)-7),ROW(A157))),\"\")","v":""}]
[null,null,null,null,null,null,null,null,null,null,null,null,null,null,null,null,null,null,null,null,null,null,null,null,null,null,null,null,null,null,null,null,null,null,null,null,null,null,null,null,null,null,null,null,null,null,{"$f":"IFERROR(INDEX(datasave!$D$7:$D$1253,SMALL(IF(($Z$2=datasave!$A$7:$A$1253),ROW(datasave!$A$7:$A$1253)-7),ROW(A158))),\"\")","v":""}]
[null,null,null,null,null,null,null,null,null,null,null,null,null,null,null,null,null,null,null,null,null,null,null,null,null,null,null,null,null,null,null,null,null,null,null,null,null,null,null,null,null,null,null,null,null,null,{"$f":"IFERROR(INDEX(datasave!$D$7:$D$1253,SMALL(IF(($Z$2=datasave!$A$7:$A$1253),ROW(datasave!$A$7:$A$1253)-7),ROW(A159))),\"\")","v":""}]
[null,null,null,null,null,null,null,null,null,null,null,null,null,null,null,null,null,null,null,null,null,null,null,null,null,null,null,null,null,null,null,null,null,null,null,null,null,null,null,null,null,null,null,null,null,null,{"$f":"IFERROR(INDEX(datasave!$D$7:$D$1253,SMALL(IF(($Z$2=datasave!$A$7:$A$1253),ROW(datasave!$A$7:$A$1253)-7),ROW(A160))),\"\")","v":""}]
[null,null,null,null,null,null,null,null,null,null,null,null,null,null,null,null,null,null,null,null,null,null,null,null,null,null,null,null,null,null,null,null,null,null,null,null,null,null,null,null,null,null,null,null,null,null,{"$f":"IFERROR(INDEX(datasave!$D$7:$D$1253,SMALL(IF(($Z$2=datasave!$A$7:$A$1253),ROW(datasave!$A$7:$A$1253)-7),ROW(A161))),\"\")","v":""}]
[null,null,null,null,null,null,null,null,null,null,null,null,null,null,null,null,null,null,null,null,null,null,null,null,null,null,null,null,null,null,null,null,null,null,null,null,null,null,null,null,null,null,null,null,null,null,{"$f":"IFERROR(INDEX(datasave!$D$7:$D$1253,SMALL(IF(($Z$2=datasave!$A$7:$A$1253),ROW(datasave!$A$7:$A$1253)-7),ROW(A162))),\"\")","v":""}]
[null,null,null,null,null,null,null,null,null,null,null,null,null,null,null,null,null,null,null,null,null,null,null,null,null,null,null,null,null,null,null,null,null,null,null,null,null,null,null,null,null,null,null,null,null,null,{"$f":"IFERROR(INDEX(datasave!$D$7:$D$1253,SMALL(IF(($Z$2=datasave!$A$7:$A$1253),ROW(datasave!$A$7:$A$1253)-7),ROW(A163))),\"\")","v":""}]
[null,null,null,null,null,null,null,null,null,null,null,null,null,null,null,null,null,null,null,null,null,null,null,null,null,null,null,null,null,null,null,null,null,null,null,null,null,null,null,null,null,null,null,null,null,null,{"$f":"IFERROR(INDEX(datasave!$D$7:$D$1253,SMALL(IF(($Z$2=datasave!$A$7:$A$1253),ROW(datasave!$A$7:$A$1253)-7),ROW(A164))),\"\")","v":""}]
[null,null,null,null,null,null,null,null,null,null,null,null,null,null,null,null,null,null,null,null,null,null,null,null,null,null,null,null,null,null,null,null,null,null,null,null,null,null,null,null,null,null,null,null,null,null,{"$f":"IFERROR(INDEX(datasave!$D$7:$D$1253,SMALL(IF(($Z$2=datasave!$A$7:$A$1253),ROW(datasave!$A$7:$A$1253)-7),ROW(A165))),\"\")","v":""}]
[null,null,null,null,null,null,null,null,null,null,null,null,null,null,null,null,null,null,null,null,null,null,null,null,null,null,null,null,null,null,null,null,null,null,null,null,null,null,null,null,null,null,null,null,null,null,{"$f":"IFERROR(INDEX(datasave!$D$7:$D$1253,SMALL(IF(($Z$2=datasave!$A$7:$A$1253),ROW(datasave!$A$7:$A$1253)-7),ROW(A166))),\"\")","v":""}]
[null,null,null,null,null,null,null,null,null,null,null,null,null,null,null,null,null,null,null,null,null,null,null,null,null,null,null,null,null,null,null,null,null,null,null,null,null,null,null,null,null,null,null,null,null,null,{"$f":"IFERROR(INDEX(datasave!$D$7:$D$1253,SMALL(IF(($Z$2=datasave!$A$7:$A$1253),ROW(datasave!$A$7:$A$1253)-7),ROW(A167))),\"\")","v":""}]
[null,null,null,null,null,null,null,null,null,null,null,null,null,null,null,null,null,null,null,null,null,null,null,null,null,null,null,null,null,null,null,null,null,null,null,null,null,null,null,null,null,null,null,null,null,null,{"$f":"IFERROR(INDEX(datasave!$D$7:$D$1253,SMALL(IF(($Z$2=datasave!$A$7:$A$1253),ROW(datasave!$A$7:$A$1253)-7),ROW(A168))),\"\")","v":""}]
[null,null,null,null,null,null,null,null,null,null,null,null,null,null,null,null,null,null,null,null,null,null,null,null,null,null,null,null,null,null,null,null,null,null,null,null,null,null,null,null,null,null,null,null,null,null,{"$f":"IFERROR(INDEX(datasave!$D$7:$D$1253,SMALL(IF(($Z$2=datasave!$A$7:$A$1253),ROW(datasave!$A$7:$A$1253)-7),ROW(A169))),\"\")","v":""}]
[null,null,null,null,null,null,null,null,null,null,null,null,null,null,null,null,null,null,null,null,null,null,null,null,null,null,null,null,null,null,null,null,null,null,null,null,null,null,null,null,null,null,null,null,null,null,{"$f":"IFERROR(INDEX(datasave!$D$7:$D$1253,SMALL(IF(($Z$2=datasave!$A$7:$A$1253),ROW(datasave!$A$7:$A$1253)-7),ROW(A170))),\"\")","v":""}]
[null,null,null,null,null,null,null,null,null,null,null,null,null,null,null,null,null,null,null,null,null,null,null,null,null,null,null,null,null,null,null,null,null,null,null,null,null,null,null,null,null,null,null,null,null,null,{"$f":"IFERROR(INDEX(datasave!$D$7:$D$1253,SMALL(IF(($Z$2=datasave!$A$7:$A$1253),ROW(datasave!$A$7:$A$1253)-7),ROW(A171))),\"\")","v":""}]
[null,null,null,null,null,null,null,null,null,null,null,null,null,null,null,null,null,null,null,null,null,null,null,null,null,null,null,null,null,null,null,null,null,null,null,null,null,null,null,null,null,null,null,null,null,null,{"$f":"IFERROR(INDEX(datasave!$D$7:$D$1253,SMALL(IF(($Z$2=datasave!$A$7:$A$1253),ROW(datasave!$A$7:$A$1253)-7),ROW(A172))),\"\")","v":""}]
[null,null,null,null,null,null,null,null,null,null,null,null,null,null,null,null,null,null,null,null,null,null,null,null,null,null,null,null,null,null,null,null,null,null,null,null,null,null,null,null,null,null,null,null,null,null,{"$f":"IFERROR(INDEX(datasave!$D$7:$D$1253,SMALL(IF(($Z$2=datasave!$A$7:$A$1253),ROW(datasave!$A$7:$A$1253)-7),ROW(A173))),\"\")","v":""}]
[null,null,null,null,null,null,null,null,null,null,null,null,null,null,null,null,null,null,null,null,null,null,null,null,null,null,null,null,null,null,null,null,null,null,null,null,null,null,null,null,null,null,null,null,null,null,{"$f":"IFERROR(INDEX(datasave!$D$7:$D$1253,SMALL(IF(($Z$2=datasave!$A$7:$A$1253),ROW(datasave!$A$7:$A$1253)-7),ROW(A174))),\"\")","v":""}]
[null,null,null,null,null,null,null,null,null,null,null,null,null,null,null,null,null,null,null,null,null,null,null,null,null,null,null,null,null,null,null,null,null,null,null,null,null,null,null,null,null,null,null,null,null,null,{"$f":"IFERROR(INDEX(datasave!$D$7:$D$1253,SMALL(IF(($Z$2=datasave!$A$7:$A$1253),ROW(datasave!$A$7:$A$1253)-7),ROW(A175))),\"\")","v":""}]
[null,null,null,null,null,null,null,null,null,null,null,null,null,null,null,null,null,null,null,null,null,null,null,null,null,null,null,null,null,null,null,null,null,null,null,null,null,null,null,null,null,null,null,null,null,null,{"$f":"IFERROR(INDEX(datasave!$D$7:$D$1253,SMALL(IF(($Z$2=datasave!$A$7:$A$1253),ROW(datasave!$A$7:$A$1253)-7),ROW(A176))),\"\")","v":""}]
[null,null,null,null,null,null,null,null,null,null,null,null,null,null,null,null,null,null,null,null,null,null,null,null,null,null,null,null,null,null,null,null,null,null,null,null,null,null,null,null,null,null,null,null,null,null,{"$f":"IFERROR(INDEX(datasave!$D$7:$D$1253,SMALL(IF(($Z$2=datasave!$A$7:$A$1253),ROW(datasave!$A$7:$A$1253)-7),ROW(A177))),\"\")","v":""}]
[null,null,null,null,null,null,null,null,null,null,null,null,null,null,null,null,null,null,null,null,null,null,null,null,null,null,null,null,null,null,null,null,null,null,null,null,null,null,null,null,null,null,null,null,null,null,{"$f":"IFERROR(INDEX(datasave!$D$7:$D$1253,SMALL(IF(($Z$2=datasave!$A$7:$A$1253),ROW(datasave!$A$7:$A$1253)-7),ROW(A178))),\"\")","v":""}]
[null,null,null,null,null,null,null,null,null,null,null,null,null,null,null,null,null,null,null,null,null,null,null,null,null,null,null,null,null,null,null,null,null,null,null,null,null,null,null,null,null,null,null,null,null,null,{"$f":"IFERROR(INDEX(datasave!$D$7:$D$1253,SMALL(IF(($Z$2=datasave!$A$7:$A$1253),ROW(datasave!$A$7:$A$1253)-7),ROW(A179))),\"\")","v":""}]
[null,null,null,null,null,null,null,null,null,null,null,null,null,null,null,null,null,null,null,null,null,null,null,null,null,null,null,null,null,null,null,null,null,null,null,null,null,null,null,null,null,null,null,null,null,null,{"$f":"IFERROR(INDEX(datasave!$D$7:$D$1253,SMALL(IF(($Z$2=datasave!$A$7:$A$1253),ROW(datasave!$A$7:$A$1253)-7),ROW(A180))),\"\")","v":""}]
[null,null,null,null,null,null,null,null,null,null,null,null,null,null,null,null,null,null,null,null,null,null,null,null,null,null,null,null,null,null,null,null,null,null,null,null,null,null,null,null,null,null,null,null,null,null,{"$f":"IFERROR(INDEX(datasave!$D$7:$D$1253,SMALL(IF(($Z$2=datasave!$A$7:$A$1253),ROW(datasave!$A$7:$A$1253)-7),ROW(A181))),\"\")","v":""}]
[null,null,null,null,null,null,null,null,null,null,null,null,null,null,null,null,null,null,null,null,null,null,null,null,null,null,null,null,null,null,null,null,null,null,null,null,null,null,null,null,null,null,null,null,null,null,{"$f":"IFERROR(INDEX(datasave!$D$7:$D$1253,SMALL(IF(($Z$2=datasave!$A$7:$A$1253),ROW(datasave!$A$7:$A$1253)-7),ROW(A182))),\"\")","v":""}]
[null,null,null,null,null,null,null,null,null,null,null,null,null,null,null,null,null,null,null,null,null,null,null,null,null,null,null,null,null,null,null,null,null,null,null,null,null,null,null,null,null,null,null,null,null,null,{"$f":"IFERROR(INDEX(datasave!$D$7:$D$1253,SMALL(IF(($Z$2=datasave!$A$7:$A$1253),ROW(datasave!$A$7:$A$1253)-7),ROW(A183))),\"\")","v":""}]
[null,null,null,null,null,null,null,null,null,null,null,null,null,null,null,null,null,null,null,null,null,null,null,null,null,null,null,null,null,null,null,null,null,null,null,null,null,null,null,null,null,null,null,null,null,null,{"$f":"IFERROR(INDEX(datasave!$D$7:$D$1253,SMALL(IF(($Z$2=datasave!$A$7:$A$1253),ROW(datasave!$A$7:$A$1253)-7),ROW(A184))),\"\")","v":""}]
[null,null,null,null,null,null,null,null,null,null,null,null,null,null,null,null,null,null,null,null,null,null,null,null,null,null,null,null,null,null,null,null,null,null,null,null,null,null,null,null,null,null,null,null,null,null,{"$f":"IFERROR(INDEX(datasave!$D$7:$D$1253,SMALL(IF(($Z$2=datasave!$A$7:$A$1253),ROW(datasave!$A$7:$A$1253)-7),ROW(A185))),\"\")","v":""}]
[null,null,null,null,null,null,null,null,null,null,null,null,null,null,null,null,null,null,null,null,null,null,null,null,null,null,null,null,null,null,null,null,null,null,null,null,null,null,null,null,null,null,null,null,null,null,{"$f":"IFERROR(INDEX(datasave!$D$7:$D$1253,SMALL(IF(($Z$2=datasave!$A$7:$A$1253),ROW(datasave!$A$7:$A$1253)-7),ROW(A186))),\"\")","v":""}]
[null,null,null,null,null,null,null,null,null,null,null,null,null,null,null,null,null,null,null,null,null,null,null,null,null,null,null,null,null,null,null,null,null,null,null,null,null,null,null,null,null,null,null,null,null,null,{"$f":"IFERROR(INDEX(datasave!$D$7:$D$1253,SMALL(IF(($Z$2=datasave!$A$7:$A$1253),ROW(datasave!$A$7:$A$1253)-7),ROW(A187))),\"\")","v":""}]
[null,null,null,null,null,null,null,null,null,null,null,null,null,null,null,null,null,null,null,null,null,null,null,null,null,null,null,null,null,null,null,null,null,null,null,null,null,null,null,null,null,null,null,null,null,null,{"$f":"IFERROR(INDEX(datasave!$D$7:$D$1253,SMALL(IF(($Z$2=datasave!$A$7:$A$1253),ROW(datasave!$A$7:$A$1253)-7),ROW(A188))),\"\")","v":""}]
[null,null,null,null,null,null,null,null,null,null,null,null,null,null,null,null,null,null,null,null,null,null,null,null,null,null,null,null,null,null,null,null,null,null,null,null,null,null,null,null,null,null,null,null,null,null,{"$f":"IFERROR(INDEX(datasave!$D$7:$D$1253,SMALL(IF(($Z$2=datasave!$A$7:$A$1253),ROW(datasave!$A$7:$A$1253)-7),ROW(A189))),\"\")","v":""}]
[null,null,null,null,null,null,null,null,null,null,null,null,null,null,null,null,null,null,null,null,null,null,null,null,null,null,null,null,null,null,null,null,null,null,null,null,null,null,null,null,null,null,null,null,null,null,{"$f":"IFERROR(INDEX(datasave!$D$7:$D$1253,SMALL(IF(($Z$2=datasave!$A$7:$A$1253),ROW(datasave!$A$7:$A$1253)-7),ROW(A190))),\"\")","v":""}]
[null,null,null,null,null,null,null,null,null,null,null,null,null,null,null,null,null,null,null,null,null,null,null,null,null,null,null,null,null,null,null,null,null,null,null,null,null,null,null,null,null,null,null,null,null,null,{"$f":"IFERROR(INDEX(datasave!$D$7:$D$1253,SMALL(IF(($Z$2=datasave!$A$7:$A$1253),ROW(datasave!$A$7:$A$1253)-7),ROW(A191))),\"\")","v":""}]
[null,null,null,null,null,null,null,null,null,null,null,null,null,null,null,null,null,null,null,null,null,null,null,null,null,null,null,null,null,null,null,null,null,null,null,null,null,null,null,null,null,null,null,null,null,null,{"$f":"IFERROR(INDEX(datasave!$D$7:$D$1253,SMALL(IF(($Z$2=datasave!$A$7:$A$1253),ROW(datasave!$A$7:$A$1253)-7),ROW(A192))),\"\")","v":""}]
[null,null,null,null,null,null,null,null,null,null,null,null,null,null,null,null,null,null,null,null,null,null,null,null,null,null,null,null,null,null,null,null,null,null,null,null,null,null,null,null,null,null,null,null,null,null,{"$f":"IFERROR(INDEX(datasave!$D$7:$D$1253,SMALL(IF(($Z$2=datasave!$A$7:$A$1253),ROW(datasave!$A$7:$A$1253)-7),ROW(A193))),\"\")","v":""}]
[null,null,null,null,null,null,null,null,null,null,null,null,null,null,null,null,null,null,null,null,null,null,null,null,null,null,null,null,null,null,null,null,null,null,null,null,null,null,null,null,null,null,null,null,null,null,{"$f":"IFERROR(INDEX(datasave!$D$7:$D$1253,SMALL(IF(($Z$2=datasave!$A$7:$A$1253),ROW(datasave!$A$7:$A$1253)-7),ROW(A194))),\"\")","v":""}]
[null,null,null,null,null,null,null,null,null,null,null,null,null,null,null,null,null,null,null,null,null,null,null,null,null,null,null,null,null,null,null,null,null,null,null,null,null,null,null,null,null,null,null,null,null,null,{"$f":"IFERROR(INDEX(datasave!$D$7:$D$1253,SMALL(IF(($Z$2=datasave!$A$7:$A$1253),ROW(datasave!$A$7:$A$1253)-7),ROW(A195))),\"\")","v":""}]
[null,null,null,null,null,null,null,null,null,null,null,null,null,null,null,null,null,null,null,null,null,null,null,null,null,null,null,null,null,null,null,null,null,null,null,null,null,null,null,null,null,null,null,null,null,null,{"$f":"IFERROR(INDEX(datasave!$D$7:$D$1253,SMALL(IF(($Z$2=datasave!$A$7:$A$1253),ROW(datasave!$A$7:$A$1253)-7),ROW(A196))),\"\")","v":""}]
[null,null,null,null,null,null,null,null,null,null,null,null,null,null,null,null,null,null,null,null,null,null,null,null,null,null,null,null,null,null,null,null,null,null,null,null,null,null,null,null,null,null,null,null,null,null,{"$f":"IFERROR(INDEX(datasave!$D$7:$D$1253,SMALL(IF(($Z$2=datasave!$A$7:$A$1253),ROW(datasave!$A$7:$A$1253)-7),ROW(A197))),\"\")","v":""}]
[null,null,null,null,null,null,null,null,null,null,null,null,null,null,null,null,null,null,null,null,null,null,null,null,null,null,null,null,null,null,null,null,null,null,null,null,null,null,null,null,null,null,null,null,null,null,{"$f":"IFERROR(INDEX(datasave!$D$7:$D$1253,SMALL(IF(($Z$2=datasave!$A$7:$A$1253),ROW(datasave!$A$7:$A$1253)-7),ROW(A198))),\"\")","v":""}]
[null,null,null,null,null,null,null,null,null,null,null,null,null,null,null,null,null,null,null,null,null,null,null,null,null,null,null,null,null,null,null,null,null,null,null,null,null,null,null,null,null,null,null,null,null,null,{"$f":"IFERROR(INDEX(datasave!$D$7:$D$1253,SMALL(IF(($Z$2=datasave!$A$7:$A$1253),ROW(datasave!$A$7:$A$1253)-7),ROW(A199))),\"\")","v":""}]
[null,null,null,null,null,null,null,null,null,null,null,null,null,null,null,null,null,null,null,null,null,null,null,null,null,null,null,null,null,null,null,null,null,null,null,null,null,null,null,null,null,null,null,null,null,null,{"$f":"IFERROR(INDEX(datasave!$D$7:$D$1253,SMALL(IF(($Z$2=datasave!$A$7:$A$1253),ROW(datasave!$A$7:$A$1253)-7),ROW(A200))),\"\")","v":""}]
[null,null,null,null,null,null,null,null,null,null,null,null,null,null,null,null,null,null,null,null,null,null,null,null,null,null,null,null,null,null,null,null,null,null,null,null,null,null,null,null,null,null,null,null,null,null,{"$f":"IFERROR(INDEX(datasave!$D$7:$D$1253,SMALL(IF(($Z$2=datasave!$A$7:$A$1253),ROW(datasave!$A$7:$A$1253)-7),ROW(A201))),\"\")","v":""}]
[null,null,null,null,null,null,null,null,null,null,null,null,null,null,null,null,null,null,null,null,null,null,null,null,null,null,null,null,null,null,null,null,null,null,null,null,null,null,null,null,null,null,null,null,null,null,{"$f":"IFERROR(INDEX(datasave!$D$7:$D$1253,SMALL(IF(($Z$2=datasave!$A$7:$A$1253),ROW(datasave!$A$7:$A$1253)-7),ROW(A202))),\"\")","v":""}]
[null,null,null,null,null,null,null,null,null,null,null,null,null,null,null,null,null,null,null,null,null,null,null,null,null,null,null,null,null,null,null,null,null,null,null,null,null,null,null,null,null,null,null,null,null,null,{"$f":"IFERROR(INDEX(datasave!$D$7:$D$1253,SMALL(IF(($Z$2=datasave!$A$7:$A$1253),ROW(datasave!$A$7:$A$1253)-7),ROW(A203))),\"\")","v":""}]
[null,null,null,null,null,null,null,null,null,null,null,null,null,null,null,null,null,null,null,null,null,null,null,null,null,null,null,null,null,null,null,null,null,null,null,null,null,null,null,null,null,null,null,null,null,null,{"$f":"IFERROR(INDEX(datasave!$D$7:$D$1253,SMALL(IF(($Z$2=datasave!$A$7:$A$1253),ROW(datasave!$A$7:$A$1253)-7),ROW(A204))),\"\")","v":""}]

{"sheet":"datesearch","index":4,"n_rows":42,"n_cols":13,"rows_kept":42,"cut":false,"hidden":false,"merged":[[6,2,6,3],[6,5,6,6],[5,1,5,6],[3,1,3,2]]}
[]
[null,null,null,null,null,null,null,null,null,null,null,null,"2018-12-16"]
[null,null,null,null,null,null,null,null,null,null,null,null,"2018-12-17"]
[null,null,null,null,null,null,null,null,null,null,null,null,"2018-12-18"]
[null,null,null,null,null,null,null,null,null,null,null,null,"2018-12-19"]
[null,"كشف عدد الحضور و الغياب ",null,null,null,null,null,"عدد ايام العمل",null,null,null,null,"2018-12-20"]
[null,"الفترة من :","2019-01-01",null,"الى","2019-01-31",null,{"$f":"KhCountDay($C$7,$F$7,$M$2:$M$30,6,7)","v":11},null,null,null,null,"2018-12-21"]
[null,null,null,null,null,null,null,null,null,null,null,null,"2018-12-22"]
[null,"م","الصف والشعبة","عدد الطلاب","عدد الحضور","عدد الغياب","نسبة الحضور","نسبة الغياب",null,null,null,null,"2018-12-23"]
[null,{"$f":"IF(C10=\"\",\"\",MAX($B$9:B9)+1)","v":1},"05/1",{"$f":"IF(الجدول6[[#This Row],[الصف والشعبة]]=\"\",\"\",COUNTIF(data!$H$4:$H$1250,الجدول6[[#This Row],[الصف والشعبة]]))*$H$7","v":0},{"$f":"D10-F10","v":0},{"$f":"IF(الجدول6[[#This Row],[الصف والشعبة]]=\"\",\"\",COUNTIFS(datasave!$D$7:$D$1253,\">=\"&$C$7,datasave!$D$7:$D$1253,\"<=\"&$F$7,datasave!$C$7:$C$1253,الجدول6[[#This Row],[الصف والشعبة]]))","v":0},{"$f":"IFERROR(E10/D10,\"\")","v":""},{"$f":"IFERROR(F10/D10,\"\")","v":""},null,null,{"$f":"IFERROR(KhCountDay($C$7,$F$7,$M$2:$M$30,6,7),\"\")","v":11},null,"2018-12-24"]
[null,{"$f":"IF(C11=\"\",\"\",MAX($B$9:B10)+1)","v":2},"05/2",{"$f":"IF(الجدول6[[#This Row],[الصف والشعبة]]=\"\",\"\",COUNTIF(data!$H$4:$H$1250,الجدول6[[#This Row],[الصف والشعبة]]))*$H$7","v":0},0,{"$f":"IF(الجدول6[[#This Row],[الصف والشعبة]]=\"\",\"\",COUNTIFS(datasave!$D$7:$D$1253,\">=\"&$C$7,datasave!$D$7:$D$1253,\"<=\"&$F$7,datasave!$C$7:$C$1253,الجدول6[[#This Row],[الصف والشعبة]]))","v":0},"","",null,null,null,null,"2018-12-25"]
[null,{"$f":"IF(C12=\"\",\"\",MAX($B$9:B11)+1)","v":3},"05/3",{"$f":"IF(الجدول6[[#This Row],[الصف والشعبة]]=\"\",\"\",COUNTIF(data!$H$4:$H$1250,الجدول6[[#This Row],[الصف والشعبة]]))*$H$7","v":0},0,{"$f":"IF(الجدول6[[#This Row],[الصف والشعبة]]=\"\",\"\",COUNTIFS(datasave!$D$7:$D$1253,\">=\"&$C$7,datasave!$D$7:$D$1253,\"<=\"&$F$7,datasave!$C$7:$C$1253,الجدول6[[#This Row],[الصف والشعبة]]))","v":0},"","",null,null,null,null,"2018-12-26"]
[null,{"$f":"IF(C13=\"\",\"\",MAX($B$9:B12)+1)","v":4},"06 [عام]/1",{"$f":"IF(الجدول6[[#This Row],[الصف والشعبة]]=\"\",\"\",COUNTIF(data!$H$4:$H$1250,الجدول6[[#This Row],[الصف والشعبة]]))*$H$7","v":0},0,{"$f":"IF(الجدول6[[#This Row],[الصف والشعبة]]=\"\",\"\",COUNTIFS(datasave!$D$7:$D$1253,\">=\"&$C$7,datasave!$D$7:$D$1253,\"<=\"&$F$7,datasave!$C$7:$C$1253,الجدول6[[#This Row],[الصف والشعبة]]))","v":0},"","",null,null,null,null,"2018-12-27"]
[null,{"$f":"IF(C14=\"\",\"\",MAX($B$9:B13)+1)","v":5},"06 [عام]/2",{"$f":"IF(الجدول6[[#This Row],[الصف والشعبة]]=\"\",\"\",COUNTIF(data!$H$4:$H$1250,الجدول6[[#This Row],[الصف والشعبة]]))*$H$7","v":0},0,{"$f":"IF(الجدول6[[#This Row],[الصف والشعبة]]=\"\",\"\",COUNTIFS(datasave!$D$7:$D$1253,\">=\"&$C$7,datasave!$D$7:$D$1253,\"<=\"&$F$7,datasave!$C$7:$C$1253,الجدول6[[#This Row],[الصف والشعبة]]))","v":0},"","",null,null,null,null,"2018-12-28"]
[null,{"$f":"IF(C15=\"\",\"\",MAX($B$9:B14)+1)","v":6},"06 [عام]/3",{"$f":"IF(الجدول6[[#This Row],[الصف والشعبة]]=\"\",\"\",COUNTIF(data!$H$4:$H$1250,الجدول6[[#This Row],[الصف والشعبة]]))*$H$7","v":0},0,{"$f":"IF(الجدول6[[#This Row],[الصف والشعبة]]=\"\",\"\",COUNTIFS(datasave!$D$7:$D$1253,\">=\"&$C$7,datasave!$D$7:$D$1253,\"<=\"&$F$7,datasave!$C$7:$C$1253,الجدول6[[#This Row],[الصف والشعبة]]))","v":0},"","",null,null,null,null,"2018-12-29"]
[null,{"$f":"IF(C16=\"\",\"\",MAX($B$9:B15)+1)","v":7},"06 [نخبة]/1",{"$f":"IF(الجدول6[[#This Row],[الصف والشعبة]]=\"\",\"\",COUNTIF(data!$H$4:$H$1250,الجدول6[[#This Row],[الصف والشعبة]]))*$H$7","v":0},0,{"$f":"IF(الجدول6[[#This Row],[الصف والشعبة]]=\"\",\"\",COUNTIFS(datasave!$D$7:$D$1253,\">=\"&$C$7,datasave!$D$7:$D$1253,\"<=\"&$F$7,datasave!$C$7:$C$1253,الجدول6[[#This Row],[الصف والشعبة]]))","v":0},"","",null,null,null,null,"2018-12-30"]
[null,{"$f":"IF(C17=\"\",\"\",MAX($B$9:B16)+1)","v":8},"06 [نخبة]/2",{"$f":"IF(الجدول6[[#This Row],[الصف والشعبة]]=\"\",\"\",COUNTIF(data!$H$4:$H$1250,الجدول6[[#This Row],[الصف والشعبة]]))*$H$7","v":0},0,{"$f":"IF(الجدول6[[#This Row],[الصف والشعبة]]=\"\",\"\",COUNTIFS(datasave!$D$7:$D$1253,\">=\"&$C$7,datasave!$D$7:$D$1253,\"<=\"&$F$7,datasave!$C$7:$C$1253,الجدول6[[#This Row],[الصف والشعبة]]))","v":0},"","",null,null,null,null,"2018-12-31"]
[null,{"$f":"IF(C18=\"\",\"\",MAX($B$9:B17)+1)","v":9},"07 [عام]/1",{"$f":"IF(الجدول6[[#This Row],[الصف والشعبة]]=\"\",\"\",COUNTIF(data!$H$4:$H$1250,الجدول6[[#This Row],[الصف والشعبة]]))*$H$7","v":0},0,{"$f":"IF(الجدول6[[#This Row],[الصف والشعبة]]=\"\",\"\",COUNTIFS(datasave!$D$7:$D$1253,\">=\"&$C$7,datasave!$D$7:$D$1253,\"<=\"&$F$7,datasave!$C$7:$C$1253,الجدول6[[#This Row],[الصف والشعبة]]))","v":0},"","",null,null,null,null,"2019-01-01"]
[null,{"$f":"IF(C19=\"\",\"\",MAX($B$9:B18)+1)","v":10},"07 [عام]/2",{"$f":"IF(الجدول6[[#This Row],[الصف والشعبة]]=\"\",\"\",COUNTIF(data!$H$4:$H$1250,الجدول6[[#This Row],[الصف والشعبة]]))*$H$7","v":0},0,{"$f":"IF(الجدول6[[#This Row],[الصف والشعبة]]=\"\",\"\",COUNTIFS(datasave!$D$7:$D$1253,\">=\"&$C$7,datasave!$D$7:$D$1253,\"<=\"&$F$7,datasave!$C$7:$C$1253,الجدول6[[#This Row],[الصف والشعبة]]))","v":0},"","",null,null,null,null,"2019-01-02"]
[null,{"$f":"IF(C20=\"\",\"\",MAX($B$9:B19)+1)","v":11},"07 [عام]/3",{"$f":"IF(الجدول6[[#This Row],[الصف والشعبة]]=\"\",\"\",COUNTIF(data!$H$4:$H$1250,الجدول6[[#This Row],[الصف والشعبة]]))*$H$7","v":0},0,{"$f":"IF(الجدول6[[#This Row],[الصف والشعبة]]=\"\",\"\",COUNTIFS(datasave!$D$7:$D$1253,\">=\"&$C$7,datasave!$D$7:$D$1253,\"<=\"&$F$7,datasave!$C$7:$C$1253,الجدول6[[#This Row],[الصف والشعبة]]))","v":0},"","",null,null,null,null,"2019-01-03"]
[null,{"$f":"IF(C21=\"\",\"\",MAX($B$9:B20)+1)","v":12},"07 [نخبة]/1",{"$f":"IF(الجدول6[[#This Row],[الصف والشعبة]]=\"\",\"\",COUNTIF(data!$H$4:$H$1250,الجدول6[[#This Row],[الصف والشعبة]]))*$H$7","v":0},0,{"$f":"IF(الجدول6[[#This Row],[الصف والشعبة]]=\"\",\"\",COUNTIFS(datasave!$D$7:$D$1253,\">=\"&$C$7,datasave!$D$7:$D$1253,\"<=\"&$F$7,datasave!$C$7:$C$1253,الجدول6[[#This Row],[الصف والشعبة]]))","v":0},"","",null,null,null,null,"2019-01-04"]
[null,{"$f":"IF(C22=\"\",\"\",MAX($B$9:B21)+1)","v":13},"08 [عام]/1",{"$f":"IF(الجدول6[[#This Row],[الصف والشعبة]]=\"\",\"\",COUNTIF(data!$H$4:$H$1250,الجدول6[[#This Row],[الصف والشعبة]]))*$H$7","v":0},0,{"$f":"IF(الجدول6[[#This Row],[الصف والشعبة]]=\"\",\"\",COUNTIFS(datasave!$D$7:$D$1253,\">=\"&$C$7,datasave!$D$7:$D$1253,\"<=\"&$F$7,datasave!$C$7:$C$1253,الجدول6[[#This Row],[الصف والشعبة]]))","v":0},"","",null,null,null,null,"2019-01-05"]
[null,{"$f":"IF(C23=\"\",\"\",MAX($B$9:B22)+1)","v":14},"08 [عام]/2",{"$f":"IF(الجدول6[[#This Row],[الصف والشعبة]]=\"\",\"\",COUNTIF(data!$H$4:$H$1250,الجدول6[[#This Row],[الصف والشعبة]]))*$H$7","v":0},0,{"$f":"IF(الجدول6[[#This Row],[الصف والشعبة]]=\"\",\"\",COUNTIFS(datasave!$D$7:$D$1253,\">=\"&$C$7,datasave!$D$7:$D$1253,\"<=\"&$F$7,datasave!$C$7:$C$1253,الجدول6[[#This Row],[الصف والشعبة]]))","v":0},"","",null,null,null,null,"2019-01-06"]
[null,{"$f":"IF(C24=\"\",\"\",MAX($B$9:B23)+1)","v":15},"08 [عام]/3",{"$f":"IF(الجدول6[[#This Row],[الصف والشعبة]]=\"\",\"\",COUNTIF(data!$H$4:$H$1250,الجدول6[[#This Row],[الصف والشعبة]]))*$H$7","v":0},0,{"$f":"IF(الجدول6[[#This Row],[الصف والشعبة]]=\"\",\"\",COUNTIFS(datasave!$D$7:$D$1253,\">=\"&$C$7,datasave!$D$7:$D$1253,\"<=\"&$F$7,datasave!$C$7:$C$1253,الجدول6[[#This Row],[الصف والشعبة]]))","v":0},"","",null,null,null,null,"2019-01-07"]
[null,{"$f":"IF(C25=\"\",\"\",MAX($B$9:B24)+1)","v":16},"08 [نخبة]/1",{"$f":"IF(الجدول6[[#This Row],[الصف والشعبة]]=\"\",\"\",COUNTIF(data!$H$4:$H$1250,الجدول6[[#This Row],[الصف والشعبة]]))*$H$7","v":0},0,{"$f":"IF(الجدول6[[#This Row],[الصف والشعبة]]=\"\",\"\",COUNTIFS(datasave!$D$7:$D$1253,\">=\"&$C$7,datasave!$D$7:$D$1253,\"<=\"&$F$7,datasave!$C$7:$C$1253,الجدول6[[#This Row],[الصف والشعبة]]))","v":0},"","",null,null,null,null,"2019-01-08"]
[null,{"$f":"IF(C26=\"\",\"\",MAX($B$9:B25)+1)","v":17},"08 [نخبة]/2",{"$f":"IF(الجدول6[[#This Row],[الصف والشعبة]]=\"\",\"\",COUNTIF(data!$H$4:$H$1250,الجدول6[[#This Row],[الصف والشعبة]]))*$H$7","v":0},0,{"$f":"IF(الجدول6[[#This Row],[الصف والشعبة]]=\"\",\"\",COUNTIFS(datasave!$D$7:$D$1253,\">=\"&$C$7,datasave!$D$7:$D$1253,\"<=\"&$F$7,datasave!$C$7:$C$1253,الجدول6[[#This Row],[الصف والشعبة]]))","v":0},"","",null,null,null,null,"2019-01-09"]
[null,null,"المجموع",{"$f":"SUBTOTAL(109,الجدول6[عدد الطلاب])","v":0},{"$f":"SUBTOTAL(109,الجدول6[عدد الحضور])","v":0},{"$f":"SUBTOTAL(109,الجدول6[عدد الغياب])","v":0},{"$f":"IFERROR(الجدول6[[#Totals],[عدد الحضور]]/الجدول6[[#Totals],[عدد الطلاب]],\"\")","v":""},{"$f":"IFERROR(الجدول6[[#Totals],[عدد الغياب]]/الجدول6[[#Totals],[عدد الطلاب]],\"\")","v":""},null,null,null,null,"2019-01-10"]
[null,null,null,null,null,null,null,null,null,null,null,null,"2019-01-11"]
[null,null,null,null,null,null,null,null,null,null,null,null,"2019-01-12"]
[null,null,null,null,null,null,null,null,null,null,null,null,"2019-03-31"]
[null,null,null,null,null,null,null,null,null,null,null,null,"2019-04-01"]
[null,null,null,null,null,null,null,null,null,null,null,null,"2019-04-02"]
[null,null,null,null,null,null,null,null,null,null,null,null,"2019-04-03"]
[null,null,null,null,null,null,null,null,null,null,null,null,"2019-04-04"]
[null,null,null,null,null,null,null,null,null,null,null,null,"2019-04-05"]
[null,null,null,null,null,null,null,null,null,null,null,null,"2019-04-06"]
[null,null,null,null,null,null,null,null,null,null,null,null,"2019-04-07"]
[null,null,null,null,null,null,null,null,null,null,null,null,"2019-04-08"]
[null,null,null,null,null,null,null,null,null,null,null,null,"2019-04-09"]
[null,null,null,null,null,null,null,null,null,null,null,null,"2019-04-10"]
[null,null,null,null,null,null,null,null,null,null,null,null,"2019-04-11"]
[null,null,null,null,null,null,null,null,null,null,null,null,"2019-04-12"]

{"sheet":"repclass","index":5,"n_rows":44,"n_cols":11,"rows_kept":44,"cut":false,"hidden":false,"merged":[[7,1,8,1],[7,2,8,2],[7,3,8,9],[1,8,1,10],[4,8,4,10],[5,8,5,10],[2,8,2,10],[7,10,8,10],[20,3,20,9],[9,3,9,9],[10,3,10,9],[11,3,11,9],[12,3,12,9],[13,3,13,9],[14,3,14,9],[37,3,37,9],[38,3,38,9],[27,3,27,9],[28,3,28,9],[29,3,29,9],[30,3,30,9],[31,3,31,9],[32,3,32,9],[6,3,6,7],[33,3,33,9],[34,3,34,9],[35,3,35,9],[36,3,36,9],[21,3,21,9],[22,3,22,9],[23,3,23,9],[24,3,24,9],[25,3,25,9],[26,3,26,9],[15,3,15,9],[16,3,16,9],[17,3,17,9],[18,3,18,9],[19,3,19,9],[39,3,39,9],[40,3,40,9],[41,3,41,9],[42,3,42,9],[43,3,43,9]]}
[]
[null,null,"المنطقة",null,null,null,null,null,"العام الدراسي"]
[null,null,null,null,null,null,null,null,"2018 -2019"]
[]
[null,null,"المدرسة",null,null,null,null,null,"الصف والشعبة"]
[null,null,null,null,null,null,null,null,"05/1"]
[null,null,null,"كشف بأعداد غياب الطلاب للصف"]
[null,"م","رقم الطالب","اسم الطالب",null,null,null,null,null,null,"عدد الغيابات"]
[]
[null,{"$f":"IF(C10=\"\",\"\",MAX($B$9:B9)+1)","v":""},{"$f":"IF($I$6=\"\",\"\",IFERROR(INDEX(data!$D$5:$D$1250,SMALL(IF(($I$6=data!$H$5:$H$1250),ROW(data!$H$5:$H$1250)-4),ROW(A1))),\"\"))","v":""},{"$f":"IF($I$6=\"\",\"\",IFERROR(INDEX(data!$E$5:$E$1250,SMALL(IF(($I$6=data!$H$5:$H$1250),ROW(data!$H$5:$H$1250)-4),ROW(A1))),\"\"))","v":""},null,null,null,null,null,null,{"$f":"IF(C10=\"\",\"\",COUNTIF(datasave!$A$7:$A$1253,C10))","v":""}]
[null,{"$f":"IF(C11=\"\",\"\",MAX($B$9:B10)+1)","v":""},{"$f":"IF($I$6=\"\",\"\",IFERROR(INDEX(data!$D$5:$D$1250,SMALL(IF(($I$6=data!$H$5:$H$1250),ROW(data!$H$5:$H$1250)-4),ROW(A2))),\"\"))","v":""},{"$f":"IF($I$6=\"\",\"\",IFERROR(INDEX(data!$E$5:$E$1250,SMALL(IF(($I$6=data!$H$5:$H$1250),ROW(data!$H$5:$H$1250)-4),ROW(A2))),\"\"))","v":""},null,null,null,null,null,null,{"$f":"IF(C11=\"\",\"\",COUNTIF(datasave!$A$7:$A$1253,C11))","v":""}]
[null,{"$f":"IF(C12=\"\",\"\",MAX($B$9:B11)+1)","v":""},{"$f":"IF($I$6=\"\",\"\",IFERROR(INDEX(data!$D$5:$D$1250,SMALL(IF(($I$6=data!$H$5:$H$1250),ROW(data!$H$5:$H$1250)-4),ROW(A3))),\"\"))","v":""},{"$f":"IF($I$6=\"\",\"\",IFERROR(INDEX(data!$E$5:$E$1250,SMALL(IF(($I$6=data!$H$5:$H$1250),ROW(data!$H$5:$H$1250)-4),ROW(A3))),\"\"))","v":""},null,null,null,null,null,null,{"$f":"IF(C12=\"\",\"\",COUNTIF(datasave!$A$7:$A$1253,C12))","v":""}]
[null,{"$f":"IF(C13=\"\",\"\",MAX($B$9:B12)+1)","v":""},{"$f":"IF($I$6=\"\",\"\",IFERROR(INDEX(data!$D$5:$D$1250,SMALL(IF(($I$6=data!$H$5:$H$1250),ROW(data!$H$5:$H$1250)-4),ROW(A4))),\"\"))","v":""},{"$f":"IF($I$6=\"\",\"\",IFERROR(INDEX(data!$E$5:$E$1250,SMALL(IF(($I$6=data!$H$5:$H$1250),ROW(data!$H$5:$H$1250)-4),ROW(A4))),\"\"))","v":""},null,null,null,null,null,null,{"$f":"IF(C13=\"\",\"\",COUNTIF(datasave!$A$7:$A$1253,C13))","v":""}]
[null,{"$f":"IF(C14=\"\",\"\",MAX($B$9:B13)+1)","v":""},{"$f":"IF($I$6=\"\",\"\",IFERROR(INDEX(data!$D$5:$D$1250,SMALL(IF(($I$6=data!$H$5:$H$1250),ROW(data!$H$5:$H$1250)-4),ROW(A5))),\"\"))","v":""},{"$f":"IF($I$6=\"\",\"\",IFERROR(INDEX(data!$E$5:$E$1250,SMALL(IF(($I$6=data!$H$5:$H$1250),ROW(data!$H$5:$H$1250)-4),ROW(A5))),\"\"))","v":""},null,null,null,null,null,null,{"$f":"IF(C14=\"\",\"\",COUNTIF(datasave!$A$7:$A$1253,C14))","v":""}]
[null,{"$f":"IF(C15=\"\",\"\",MAX($B$9:B14)+1)","v":""},{"$f":"IF($I$6=\"\",\"\",IFERROR(INDEX(data!$D$5:$D$1250,SMALL(IF(($I$6=data!$H$5:$H$1250),ROW(data!$H$5:$H$1250)-4),ROW(A6))),\"\"))","v":""},{"$f":"IF($I$6=\"\",\"\",IFERROR(INDEX(data!$E$5:$E$1250,SMALL(IF(($I$6=data!$H$5:$H$1250),ROW(data!$H$5:$H$1250)-4),ROW(A6))),\"\"))","v":""},null,null,null,null,null,null,{"$f":"IF(C15=\"\",\"\",COUNTIF(datasave!$A$7:$A$1253,C15))","v":""}]
[null,{"$f":"IF(C16=\"\",\"\",MAX($B$9:B15)+1)","v":""},{"$f":"IF($I$6=\"\",\"\",IFERROR(INDEX(data!$D$5:$D$1250,SMALL(IF(($I$6=data!$H$5:$H$1250),ROW(data!$H$5:$H$1250)-4),ROW(A7))),\"\"))","v":""},{"$f":"IF($I$6=\"\",\"\",IFERROR(INDEX(data!$E$5:$E$1250,SMALL(IF(($I$6=data!$H$5:$H$1250),ROW(data!$H$5:$H$1250)-4),ROW(A7))),\"\"))","v":""},null,null,null,null,null,null,{"$f":"IF(C16=\"\",\"\",COUNTIF(datasave!$A$7:$A$1253,C16))","v":""}]
[null,{"$f":"IF(C17=\"\",\"\",MAX($B$9:B16)+1)","v":""},{"$f":"IF($I$6=\"\",\"\",IFERROR(INDEX(data!$D$5:$D$1250,SMALL(IF(($I$6=data!$H$5:$H$1250),ROW(data!$H$5:$H$1250)-4),ROW(A8))),\"\"))","v":""},{"$f":"IF($I$6=\"\",\"\",IFERROR(INDEX(data!$E$5:$E$1250,SMALL(IF(($I$6=data!$H$5:$H$1250),ROW(data!$H$5:$H$1250)-4),ROW(A8))),\"\"))","v":""},null,null,null,null,null,null,{"$f":"IF(C17=\"\",\"\",COUNTIF(datasave!$A$7:$A$1253,C17))","v":""}]
[null,{"$f":"IF(C18=\"\",\"\",MAX($B$9:B17)+1)","v":""},{"$f":"IF($I$6=\"\",\"\",IFERROR(INDEX(data!$D$5:$D$1250,SMALL(IF(($I$6=data!$H$5:$H$1250),ROW(data!$H$5:$H$1250)-4),ROW(A9))),\"\"))","v":""},{"$f":"IF($I$6=\"\",\"\",IFERROR(INDEX(data!$E$5:$E$1250,SMALL(IF(($I$6=data!$H$5:$H$1250),ROW(data!$H$5:$H$1250)-4),ROW(A9))),\"\"))","v":""},null,null,null,null,null,null,{"$f":"IF(C18=\"\",\"\",COUNTIF(datasave!$A$7:$A$1253,C18))","v":""}]
[null,{"$f":"IF(C19=\"\",\"\",MAX($B$9:B18)+1)","v":""},{"$f":"IF($I$6=\"\",\"\",IFERROR(INDEX(data!$D$5:$D$1250,SMALL(IF(($I$6=data!$H$5:$H$1250),ROW(data!$H$5:$H$1250)-4),ROW(A10))),\"\"))","v":""},{"$f":"IF($I$6=\"\",\"\",IFERROR(INDEX(data!$E$5:$E$1250,SMALL(IF(($I$6=data!$H$5:$H$1250),ROW(data!$H$5:$H$1250)-4),ROW(A10))),\"\"))","v":""},null,null,null,null,null,null,{"$f":"IF(C19=\"\",\"\",COUNTIF(datasave!$A$7:$A$1253,C19))","v":""}]
[null,{"$f":"IF(C20=\"\",\"\",MAX($B$9:B19)+1)","v":""},{"$f":"IF($I$6=\"\",\"\",IFERROR(INDEX(data!$D$5:$D$1250,SMALL(IF(($I$6=data!$H$5:$H$1250),ROW(data!$H$5:$H$1250)-4),ROW(A11))),\"\"))","v":""},{"$f":"IF($I$6=\"\",\"\",IFERROR(INDEX(data!$E$5:$E$1250,SMALL(IF(($I$6=data!$H$5:$H$1250),ROW(data!$H$5:$H$1250)-4),ROW(A11))),\"\"))","v":""},null,null,null,null,null,null,{"$f":"IF(C20=\"\",\"\",COUNTIF(datasave!$A$7:$A$1253,C20))","v":""}]
[null,{"$f":"IF(C21=\"\",\"\",MAX($B$9:B20)+1)","v":""},{"$f":"IF($I$6=\"\",\"\",IFERROR(INDEX(data!$D$5:$D$1250,SMALL(IF(($I$6=data!$H$5:$H$1250),ROW(data!$H$5:$H$1250)-4),ROW(A12))),\"\"))","v":""},{"$f":"IF($I$6=\"\",\"\",IFERROR(INDEX(data!$E$5:$E$1250,SMALL(IF(($I$6=data!$H$5:$H$1250),ROW(data!$H$5:$H$1250)-4),ROW(A12))),\"\"))","v":""},null,null,null,null,null,null,{"$f":"IF(C21=\"\",\"\",COUNTIF(datasave!$A$7:$A$1253,C21))","v":""}]
[null,{"$f":"IF(C22=\"\",\"\",MAX($B$9:B21)+1)","v":""},{"$f":"IF($I$6=\"\",\"\",IFERROR(INDEX(data!$D$5:$D$1250,SMALL(IF(($I$6=data!$H$5:$H$1250),ROW(data!$H$5:$H$1250)-4),ROW(A13))),\"\"))","v":""},{"$f":"IF($I$6=\"\",\"\",IFERROR(INDEX(data!$E$5:$E$1250,SMALL(IF(($I$6=data!$H$5:$H$1250),ROW(data!$H$5:$H$1250)-4),ROW(A13))),\"\"))","v":""},null,null,null,null,null,null,{"$f":"IF(C22=\"\",\"\",COUNTIF(datasave!$A$7:$A$1253,C22))","v":""}]
[null,{"$f":"IF(C23=\"\",\"\",MAX($B$9:B22)+1)","v":""},{"$f":"IF($I$6=\"\",\"\",IFERROR(INDEX(data!$D$5:$D$1250,SMALL(IF(($I$6=data!$H$5:$H$1250),ROW(data!$H$5:$H$1250)-4),ROW(A14))),\"\"))","v":""},{"$f":"IF($I$6=\"\",\"\",IFERROR(INDEX(data!$E$5:$E$1250,SMALL(IF(($I$6=data!$H$5:$H$1250),ROW(data!$H$5:$H$1250)-4),ROW(A14))),\"\"))","v":""},null,null,null,null,null,null,{"$f":"IF(C23=\"\",\"\",COUNTIF(datasave!$A$7:$A$1253,C23))","v":""}]
[null,{"$f":"IF(C24=\"\",\"\",MAX($B$9:B23)+1)","v":""},{"$f":"IF($I$6=\"\",\"\",IFERROR(INDEX(data!$D$5:$D$1250,SMALL(IF(($I$6=data!$H$5:$H$1250),ROW(data!$H$5:$H$1250)-4),ROW(A15))),\"\"))","v":""},{"$f":"IF($I$6=\"\",\"\",IFERROR(INDEX(data!$E$5:$E$1250,SMALL(IF(($I$6=data!$H$5:$H$1250),ROW(data!$H$5:$H$1250)-4),ROW(A15))),\"\"))","v":""},null,null,null,null,null,null,{"$f":"IF(C24=\"\",\"\",COUNTIF(datasave!$A$7:$A$1253,C24))","v":""}]
[null,{"$f":"IF(C25=\"\",\"\",MAX($B$9:B24)+1)","v":""},{"$f":"IF($I$6=\"\",\"\",IFERROR(INDEX(data!$D$5:$D$1250,SMALL(IF(($I$6=data!$H$5:$H$1250),ROW(data!$H$5:$H$1250)-4),ROW(A16))),\"\"))","v":""},{"$f":"IF($I$6=\"\",\"\",IFERROR(INDEX(data!$E$5:$E$1250,SMALL(IF(($I$6=data!$H$5:$H$1250),ROW(data!$H$5:$H$1250)-4),ROW(A16))),\"\"))","v":""},null,null,null,null,null,null,{"$f":"IF(C25=\"\",\"\",COUNTIF(datasave!$A$7:$A$1253,C25))","v":""}]
[null,{"$f":"IF(C26=\"\",\"\",MAX($B$9:B25)+1)","v":""},{"$f":"IF($I$6=\"\",\"\",IFERROR(INDEX(data!$D$5:$D$1250,SMALL(IF(($I$6=data!$H$5:$H$1250),ROW(data!$H$5:$H$1250)-4),ROW(A17))),\"\"))","v":""},{"$f":"IF($I$6=\"\",\"\",IFERROR(INDEX(data!$E$5:$E$1250,SMALL(IF(($I$6=data!$H$5:$H$1250),ROW(data!$H$5:$H$1250)-4),ROW(A17))),\"\"))","v":""},null,null,null,null,null,null,{"$f":"IF(C26=\"\",\"\",COUNTIF(datasave!$A$7:$A$1253,C26))","v":""}]
[null,{"$f":"IF(C27=\"\",\"\",MAX($B$9:B26)+1)","v":""},{"$f":"IF($I$6=\"\",\"\",IFERROR(INDEX(data!$D$5:$D$1250,SMALL(IF(($I$6=data!$H$5:$H$1250),ROW(data!$H$5:$H$1250)-4),ROW(A18))),\"\"))","v":""},{"$f":"IF($I$6=\"\",\"\",IFERROR(INDEX(data!$E$5:$E$1250,SMALL(IF(($I$6=data!$H$5:$H$1250),ROW(data!$H$5:$H$1250)-4),ROW(A18))),\"\"))","v":""},null,null,null,null,null,null,{"$f":"IF(C27=\"\",\"\",COUNTIF(datasave!$A$7:$A$1253,C27))","v":""}]
[null,{"$f":"IF(C28=\"\",\"\",MAX($B$9:B27)+1)","v":""},{"$f":"IF($I$6=\"\",\"\",IFERROR(INDEX(data!$D$5:$D$1250,SMALL(IF(($I$6=data!$H$5:$H$1250),ROW(data!$H$5:$H$1250)-4),ROW(A19))),\"\"))","v":""},{"$f":"IF($I$6=\"\",\"\",IFERROR(INDEX(data!$E$5:$E$1250,SMALL(IF(($I$6=data!$H$5:$H$1250),ROW(data!$H$5:$H$1250)-4),ROW(A19))),\"\"))","v":""},null,null,null,null,null,null,{"$f":"IF(C28=\"\",\"\",COUNTIF(datasave!$A$7:$A$1253,C28))","v":""}]
[null,{"$f":"IF(C29=\"\",\"\",MAX($B$9:B28)+1)","v":""},{"$f":"IF($I$6=\"\",\"\",IFERROR(INDEX(data!$D$5:$D$1250,SMALL(IF(($I$6=data!$H$5:$H$1250),ROW(data!$H$5:$H$1250)-4),ROW(A20))),\"\"))","v":""},{"$f":"IF($I$6=\"\",\"\",IFERROR(INDEX(data!$E$5:$E$1250,SMALL(IF(($I$6=data!$H$5:$H$1250),ROW(data!$H$5:$H$1250)-4),ROW(A20))),\"\"))","v":""},null,null,null,null,null,null,{"$f":"IF(C29=\"\",\"\",COUNTIF(datasave!$A$7:$A$1253,C29))","v":""}]
[null,{"$f":"IF(C30=\"\",\"\",MAX($B$9:B29)+1)","v":""},{"$f":"IF($I$6=\"\",\"\",IFERROR(INDEX(data!$D$5:$D$1250,SMALL(IF(($I$6=data!$H$5:$H$1250),ROW(data!$H$5:$H$1250)-4),ROW(A21))),\"\"))","v":""},{"$f":"IF($I$6=\"\",\"\",IFERROR(INDEX(data!$E$5:$E$1250,SMALL(IF(($I$6=data!$H$5:$H$1250),ROW(data!$H$5:$H$1250)-4),ROW(A21))),\"\"))","v":""},null,null,null,null,null,null,{"$f":"IF(C30=\"\",\"\",COUNTIF(datasave!$A$7:$A$1253,C30))","v":""}]
[null,{"$f":"IF(C31=\"\",\"\",MAX($B$9:B30)+1)","v":""},{"$f":"IF($I$6=\"\",\"\",IFERROR(INDEX(data!$D$5:$D$1250,SMALL(IF(($I$6=data!$H$5:$H$1250),ROW(data!$H$5:$H$1250)-4),ROW(A22))),\"\"))","v":""},{"$f":"IF($I$6=\"\",\"\",IFERROR(INDEX(data!$E$5:$E$1250,SMALL(IF(($I$6=data!$H$5:$H$1250),ROW(data!$H$5:$H$1250)-4),ROW(A22))),\"\"))","v":""},null,null,null,null,null,null,{"$f":"IF(C31=\"\",\"\",COUNTIF(datasave!$A$7:$A$1253,C31))","v":""}]
[null,{"$f":"IF(C32=\"\",\"\",MAX($B$9:B31)+1)","v":""},{"$f":"IF($I$6=\"\",\"\",IFERROR(INDEX(data!$D$5:$D$1250,SMALL(IF(($I$6=data!$H$5:$H$1250),ROW(data!$H$5:$H$1250)-4),ROW(A23))),\"\"))","v":""},{"$f":"IF($I$6=\"\",\"\",IFERROR(INDEX(data!$E$5:$E$1250,SMALL(IF(($I$6=data!$H$5:$H$1250),ROW(data!$H$5:$H$1250)-4),ROW(A23))),\"\"))","v":""},null,null,null,null,null,null,{"$f":"IF(C32=\"\",\"\",COUNTIF(datasave!$A$7:$A$1253,C32))","v":""}]
[null,{"$f":"IF(C33=\"\",\"\",MAX($B$9:B32)+1)","v":""},{"$f":"IF($I$6=\"\",\"\",IFERROR(INDEX(data!$D$5:$D$1250,SMALL(IF(($I$6=data!$H$5:$H$1250),ROW(data!$H$5:$H$1250)-4),ROW(A24))),\"\"))","v":""},{"$f":"IF($I$6=\"\",\"\",IFERROR(INDEX(data!$E$5:$E$1250,SMALL(IF(($I$6=data!$H$5:$H$1250),ROW(data!$H$5:$H$1250)-4),ROW(A24))),\"\"))","v":""},null,null,null,null,null,null,{"$f":"IF(C33=\"\",\"\",COUNTIF(datasave!$A$7:$A$1253,C33))","v":""}]
[null,{"$f":"IF(C34=\"\",\"\",MAX($B$9:B33)+1)","v":""},{"$f":"IF($I$6=\"\",\"\",IFERROR(INDEX(data!$D$5:$D$1250,SMALL(IF(($I$6=data!$H$5:$H$1250),ROW(data!$H$5:$H$1250)-4),ROW(A25))),\"\"))","v":""},{"$f":"IF($I$6=\"\",\"\",IFERROR(INDEX(data!$E$5:$E$1250,SMALL(IF(($I$6=data!$H$5:$H$1250),ROW(data!$H$5:$H$1250)-4),ROW(A25))),\"\"))","v":""},null,null,null,null,null,null,{"$f":"IF(C34=\"\",\"\",COUNTIF(datasave!$A$7:$A$1253,C34))","v":""}]
[null,{"$f":"IF(C35=\"\",\"\",MAX($B$9:B34)+1)","v":""},{"$f":"IF($I$6=\"\",\"\",IFERROR(INDEX(data!$D$5:$D$1250,SMALL(IF(($I$6=data!$H$5:$H$1250),ROW(data!$H$5:$H$1250)-4),ROW(A26))),\"\"))","v":""},{"$f":"IF($I$6=\"\",\"\",IFERROR(INDEX(data!$E$5:$E$1250,SMALL(IF(($I$6=data!$H$5:$H$1250),ROW(data!$H$5:$H$1250)-4),ROW(A26))),\"\"))","v":""},null,null,null,null,null,null,{"$f":"IF(C35=\"\",\"\",COUNTIF(datasave!$A$7:$A$1253,C35))","v":""}]
[null,{"$f":"IF(C36=\"\",\"\",MAX($B$9:B35)+1)","v":""},{"$f":"IF($I$6=\"\",\"\",IFERROR(INDEX(data!$D$5:$D$1250,SMALL(IF(($I$6=data!$H$5:$H$1250),ROW(data!$H$5:$H$1250)-4),ROW(A27))),\"\"))","v":""},{"$f":"IF($I$6=\"\",\"\",IFERROR(INDEX(data!$E$5:$E$1250,SMALL(IF(($I$6=data!$H$5:$H$1250),ROW(data!$H$5:$H$1250)-4),ROW(A27))),\"\"))","v":""},null,null,null,null,null,null,{"$f":"IF(C36=\"\",\"\",COUNTIF(datasave!$A$7:$A$1253,C36))","v":""}]
[null,{"$f":"IF(C37=\"\",\"\",MAX($B$9:B36)+1)","v":""},{"$f":"IF($I$6=\"\",\"\",IFERROR(INDEX(data!$D$5:$D$1250,SMALL(IF(($I$6=data!$H$5:$H$1250),ROW(data!$H$5:$H$1250)-4),ROW(A28))),\"\"))","v":""},{"$f":"IF($I$6=\"\",\"\",IFERROR(INDEX(data!$E$5:$E$1250,SMALL(IF(($I$6=data!$H$5:$H$1250),ROW(data!$H$5:$H$1250)-4),ROW(A28))),\"\"))","v":""},null,null,null,null,null,null,{"$f":"IF(C37=\"\",\"\",COUNTIF(datasave!$A$7:$A$1253,C37))","v":""}]
[null,{"$f":"IF(C38=\"\",\"\",MAX($B$9:B37)+1)","v":""},{"$f":"IF($I$6=\"\",\"\",IFERROR(INDEX(data!$D$5:$D$1250,SMALL(IF(($I$6=data!$H$5:$H$1250),ROW(data!$H$5:$H$1250)-4),ROW(A29))),\"\"))","v":""},{"$f":"IF($I$6=\"\",\"\",IFERROR(INDEX(data!$E$5:$E$1250,SMALL(IF(($I$6=data!$H$5:$H$1250),ROW(data!$H$5:$H$1250)-4),ROW(A29))),\"\"))","v":""},null,null,null,null,null,null,{"$f":"IF(C38=\"\",\"\",COUNTIF(datasave!$A$7:$A$1253,C38))","v":""}]
[null,{"$f":"IF(C39=\"\",\"\",MAX($B$9:B38)+1)","v":""},{"$f":"IF($I$6=\"\",\"\",IFERROR(INDEX(data!$D$5:$D$1250,SMALL(IF(($I$6=data!$H$5:$H$1250),ROW(data!$H$5:$H$1250)-4),ROW(A30))),\"\"))","v":""},{"$f":"IF($I$6=\"\",\"\",IFERROR(INDEX(data!$E$5:$E$1250,SMALL(IF(($I$6=data!$H$5:$H$1250),ROW(data!$H$5:$H$1250)-4),ROW(A30))),\"\"))","v":""},null,null,null,null,null,null,{"$f":"IF(C39=\"\",\"\",COUNTIF(datasave!$A$7:$A$1253,C39))","v":""}]
[null,{"$f":"IF(C40=\"\",\"\",MAX($B$9:B39)+1)","v":""},{"$f":"IF($I$6=\"\",\"\",IFERROR(INDEX(data!$D$5:$D$1250,SMALL(IF(($I$6=data!$H$5:$H$1250),ROW(data!$H$5:$H$1250)-4),ROW(A31))),\"\"))","v":""},{"$f":"IF($I$6=\"\",\"\",IFERROR(INDEX(data!$E$5:$E$1250,SMALL(IF(($I$6=data!$H$5:$H$1250),ROW(data!$H$5:$H$1250)-4),ROW(A31))),\"\"))","v":""},null,null,null,null,null,null,{"$f":"IF(C40=\"\",\"\",COUNTIF(datasave!$A$7:$A$1253,C40))","v":""}]
[null,{"$f":"IF(C41=\"\",\"\",MAX($B$9:B40)+1)","v":""},{"$f":"IF($I$6=\"\",\"\",IFERROR(INDEX(data!$D$5:$D$1250,SMALL(IF(($I$6=data!$H$5:$H$1250),ROW(data!$H$5:$H$1250)-4),ROW(A32))),\"\"))","v":""},{"$f":"IF($I$6=\"\",\"\",IFERROR(INDEX(data!$E$5:$E$1250,SMALL(IF(($I$6=data!$H$5:$H$1250),ROW(data!$H$5:$H$1250)-4),ROW(A32))),\"\"))","v":""},null,null,null,null,null,null,{"$f":"IF(C41=\"\",\"\",COUNTIF(datasave!$A$7:$A$1253,C41))","v":""}]
[null,{"$f":"IF(C42=\"\",\"\",MAX($B$9:B41)+1)","v":""},{"$f":"IF($I$6=\"\",\"\",IFERROR(INDEX(data!$D$5:$D$1250,SMALL(IF(($I$6=data!$H$5:$H$1250),ROW(data!$H$5:$H$1250)-4),ROW(A33))),\"\"))","v":""},{"$f":"IF($I$6=\"\",\"\",IFERROR(INDEX(data!$E$5:$E$1250,SMALL(IF(($I$6=data!$H$5:$H$1250),ROW(data!$H$5:$H$1250)-4),ROW(A33))),\"\"))","v":""},null,null,null,null,null,null,{"$f":"IF(C42=\"\",\"\",COUNTIF(datasave!$A$7:$A$1253,C42))","v":""}]
[null,{"$f":"IF(C43=\"\",\"\",MAX($B$9:B42)+1)","v":""},{"$f":"IF($I$6=\"\",\"\",IFERROR(INDEX(data!$D$5:$D$1250,SMALL(IF(($I$6=data!$H$5:$H$1250),ROW(data!$H$5:$H$1250)-4),ROW(A34))),\"\"))","v":""},{"$f":"IF($I$6=\"\",\"\",IFERROR(INDEX(data!$E$5:$E$1250,SMALL(IF(($I$6=data!$H$5:$H$1250),ROW(data!$H$5:$H$1250)-4),ROW(A34))),\"\"))","v":""},null,null,null,null,null,null,{"$f":"IF(C43=\"\",\"\",COUNTIF(datasave!$A$7:$A$1253,C43))","v":""}]
[null,{"$f":"IF(C44=\"\",\"\",MAX($B$9:B43)+1)","v":""},{"$f":"IF($I$6=\"\",\"\",IFERROR(INDEX(data!$D$5:$D$1250,SMALL(IF(($I$6=data!$H$5:$H$1250),ROW(data!$H$5:$H$1250)-4),ROW(A35))),\"\"))","v":""},{"$f":"IF($I$6=\"\",\"\",IFERROR(INDEX(data!$E$5:$E$1250,SMALL(IF(($I$6=data!$H$5:$H$1250),ROW(data!$H$5:$H$1250)-4),ROW(A35))),\"\"))","v":""},null,null,null,null,null,null,{"$f":"IF(C44=\"\",\"\",COUNTIF(datasave!$A$7:$A$1253,C44))","v":""}]